Service Area,Service Division,Expense Type,Expense Code,Detailed Expense Type,Payment Date,Transaction Number,Amount Exc VAT,Supplier Name
Children and Young Peoples Services,Head of Childrens Social Care,Supplies and Services,336005,Advertising E336,01/11/2022,4064412-MP170,"3,225.00",MOTIF PICTURES LTD.
Regeneration Economy and Growth,Planning & Housing,Supplies and Services,336005,Advertising E336,01/11/2022,4064424-41295350,"1,587.73",NEWSQUEST (YORKSHIRE & NORTH EAST) LTD.
Children and Young Peoples Services,Head of Education and Skills,Supplies and Services,342033,Computers and Communications,01/11/2022,4064306-7402861614,"5,707.20",DELL COMPUTER CORPORATION LTD.
Resources BK0010,HR & Employee Services,Supplies and Services,352001,Conference Expenses,01/11/2022,4064280-INV-66747-F4K8M5,"1,695.00",CHARTERED INSTITUTE OF PAYROLL PROFESSIONALS (CIPP).
Neighbourhoods and Climate Change,Partnerships & Community Engagement Div.,Construction work A908,908105,Construction work,01/11/2022,4064237-22923,"1,223.37",A BUCKLER (HAULAGE) LTD.
Regeneration Economy and Growth,Culture Sport and Tourism,Construction work A908,908105,Construction work,01/11/2022,4064243-10506,"71,342.33",ALLIANCE LEISURE SERVICES LTD.
Neighbourhoods and Climate Change,Technical Services CM0300,Construction work A908,908105,Construction work,01/11/2022,4064353-SI7511948,"7,264.15",IAN FARMER ASSOCIATES (1998) LTD.
Regeneration Economy and Growth,Corporate Property and Land,Construction work A908,908105,Construction work,01/11/2022,4064374-0000083814,"2,750.00",JOHN WADE (HAULAGE) LTD.
Children and Young Peoples Services,Head of Education and Skills,Fees,901002,Professional fees 901002,01/11/2022,4064251-22043392,"12,000.00",ATKINS GLOBAL.
Children and Young Peoples Services,Head of Education and Skills,Transport,230016,Contract Hire,01/11/2022,4064258-38,994.50,BELMONT TAXIS.
Children and Young Peoples Services,Head of Education and Skills,Transport,230006,Contract Hire,01/11/2022,4064259-2-OCT22,"1,000.00",BENNETTS TAXIS.
Children and Young Peoples Services,Head of Education and Skills,Transport,230007,Contract Hire,01/11/2022,4064384-2054,786.00,KINGSWAY CABS LTD.
Children and Young Peoples Services,Head of Education and Skills,Transport,230007,Contract Hire,01/11/2022,4064384-2054-OCT,"2,560.00",KINGSWAY CABS LTD.
Children and Young Peoples Services,Head of Education and Skills,Transport,230009,Contract Hire,01/11/2022,4064384-2061,"1,508.96",KINGSWAY CABS LTD.
Children and Young Peoples Services,Head of Education and Skills,Transport,230007,Contract Hire,01/11/2022,4064384-2062,"1,453.60",KINGSWAY CABS LTD.
Children and Young Peoples Services,Head of Education and Skills,Transport,230007,Contract Hire,01/11/2022,4064528-18165,"3,116.82",WEARDALE MOTOR SERVICES LTD.
Adult and Health Services,Head of Adults,Transport,230005,Contract Hire,01/11/2022,4064246-2-OCT22,672.00,REDACTED - PAYMENT TO INDIVIDUAL
Children and Young Peoples Services,Head of Education and Skills,Transport,230008,Contract Hire,01/11/2022,4064247-01444,"2,800.00",REDACTED - PAYMENT TO INDIVIDUAL
Children and Young Peoples Services,Head of Education and Skills,Transport,230006,Contract Hire,01/11/2022,4064337-9-SEPT22,537.50,REDACTED - PAYMENT TO INDIVIDUAL
Children and Young Peoples Services,Head of Education and Skills,Transport,230006,Contract Hire,01/11/2022,4064337-9A-SEPT22,"2,120.63",REDACTED - PAYMENT TO INDIVIDUAL
Children and Young Peoples Services,Head of Education and Skills,Transport,230008,Contract Hire,01/11/2022,4064354-N098-OCT22,"1,280.00",REDACTED - PAYMENT TO INDIVIDUAL
Children and Young Peoples Services,Head of Education and Skills,Transport,230008,Contract Hire,01/11/2022,4064373-114-OCT22,"2,790.40",REDACTED - PAYMENT TO INDIVIDUAL
Children and Young Peoples Services,Head of Education and Skills,Transport,230008,Contract Hire,01/11/2022,4064373-115-OCT22,"1,706.40",REDACTED - PAYMENT TO INDIVIDUAL
Children and Young Peoples Services,Head of Education and Skills,Transport,230008,Contract Hire,01/11/2022,4064373-116-OCT22,"3,242.24",REDACTED - PAYMENT TO INDIVIDUAL
Children and Young Peoples Services,Head of Education and Skills,Transport,230008,Contract Hire,01/11/2022,4064373-117-OCT22,"3,248.90",REDACTED - PAYMENT TO INDIVIDUAL
Children and Young Peoples Services,Head of Education and Skills,Transport,230008,Contract Hire,01/11/2022,4064373-118-OCT22,"2,637.44",REDACTED - PAYMENT TO INDIVIDUAL
Children and Young Peoples Services,Head of Education and Skills,Transport,230008,Contract Hire,01/11/2022,4064373-119-OCT22,"1,395.20",REDACTED - PAYMENT TO INDIVIDUAL
Children and Young Peoples Services,Head of Education and Skills,Transport,230016,Contract Hire,01/11/2022,4064373-120-OCT22,"2,388.96",REDACTED - PAYMENT TO INDIVIDUAL
Children and Young Peoples Services,Head of Education and Skills,Transport,230008,Contract Hire,01/11/2022,4064373-121-OCT22,"2,637.60",REDACTED - PAYMENT TO INDIVIDUAL
Children and Young Peoples Services,Head of Education and Skills,Transport,230009,Contract Hire,01/11/2022,4064373-122-OCT22,"2,240.00",REDACTED - PAYMENT TO INDIVIDUAL
Children and Young Peoples Services,Head of Education and Skills,Transport,230034,Contract Hire,01/11/2022,4064373-123-OCT22,"2,560.00",REDACTED - PAYMENT TO INDIVIDUAL
Children and Young Peoples Services,Head of Education and Skills,Transport,230008,Contract Hire,01/11/2022,4064373-124,"2,240.00",REDACTED - PAYMENT TO INDIVIDUAL
Children and Young Peoples Services,Head of Education and Skills,Transport,230008,Contract Hire,01/11/2022,4064373-125,"2,080.00",REDACTED - PAYMENT TO INDIVIDUAL
Children and Young Peoples Services,Head of Education and Skills,Transport,230016,Contract Hire,01/11/2022,4064373-128,"2,560.00",REDACTED - PAYMENT TO INDIVIDUAL
Children and Young Peoples Services,Head of Education and Skills,Transport,230007,Contract Hire,01/11/2022,4064415-DURHAMGATEWAY31102022,882.66,REDACTED - PAYMENT TO INDIVIDUAL
Children and Young Peoples Services,Head of Education and Skills,Transport,230009,Contract Hire,01/11/2022,4064415-OCT22-2097,636.10,REDACTED - PAYMENT TO INDIVIDUAL
Adult and Health Services,Head of Adults,Transport,230005,Contract Hire,01/11/2022,4064415-THOR31102022,"1,032.82",REDACTED - PAYMENT TO INDIVIDUAL
Children and Young Peoples Services,Head of Education and Skills,Transport,230009,Contract Hire,01/11/2022,4064448-7381-OCT22,"1,518.72",REDACTED - PAYMENT TO INDIVIDUAL
Children and Young Peoples Services,Head of Education and Skills,Transport,230008,Contract Hire,01/11/2022,4064448-A059-OCT22,"3,366.00",REDACTED - PAYMENT TO INDIVIDUAL
Children and Young Peoples Services,Head of Education and Skills,Transport,230008,Contract Hire,01/11/2022,4064448-A072-OCT22,"3,136.00",REDACTED - PAYMENT TO INDIVIDUAL
Adult and Health Services,Head of Adults,Transport,230005,Contract Hire,01/11/2022,4064448-DM221-OCT22,"2,226.00",REDACTED - PAYMENT TO INDIVIDUAL
Children and Young Peoples Services,Head of Education and Skills,Transport,230008,Contract Hire,01/11/2022,4064448-E072-OCT22,"2,625.00",REDACTED - PAYMENT TO INDIVIDUAL
Children and Young Peoples Services,Head of Education and Skills,Transport,230006,Contract Hire,01/11/2022,4064448-F180-OCT22,891.00,REDACTED - PAYMENT TO INDIVIDUAL
Adult and Health Services,Public Health CC0450,Third Party Payments,460803,Contract Payments,01/11/2022,4064290-A83011/QTR221-22/ABI,683.06,CLAYPATH & UNIVERSITY MEDICAL GROUP.
Adult and Health Services,Public Health CC0450,Third Party Payments,460803,Contract Payments,01/11/2022,4064519-SI-TPL-00066375,"1,855.00",TURNING POINT (SERVICES) LTD.
Adult and Health Services,Public Health CC0450,Third Party Payments,460803,Contract Payments,01/11/2022,4064519-SI-TPL-00066376,"1,590.00",TURNING POINT (SERVICES) LTD.
Adult and Health Services,Public Health CC0450,Third Party Payments,460803,Contract Payments,01/11/2022,4064261-A83037/QTR221-22/ABI,533.12,BEWICK CRESCENT SURGERY.
Regeneration Economy and Growth,Corporate Property and Land,Supplies and Services,304221,Equipment and Materials,01/11/2022,4064253-295492,568.51,AVIRE LTD.
Neighbourhoods and Climate Change,Environmental Services,Supplies and Services,304221,Equipment and Materials,01/11/2022,4064272-431298,"1,420.00",CARRS BILLINGTON AGRICULTURE.
Neighbourhoods and Climate Change,Environmental Services,Supplies and Services,304221,Equipment and Materials,01/11/2022,4064272-431422,"5,177.15",CARRS BILLINGTON AGRICULTURE.
Regeneration Economy and Growth,Corporate Property and Land,Supplies and Services,304221,Equipment and Materials,01/11/2022,4064319-6732670,"1,164.00",EASTERN SHIRES PURCHASING ORGANISATION.
Regeneration Economy and Growth,Corporate Property and Land,Supplies and Services,304221,Equipment and Materials,01/11/2022,4064343-8055,"9,512.90",GROVE REED JOINERY LTD.
Regeneration Economy and Growth,Corporate Property and Land,Supplies and Services,304221,Equipment and Materials,01/11/2022,4064343-8065,"8,741.75",GROVE REED JOINERY LTD.
Neighbourhoods and Climate Change,Technical Services CM0300,Supplies and Services,304221,Equipment and Materials,01/11/2022,4064377-0113/00776547,579.50,JT DOVE LTD.
Resources BK0010,Digital Services,Supplies and Services,304040,Equipment and Materials,01/11/2022,4064427-0000004541,765.94,NOMINET UK.
Regeneration Economy and Growth,Transport and Contracted Services,Supplies and Services,304999,Equipment and Materials,01/11/2022,4064430-22297,"1,652.00",NORTH EAST TRAFFIC DATA COLLECTION LTD (NETDC).
Regeneration Economy and Growth,Corporate Property and Land,Supplies and Services,304221,Equipment and Materials,01/11/2022,4064444-XL292749,"1,180.00",PARK ELECTRICAL DISTRIBUTORS LTD.
Regeneration Economy and Growth,Corporate Property and Land,Supplies and Services,304221,Equipment and Materials,01/11/2022,4064497-862330,"1,700.15",T CROSSLING & CO LTD.
Neighbourhoods and Climate Change,Technical Services CM0300,Supplies and Services,304221,Equipment and Materials,01/11/2022,4064515-139566,559.50,TP ELECTRICAL SUPPLIES & FIXINGS LTD.
Neighbourhoods and Climate Change,Technical Services CM0300,Supplies and Services,304221,Equipment and Materials,01/11/2022,4064515-139637,"1,013.40",TP ELECTRICAL SUPPLIES & FIXINGS LTD.
Regeneration Economy and Growth,Corporate Property and Land,Supplies and Services,304221,Equipment and Materials,01/11/2022,4064521-04034539,515.30,UK ELECTRIC LTD.*
Regeneration Economy and Growth,Culture Sport and Tourism,Supplies and Services,304259,Equipment and Materials,01/11/2022,4064386-LSUK-22-0666,"1,300.00",LABOSPORT LTD.
Regeneration Economy and Growth,Planning & Housing,Cap Exp on Grants & Other Financial Assistance (REFCUS),918501,Exp assets not owned by authority,01/11/2022,4064428-RES-10-2022-568,"5,991.00",NORTH EAST BUILDING PLASTICS LTD.
Non-Service Specific,Insurances,Expenditure 8INSEX,810001,Insurance Expenditure,01/11/2022,4064537-407000209,"25,776.00",ZURICH INSURANCE PLC.
Non-Service Specific,Insurances,Supplies and Services,360099,Insurances,01/11/2022,4064398-7585495,750.00,MARSH LTD UK.
Regeneration Economy and Growth,Corporate Property and Land,Supplies and Services,384199,Miscellaneous Expenses,01/11/2022,4064251-22043394,"7,180.00",ATKINS GLOBAL.
Adult and Health Services,Head of Adults,Supplies and Services,384616,Miscellaneous Expenses,01/11/2022,4064380-ROOMD15EAST/2022/SEPT,864.72,KARBON HOMES LTD FORMERLY CESTRIA HOUSING ASSOCIATION LTD.
Children and Young Peoples Services,Head of Early Help Inclusion & Vulnerable Children.,Supplies and Services,384409,Miscellaneous Expenses,01/11/2022,4064390-003,"42,000.00",LISA MCGEE EDUCATION LTD.
Regeneration Economy and Growth,Culture Sport and Tourism,Supplies and Services,384302,Miscellaneous Expenses,01/11/2022,4064393-4100798924,550.00,MAD ALICE THEATRE COMPANY LTD.
Children and Young Peoples Services,Head of Early Help Inclusion & Vulnerable Children.,Supplies and Services,384409,Miscellaneous Expenses,01/11/2022,4064426-1898,"1,040.00",NMC SPORTS.
Regeneration Economy and Growth,Economic Development Level C,Supplies and Services,384899,Miscellaneous Expenses,01/11/2022,4064447-SD029/5,"6,692.93",PEOPLE INTO ENTERPRISE LTD T/A CREATE NORTH.
Regeneration Economy and Growth,Planning & Housing,Supplies and Services,384999,Miscellaneous Expenses,01/11/2022,4064503-S11000003721,"27,500.00",THE CYRENIANS LTD T/A CHANGING LIVES.
Dedicated Schools Grant BG0015,DSG High Needs Block,Supplies and Services,384199,Miscellaneous Expenses,01/11/2022,4064324-169,"1,170.00",REDACTED - PAYMENT TO INDIVIDUAL
Neighbourhoods and Climate Change,Environmental Services,Supplies and Services,384899,Miscellaneous Expenses,01/11/2022,4064347-RES-10-2022-572,619.20,HASWELL PHARMACY.
Children and Young Peoples Services,Head of Education and Skills,Supplies and Services,312009,Newspapers books and periodicals E312,01/11/2022,4064450-1945071,516.64,PETERS LTD.
Resources BK0010,Transactional & Customer Services,Third Party Payments,440999,Other third party payments E440,01/11/2022,4064318-RES-10-2022-538,"60,000.00",EAST DURHAM COMMUNITY DEVELOPMENT TRUST LTD T/A EAST DURHAM TRUST.
Resources BK0010,Transactional & Customer Services,Third Party Payments,440999,Other third party payments E440,01/11/2022,4064379-RES-10-2022-537,"15,000.00",JUNCTION 7.
Resources BK0010,Transactional & Customer Services,Third Party Payments,440999,Other third party payments E440,01/11/2022,4064442-RES-10-2022-539,"15,000.00",PACT HOUSE STANLEY.
Children and Young Peoples Services,Head of Education and Skills,Third Party Payments,440999,Other third party payments E440,01/11/2022,4064465-1164,"3,269.47",RELEASE POTENTIAL LTD.
Resources BK0010,Transactional & Customer Services,Third Party Payments,440999,Other third party payments E440,01/11/2022,4064502-RES-10-2022-540,"100,000.00",THE BREAD & BUTTER THING.
Regeneration Economy and Growth,Culture Sport and Tourism,Supplies and Services,324001,Provisions E324,01/11/2022,4064409-906813430,936.63,MOLSON COORS BREWING COMPANY (UK) LTD.
Regeneration Economy and Growth,Corporate Property and Land,Third Party Payments,430100,Rendered by Private Contractors,01/11/2022,4064238-9274,800.00,A19 DRILLING LTD.
Regeneration Economy and Growth,Corporate Property and Land,Third Party Payments,430100,Rendered by Private Contractors,01/11/2022,4064244-SI19757,"4,875.00",AMBIC LTD.
Regeneration Economy and Growth,Corporate Property and Land,Third Party Payments,430100,Rendered by Private Contractors,01/11/2022,4064254-2200,"3,108.40",AWR ROOFING & ALUMIN RAINWATER SYSTEMS LTD.
Neighbourhoods and Climate Change,Environmental Services,Third Party Payments,430100,Rendered by Private Contractors,01/11/2022,4064285-CN30220908,585.27,CITRON HYGIENE UK LTD.
Regeneration Economy and Growth,Culture Sport and Tourism,Third Party Payments,430131,Rendered by Private Contractors,01/11/2022,4064429-4593,560.00,NORTH EAST DANCE CIC.
Neighbourhoods and Climate Change,Technical Services CM0300,Third Party Payments,430100,Rendered by Private Contractors,01/11/2022,4064434-8095,"7,943.10",NU PHALT CONTRACTING LTD.
Regeneration Economy and Growth,Corporate Property and Land,Third Party Payments,430100,Rendered by Private Contractors,01/11/2022,4064443-3241,"3,528.00",PARAMOUNT CEILINGS & PARTITIONS LTD.
Neighbourhoods and Climate Change,Technical Services CM0300,Third Party Payments,430100,Rendered by Private Contractors,01/11/2022,4064457-14532,"2,041.60",QUANTUM POWER CONNECTIONS LTD.
Neighbourhoods and Climate Change,Technical Services CM0300,Third Party Payments,430100,Rendered by Private Contractors,01/11/2022,4064457-14534,612.48,QUANTUM POWER CONNECTIONS LTD.
Neighbourhoods and Climate Change,Technical Services CM0300,Third Party Payments,430100,Rendered by Private Contractors,01/11/2022,4064457-14535,"1,837.44",QUANTUM POWER CONNECTIONS LTD.
Neighbourhoods and Climate Change,Technical Services CM0300,Third Party Payments,430100,Rendered by Private Contractors,01/11/2022,4064457-14538,816.64,QUANTUM POWER CONNECTIONS LTD.
Neighbourhoods and Climate Change,Technical Services CM0300,Third Party Payments,430100,Rendered by Private Contractors,01/11/2022,4064457-14541,533.76,QUANTUM POWER CONNECTIONS LTD.
Regeneration Economy and Growth,Corporate Property and Land,Third Party Payments,430100,Rendered by Private Contractors,01/11/2022,4064492-180780,"3,958.00",SUPATINT LTD T/A SUPATINT WINDOW FILMS & BLINDS.
Neighbourhoods and Climate Change,Environmental Services,Third Party Payments,430100,Rendered by Private Contractors,01/11/2022,4064530-57544,"34,129.32",WILLOWCRETE MANUFACTURING COMPANY LTD (MFG).
Regeneration Economy and Growth,Corporate Property and Land,Third Party Payments,430100,Rendered by Private Contractors,01/11/2022,4064530-57580,581.10,WILLOWCRETE MANUFACTURING COMPANY LTD (MFG).
Children and Young Peoples Services,Head of Childrens Social Care,Third Party Payments,486044,Service level agreements E486,01/11/2022,4064300-3910020523,"3,719.13",COUNTY DURHAM & DARLINGTON NHS FOUNDATION TRUST (CDDFT).
Resources BK0010,Legal & Democratic Services,Supplies and Services,338042,Services,01/11/2022,4064307-371064/INVGA20,550.00,DERE STREET BARRISTERS.
Resources BK0010,Legal & Democratic Services,Supplies and Services,338042,Services,01/11/2022,4064307-372824/INVTD1004,850.00,DERE STREET BARRISTERS.
Resources BK0010,Legal & Democratic Services,Supplies and Services,338042,Services,01/11/2022,4064307-373871/INVDR880,"1,143.75",DERE STREET BARRISTERS.
Resources BK0010,Legal & Democratic Services,Supplies and Services,338042,Services,01/11/2022,4064307-374745/INVSJT86,"1,400.00",DERE STREET BARRISTERS.
Resources BK0010,Legal & Democratic Services,Supplies and Services,338042,Services,01/11/2022,4064308-359090/INVSRG240,"4,491.66",DERE STREET BARRISTERS.
Resources BK0010,Legal & Democratic Services,Supplies and Services,338042,Services,01/11/2022,4064308-369212/INVDR883,525.00,DERE STREET BARRISTERS.
Resources BK0010,Legal & Democratic Services,Supplies and Services,338042,Services,01/11/2022,4064308-371158/INVNC550,"1,775.00",DERE STREET BARRISTERS.
Resources BK0010,Legal & Democratic Services,Supplies and Services,338042,Services,01/11/2022,4064308-372264/INVRR181,"1,400.00",DERE STREET BARRISTERS.
Resources BK0010,Legal & Democratic Services,Supplies and Services,338042,Services,01/11/2022,4064308-372497/INVCM232,"7,775.00",DERE STREET BARRISTERS.
Resources BK0010,Legal & Democratic Services,Supplies and Services,338042,Services,01/11/2022,4064308-372713/INVJS66,775.00,DERE STREET BARRISTERS.
Resources BK0010,Legal & Democratic Services,Supplies and Services,338042,Services,01/11/2022,4064308-372824/INVTD1008,525.00,DERE STREET BARRISTERS.
Resources BK0010,Legal & Democratic Services,Supplies and Services,338042,Services,01/11/2022,4064308-372902/INVEL204,875.00,DERE STREET BARRISTERS.
Resources BK0010,Legal & Democratic Services,Supplies and Services,338042,Services,01/11/2022,4064308-373416/INVSEB1X321,875.00,DERE STREET BARRISTERS.
Resources BK0010,Legal & Democratic Services,Supplies and Services,338042,Services,01/11/2022,4064308-374913/INVRR183,"1,400.00",DERE STREET BARRISTERS.
Regeneration Economy and Growth,Business Durham CL0850,Supplies and Services,338066,Services,01/11/2022,4064401-INV-0578,660.00,MCDONOUGH MARKETING COMMUNICATIONS LTD T/A MMC.
Children and Young Peoples Services,Head of Childrens Social Care,Supplies and Services,338099,Services,01/11/2022,4064431-26945391,"26,682.50",NORTH TYNESIDE COUNCIL.
Resources BK0010,Legal & Democratic Services,Supplies and Services,338106,Services,01/11/2022,4064451-INVOICE19/10/22,900.00,PHILLIPS & CO COSMETIC DENTISTRY.
Children and Young Peoples Services,Head of Education and Skills,Supplies and Services,338027,Services,01/11/2022,4064490-2807030553,667.00,SUNDERLAND CITY COUNCIL.
Adult and Health Services,Head of Adults,Supplies and Services,338089,Services,01/11/2022,4064493-2710221,600.00,SUSAN BELL (EXTERNAL TRAINER).
Neighbourhoods and Climate Change,Environmental Services,Supplies and Services,338066,Services,01/11/2022,4064505-251020222,"1,080.00",THE NATURAL ROUTE.
Children and Young Peoples Services,Head of Childrens Social Care,Supplies and Services,338045,Services,01/11/2022,4064305-INV-09568,648.00,CY4OR LEGAL LTD.
Regeneration Economy and Growth,Culture Sport and Tourism,Supplies and Services,338047,Services,01/11/2022,4064323-172,750.00,REDACTED - PAYMENT TO INDIVIDUAL
Neighbourhoods and Climate Change,Technical Services CM0300,Stock A926,926900,Stock in hand-Inventory system,01/11/2022,4064326-78SI/79440,537.60,ENCON INSULATION LTD.
Neighbourhoods and Climate Change,Technical Services CM0300,Stock A926,926900,Stock in hand-Inventory system,01/11/2022,4064510-NSIN00083730,908.67,THOMAS OWEN & SONS (NEWCASTLE) LTD.
Neighbourhoods and Climate Change,Technical Services CM0300,Stock A926,926900,Stock in hand-Inventory system,01/11/2022,4064514-111884,"1,114.00",TOTAL RENTAL SOLUTIONS LTD.
Neighbourhoods and Climate Change,Technical Services CM0300,Stock A926,926900,Stock in hand-Inventory system,01/11/2022,4064536-145500629,"2,092.50",ZG LIGHTING (UK) LTD.
Dedicated Schools Grant BG0015,Dedicated Schools Grant CG0050,Central Support and Other Recharges,615208,Support Services,01/11/2022,4064320-RES-10-2022-546,577.93,EDEN LEARNING TRUST T/A WOODHAM ACADEMY.
Dedicated Schools Grant BG0015,Dedicated Schools Grant CG0050,Central Support and Other Recharges,615208,Support Services,01/11/2022,4064320-RES-10-2022-547,"1,011.37",EDEN LEARNING TRUST T/A WOODHAM ACADEMY.
Resources BK0010,Legal & Democratic Services,Supplies and Services,344014,Telephones,01/11/2022,4064526-RR33301,765.55,VODAFONE CORPORATE LTD.
Children and Young Peoples Services,Head of Childrens Social Care,Employees,080025,Agency Staff,02/11/2022,4064657-2464720,"157,062.41",GEOMETRIC RESULTS INTERNATIONAL.
Children and Young Peoples Services,Head of Childrens Social Care,Transport,240045,Car allowances E240,02/11/2022,4064869-12035,"7,840.98",SUPPORTIVE SRC LTD.
Adult and Health Services,Commissioning inc Supporting People,Transport,240045,Car allowances E240,02/11/2022,4064869-12088,"3,076.05",SUPPORTIVE SRC LTD.
Non-Service Specific,Non Service Specific-Financing,Long Term Debtors,924001,Car loans,02/11/2022,4064554-120022,793.00,ARRIVA NORTHUMBRIA LTD.
Non-Service Specific,Non Service Specific-Financing,Long Term Debtors,924001,Car loans,02/11/2022,4064555-120021,543.00,ARRIVA NORTHUMBRIA LTD.
Non-Service Specific,Non Service Specific-Financing,Long Term Debtors,924001,Car loans,02/11/2022,4064555-120023,543.00,ARRIVA NORTHUMBRIA LTD.
Non-Service Specific,Non Service Specific-Financing,Long Term Debtors,924001,Car loans,02/11/2022,4064555-120024,543.00,ARRIVA NORTHUMBRIA LTD.
Adult and Health Services,Head of Adults,Supplies and Services,342051,Computers and Communications,02/11/2022,4064793-18351,"1,555.00",OXFORD COMPUTER CONSULTANTS LTD.
Children and Young Peoples Services,Head of Education and Skills,Supplies and Services,342033,Computers and Communications,02/11/2022,4064871-142167,"1,660.92",SWITCHSHOP LTD.
Adult and Health Services,Public Health CC0450,Supplies and Services,342033,Computers and Communications,02/11/2022,4064871-142359,"1,965.93",SWITCHSHOP LTD.
Regeneration Economy and Growth,Transport and Contracted Services,Construction work A908,908105,Construction work,02/11/2022,4064587-29289,"3,211.84",BUS SHELTERS LTD.
Regeneration Economy and Growth,Transport and Contracted Services,Construction work A908,908105,Construction work,02/11/2022,4064587-29290,"4,340.98",BUS SHELTERS LTD.
Regeneration Economy and Growth,Transport and Contracted Services,Construction work A908,908105,Construction work,02/11/2022,4064698-27081,"1,671.29",JACK COUPE & SONS LTD T/A COUPE LINE.
Children and Young Peoples Services,Head of Education and Skills,Construction work A908,908105,Construction work,02/11/2022,4064737-167282,"1,760.00",LUCION ENVIRONMENTAL LLP LTD.
Children and Young Peoples Services,Head of Education and Skills,Construction work A908,908105,Construction work,02/11/2022,4064790-A231231,"1,721.00",OPENREACH LLU.
Adult and Health Services,Head of Adults,Fees,901002,Professional fees 901002,02/11/2022,4064571-42546,"7,303.28",BGP CONSULTING LTD T/A BILLINGHURST GEORGE & PARTNERS.
Regeneration Economy and Growth,Corporate Property and Land,Fees,901002,Professional fees 901002,02/11/2022,4064579-SIN037738,"72,099.31",BLOOM PROCUREMENT SERVICES LTD (FORMERLY NEPRO LTD).
Regeneration Economy and Growth,Culture Sport and Tourism,Fees,901002,Professional fees 901002,02/11/2022,4064835-TEC609750,573.00,RPS CONSULTING SERVICES LTD.
Children and Young Peoples Services,Head of Education and Skills,Transport,230006,Contract Hire,02/11/2022,4064561-123,"2,272.00",AUCKLAND TRAVEL.
Children and Young Peoples Services,Head of Education and Skills,Transport,230008,Contract Hire,02/11/2022,4064561-124,"2,999.68",AUCKLAND TRAVEL.
Children and Young Peoples Services,Head of Education and Skills,Transport,230008,Contract Hire,02/11/2022,4064561-125,"2,288.00",AUCKLAND TRAVEL.
Children and Young Peoples Services,Head of Education and Skills,Transport,230008,Contract Hire,02/11/2022,4064561-126,"2,474.25",AUCKLAND TRAVEL.
Children and Young Peoples Services,Head of Education and Skills,Transport,230008,Contract Hire,02/11/2022,4064561-127,"2,224.48",AUCKLAND TRAVEL.
Children and Young Peoples Services,Head of Education and Skills,Transport,230008,Contract Hire,02/11/2022,4064561-128,"2,112.00",AUCKLAND TRAVEL.
Children and Young Peoples Services,Head of Education and Skills,Transport,230008,Contract Hire,02/11/2022,4064561-129,"2,310.00",AUCKLAND TRAVEL.
Children and Young Peoples Services,Head of Education and Skills,Transport,230006,Contract Hire,02/11/2022,4064561-130,"1,188.00",AUCKLAND TRAVEL.
Children and Young Peoples Services,Head of Education and Skills,Transport,230012,Contract Hire,02/11/2022,4064572-1-OCT22,"2,240.00",BH TRAVEL.
Children and Young Peoples Services,Head of Education and Skills,Transport,230006,Contract Hire,02/11/2022,4064572-2-OCT22,"2,400.00",BH TRAVEL.
Children and Young Peoples Services,Head of Education and Skills,Transport,230006,Contract Hire,02/11/2022,4064574-INV-650,"1,372.65",BILL SCOTT TAXIS LTD.
Children and Young Peoples Services,Head of Education and Skills,Transport,230006,Contract Hire,02/11/2022,4064581-002-OCT22,531.32,BOWBURN TAXIS.
Children and Young Peoples Services,Head of Education and Skills,Transport,230007,Contract Hire,02/11/2022,4064588-209902,"1,280.00",C & R TAXIS.
Children and Young Peoples Services,Head of Education and Skills,Transport,230008,Contract Hire,02/11/2022,4064588-S006035,"1,777.12",C & R TAXIS.
Children and Young Peoples Services,Head of Education and Skills,Transport,230008,Contract Hire,02/11/2022,4064588-S01502,"1,593.92",C & R TAXIS.
Children and Young Peoples Services,Head of Education and Skills,Transport,230006,Contract Hire,02/11/2022,4064598-13-OCT22,"2,880.00",CHAPMAN TRAVEL.
Children and Young Peoples Services,Head of Education and Skills,Transport,230006,Contract Hire,02/11/2022,4064600-1965,"1,627.46",CHEVRON TAXIS LTD.
Children and Young Peoples Services,Head of Education and Skills,Transport,230007,Contract Hire,02/11/2022,4064600-1968,"1,890.00",CHEVRON TAXIS LTD.
Children and Young Peoples Services,Head of Education and Skills,Transport,230007,Contract Hire,02/11/2022,4064600-1970,"1,380.00",CHEVRON TAXIS LTD.
Children and Young Peoples Services,Head of Education and Skills,Transport,230007,Contract Hire,02/11/2022,4064600-1971,750.00,CHEVRON TAXIS LTD.
Children and Young Peoples Services,Head of Education and Skills,Transport,230034,Contract Hire,02/11/2022,4064600-1972,"2,370.00",CHEVRON TAXIS LTD.
Children and Young Peoples Services,Head of Education and Skills,Transport,230006,Contract Hire,02/11/2022,4064600-1977,612.00,CHEVRON TAXIS LTD.
Children and Young Peoples Services,Head of Education and Skills,Transport,230006,Contract Hire,02/11/2022,4064600-1978,774.00,CHEVRON TAXIS LTD.
Children and Young Peoples Services,Head of Education and Skills,Transport,230006,Contract Hire,02/11/2022,4064600-1979,972.00,CHEVRON TAXIS LTD.
Children and Young Peoples Services,Head of Education and Skills,Transport,230009,Contract Hire,02/11/2022,4064600-1982,"2,268.00",CHEVRON TAXIS LTD.
Children and Young Peoples Services,Head of Education and Skills,Transport,230008,Contract Hire,02/11/2022,4064610-05,"2,400.00",CONNORS MINI BUSES.*
Children and Young Peoples Services,Head of Education and Skills,Transport,230008,Contract Hire,02/11/2022,4064610-08,"2,925.00",CONNORS MINI BUSES.*
Children and Young Peoples Services,Head of Education and Skills,Transport,230006,Contract Hire,02/11/2022,4064618-114556,"3,312.00",CROFT BUSINESS SERVICES LTD T/A CROFT TRAVEL.
Adult and Health Services,Head of Adults,Transport,230005,Contract Hire,02/11/2022,4064618-114560,739.44,CROFT BUSINESS SERVICES LTD T/A CROFT TRAVEL.
Children and Young Peoples Services,Head of Education and Skills,Transport,230008,Contract Hire,02/11/2022,4064618-114569,"2,694.16",CROFT BUSINESS SERVICES LTD T/A CROFT TRAVEL.
Children and Young Peoples Services,Head of Education and Skills,Transport,230008,Contract Hire,02/11/2022,4064618-114570,"1,647.30",CROFT BUSINESS SERVICES LTD T/A CROFT TRAVEL.
Children and Young Peoples Services,Head of Education and Skills,Transport,230010,Contract Hire,02/11/2022,4064618-114573,"2,383.20",CROFT BUSINESS SERVICES LTD T/A CROFT TRAVEL.
Children and Young Peoples Services,Head of Education and Skills,Transport,230008,Contract Hire,02/11/2022,4064622-555,"1,712.64",DA TRAVEL.
Children and Young Peoples Services,Head of Education and Skills,Transport,230008,Contract Hire,02/11/2022,4064622-556,"1,221.60",DA TRAVEL.
Children and Young Peoples Services,Head of Education and Skills,Transport,230010,Contract Hire,02/11/2022,4064622-557,960.00,DA TRAVEL.
Children and Young Peoples Services,Head of Education and Skills,Transport,230009,Contract Hire,02/11/2022,4064623-SGPSSOCT2202,"1,050.00",DALELINK PRIVATE HIRE.
Children and Young Peoples Services,Head of Education and Skills,Transport,230003,Contract Hire,02/11/2022,4064651-103091,"3,024.00",G & P JOHNSON LTD T/A NIGHTINGALE COACHES.
Children and Young Peoples Services,Head of Education and Skills,Transport,230008,Contract Hire,02/11/2022,4064651-103092,"2,448.32",G & P JOHNSON LTD T/A NIGHTINGALE COACHES.
Children and Young Peoples Services,Head of Education and Skills,Transport,230008,Contract Hire,02/11/2022,4064651-103093,"2,304.00",G & P JOHNSON LTD T/A NIGHTINGALE COACHES.
Children and Young Peoples Services,Head of Education and Skills,Transport,230008,Contract Hire,02/11/2022,4064651-103094,"2,942.57",G & P JOHNSON LTD T/A NIGHTINGALE COACHES.
Adult and Health Services,Head of Adults,Transport,230005,Contract Hire,02/11/2022,4064651-103095,"1,490.00",G & P JOHNSON LTD T/A NIGHTINGALE COACHES.
Children and Young Peoples Services,Head of Education and Skills,Transport,230007,Contract Hire,02/11/2022,4064651-103096,"1,358.56",G & P JOHNSON LTD T/A NIGHTINGALE COACHES.
Children and Young Peoples Services,Head of Education and Skills,Transport,230007,Contract Hire,02/11/2022,4064651-103097,"1,596.31",G & P JOHNSON LTD T/A NIGHTINGALE COACHES.
Children and Young Peoples Services,Head of Education and Skills,Transport,230008,Contract Hire,02/11/2022,4064667-93,"2,013.43",GP TAXIS.
Children and Young Peoples Services,Head of Education and Skills,Transport,230007,Contract Hire,02/11/2022,4064668-90/291,"2,453.76",GRAHAMS MOTOR SERVICES LTD.
Children and Young Peoples Services,Head of Education and Skills,Transport,230006,Contract Hire,02/11/2022,4064677-HT660,"2,000.00",HARRY`S TAXI`S.
Children and Young Peoples Services,Head of Education and Skills,Transport,230007,Contract Hire,02/11/2022,4064677-HT661,"2,532.00",HARRY`S TAXI`S.
Children and Young Peoples Services,Head of Education and Skills,Transport,230008,Contract Hire,02/11/2022,4064677-HT663,"3,632.00",HARRY`S TAXI`S.
Children and Young Peoples Services,Head of Education and Skills,Transport,230016,Contract Hire,02/11/2022,4064677-HT665,"1,028.58",HARRY`S TAXI`S.
Children and Young Peoples Services,Head of Education and Skills,Transport,230008,Contract Hire,02/11/2022,4064677-HT666,"3,680.00",HARRY`S TAXI`S.
Children and Young Peoples Services,Head of Education and Skills,Transport,230008,Contract Hire,02/11/2022,4064723-2036-OCT22,"1,585.28",KINGSWAY CABS LTD.
Children and Young Peoples Services,Head of Education and Skills,Transport,230008,Contract Hire,02/11/2022,4064723-2040,"3,917.60",KINGSWAY CABS LTD.
Children and Young Peoples Services,Head of Education and Skills,Transport,230006,Contract Hire,02/11/2022,4064723-2043,"1,800.00",KINGSWAY CABS LTD.
Children and Young Peoples Services,Head of Education and Skills,Transport,230008,Contract Hire,02/11/2022,4064723-2044,"1,430.00",KINGSWAY CABS LTD.
Children and Young Peoples Services,Head of Education and Skills,Transport,230008,Contract Hire,02/11/2022,4064723-2048,"1,280.00",KINGSWAY CABS LTD.
Children and Young Peoples Services,Head of Education and Skills,Transport,230008,Contract Hire,02/11/2022,4064723-2048-OCT22,"3,520.00",KINGSWAY CABS LTD.
Children and Young Peoples Services,Head of Education and Skills,Transport,230008,Contract Hire,02/11/2022,4064723-2049,"3,052.00",KINGSWAY CABS LTD.
Children and Young Peoples Services,Head of Education and Skills,Transport,230008,Contract Hire,02/11/2022,4064723-2049-OCT22,"2,550.72",KINGSWAY CABS LTD.
Children and Young Peoples Services,Head of Education and Skills,Transport,230008,Contract Hire,02/11/2022,4064723-2050,"1,706.40",KINGSWAY CABS LTD.
Children and Young Peoples Services,Head of Education and Skills,Transport,230006,Contract Hire,02/11/2022,4064723-2053,"2,480.00",KINGSWAY CABS LTD.
Children and Young Peoples Services,Head of Education and Skills,Transport,230008,Contract Hire,02/11/2022,4064723-2055,"3,071.04",KINGSWAY CABS LTD.
Children and Young Peoples Services,Head of Education and Skills,Transport,230008,Contract Hire,02/11/2022,4064723-2056,"1,877.12",KINGSWAY CABS LTD.
Children and Young Peoples Services,Head of Education and Skills,Transport,230008,Contract Hire,02/11/2022,4064723-2057,"3,090.24",KINGSWAY CABS LTD.
Children and Young Peoples Services,Head of Education and Skills,Transport,230034,Contract Hire,02/11/2022,4064723-2058,"2,598.72",KINGSWAY CABS LTD.
Children and Young Peoples Services,Head of Education and Skills,Transport,230006,Contract Hire,02/11/2022,4064723-2059,"2,480.00",KINGSWAY CABS LTD.
Children and Young Peoples Services,Head of Education and Skills,Transport,230007,Contract Hire,02/11/2022,4064723-2060,"3,920.00",KINGSWAY CABS LTD.
Children and Young Peoples Services,Head of Education and Skills,Transport,230008,Contract Hire,02/11/2022,4064723-2063,"2,773.92",KINGSWAY CABS LTD.
Children and Young Peoples Services,Head of Education and Skills,Transport,230008,Contract Hire,02/11/2022,4064723-2064,"3,714.88",KINGSWAY CABS LTD.
Children and Young Peoples Services,Head of Education and Skills,Transport,230008,Contract Hire,02/11/2022,4064723-2066,"3,000.32",KINGSWAY CABS LTD.
Children and Young Peoples Services,Head of Education and Skills,Transport,230008,Contract Hire,02/11/2022,4064723-2067,"2,422.08",KINGSWAY CABS LTD.
Children and Young Peoples Services,Head of Education and Skills,Transport,230008,Contract Hire,02/11/2022,4064723-2068,"3,680.00",KINGSWAY CABS LTD.
Children and Young Peoples Services,Head of Education and Skills,Transport,230008,Contract Hire,02/11/2022,4064723-2069,"3,012.96",KINGSWAY CABS LTD.
Children and Young Peoples Services,Head of Education and Skills,Transport,230006,Contract Hire,02/11/2022,4064723-2071,"1,917.64",KINGSWAY CABS LTD.
Children and Young Peoples Services,Head of Education and Skills,Transport,230008,Contract Hire,02/11/2022,4064723-2073,"2,669.70",KINGSWAY CABS LTD.
Children and Young Peoples Services,Head of Education and Skills,Transport,230007,Contract Hire,02/11/2022,4064723-2076,"1,280.00",KINGSWAY CABS LTD.
Children and Young Peoples Services,Head of Education and Skills,Transport,230009,Contract Hire,02/11/2022,4064723-2077,"1,024.13",KINGSWAY CABS LTD.
Children and Young Peoples Services,Head of Education and Skills,Transport,230008,Contract Hire,02/11/2022,4064723-2079,"2,320.00",KINGSWAY CABS LTD.
Children and Young Peoples Services,Head of Education and Skills,Transport,230008,Contract Hire,02/11/2022,4064723-2081,"2,880.00",KINGSWAY CABS LTD.
Children and Young Peoples Services,Head of Education and Skills,Transport,230008,Contract Hire,02/11/2022,4064743-INV10/2022-14,"3,270.00",MARK & JOHN CHISHOLM T/A (CHEVRON).
Children and Young Peoples Services,Head of Education and Skills,Transport,230008,Contract Hire,02/11/2022,4064743-INV10/2022-15,"2,003.16",MARK & JOHN CHISHOLM T/A (CHEVRON).
Children and Young Peoples Services,Head of Education and Skills,Transport,230005,Contract Hire,02/11/2022,4064915-18227,"3,177.00",WEARDALE MOTOR SERVICES LTD.
Children and Young Peoples Services,Head of Education and Skills,Transport,230008,Contract Hire,02/11/2022,4064548-00766,"3,488.00",REDACTED - PAYMENT TO INDIVIDUAL
Children and Young Peoples Services,Head of Education and Skills,Transport,230007,Contract Hire,02/11/2022,4064686-4409-OCT22,877.12,REDACTED - PAYMENT TO INDIVIDUAL
Children and Young Peoples Services,Head of Education and Skills,Transport,230009,Contract Hire,02/11/2022,4064686-7370-OCT22,"1,166.90",REDACTED - PAYMENT TO INDIVIDUAL
Adult and Health Services,Head of Adults,Transport,230005,Contract Hire,02/11/2022,4064686-CLS-OCT22,"1,107.20",REDACTED - PAYMENT TO INDIVIDUAL
Children and Young Peoples Services,Head of Education and Skills,Transport,230009,Contract Hire,02/11/2022,4064686-G001-OCT22,683.00,REDACTED - PAYMENT TO INDIVIDUAL
Children and Young Peoples Services,Head of Education and Skills,Transport,230008,Contract Hire,02/11/2022,4064707-M038-OCT22,"2,705.01",REDACTED - PAYMENT TO INDIVIDUAL
Children and Young Peoples Services,Head of Education and Skills,Transport,230008,Contract Hire,02/11/2022,4064707-S033-OCT22,"2,737.92",REDACTED - PAYMENT TO INDIVIDUAL
Children and Young Peoples Services,Head of Education and Skills,Transport,230008,Contract Hire,02/11/2022,4064759-DTR1/10-22,"2,070.40",REDACTED - PAYMENT TO INDIVIDUAL
Children and Young Peoples Services,Head of Education and Skills,Transport,230006,Contract Hire,02/11/2022,4064762-PEC22,810.00,REDACTED - PAYMENT TO INDIVIDUAL
Children and Young Peoples Services,Head of Education and Skills,Transport,230008,Contract Hire,02/11/2022,4064765-214474,"2,475.00",REDACTED - PAYMENT TO INDIVIDUAL
Children and Young Peoples Services,Head of Education and Skills,Transport,230035,Contract Hire,02/11/2022,4064765-214476,"1,471.24",REDACTED - PAYMENT TO INDIVIDUAL
Children and Young Peoples Services,Head of Education and Skills,Transport,230007,Contract Hire,02/11/2022,4064765-214775,876.73,REDACTED - PAYMENT TO INDIVIDUAL
Children and Young Peoples Services,Head of Education and Skills,Transport,230007,Contract Hire,02/11/2022,4064796-OCT22-5456,"1,540.00",REDACTED - PAYMENT TO INDIVIDUAL
Children and Young Peoples Services,Head of Education and Skills,Transport,230007,Contract Hire,02/11/2022,4064797-OCT22-4507,"2,400.00",REDACTED - PAYMENT TO INDIVIDUAL
Children and Young Peoples Services,Head of Education and Skills,Transport,230006,Contract Hire,02/11/2022,4064797-OCT22-F741,"2,319.37",REDACTED - PAYMENT TO INDIVIDUAL
Children and Young Peoples Services,Head of Education and Skills,Transport,230008,Contract Hire,02/11/2022,4064800-A028-OCT22,"4,642.24",REDACTED - PAYMENT TO INDIVIDUAL
Children and Young Peoples Services,Head of Education and Skills,Transport,230008,Contract Hire,02/11/2022,4064800-A191-OCT22,"3,839.36",REDACTED - PAYMENT TO INDIVIDUAL
Children and Young Peoples Services,Head of Education and Skills,Transport,230008,Contract Hire,02/11/2022,4064800-E007-OCT22,"1,602.30",REDACTED - PAYMENT TO INDIVIDUAL
Children and Young Peoples Services,Head of Education and Skills,Transport,230008,Contract Hire,02/11/2022,4064800-E014-OCT22,"1,844.55",REDACTED - PAYMENT TO INDIVIDUAL
Children and Young Peoples Services,Head of Education and Skills,Transport,230008,Contract Hire,02/11/2022,4064800-E025-OCT22,"2,005.05",REDACTED - PAYMENT TO INDIVIDUAL
Children and Young Peoples Services,Head of Education and Skills,Transport,230008,Contract Hire,02/11/2022,4064800-E051-OCT22,"2,159.70",REDACTED - PAYMENT TO INDIVIDUAL
Children and Young Peoples Services,Head of Education and Skills,Transport,230008,Contract Hire,02/11/2022,4064800-M066-OCT22,"1,900.96",REDACTED - PAYMENT TO INDIVIDUAL
Adult and Health Services,Head of Adults,Transport,230005,Contract Hire,02/11/2022,4064800-SED121-OCT22,"1,302.00",REDACTED - PAYMENT TO INDIVIDUAL
Adult and Health Services,Head of Adults,Transport,230005,Contract Hire,02/11/2022,4064800-SLD011-OCT22,"1,012.90",REDACTED - PAYMENT TO INDIVIDUAL
Adult and Health Services,Head of Adults,Transport,230005,Contract Hire,02/11/2022,4064880-DM223-OCT22,989.76,REDACTED - PAYMENT TO INDIVIDUAL
Children and Young Peoples Services,Head of Education and Skills,Transport,230006,Contract Hire,02/11/2022,4064880-F628-OCT22,"4,772.13",REDACTED - PAYMENT TO INDIVIDUAL
Adult and Health Services,Public Health CC0450,Third Party Payments,460803,Contract Payments,02/11/2022,4064654-7610020699,"31,028.00",GATESHEAD HEALTH NHS FOUNDATION TRUST.
Regeneration Economy and Growth,Culture Sport and Tourism,Premises,120021,Energy Costs,02/11/2022,4064690-16853,"5,101.40",IMPALA ESTATES LTD.
Neighbourhoods and Climate Change,Technical Services CM0300,Supplies and Services,304221,Equipment and Materials,02/11/2022,4064543-33712866,523.60,AGGREGATE INDUSTRIES UK LTD.
Neighbourhoods and Climate Change,Technical Services CM0300,Supplies and Services,304221,Equipment and Materials,02/11/2022,4064543-33725275,"1,626.59",AGGREGATE INDUSTRIES UK LTD.
Neighbourhoods and Climate Change,Technical Services CM0300,Supplies and Services,304221,Equipment and Materials,02/11/2022,4064543-33732617,"1,631.56",AGGREGATE INDUSTRIES UK LTD.
Neighbourhoods and Climate Change,Technical Services CM0300,Supplies and Services,304221,Equipment and Materials,02/11/2022,4064543-33738157,"1,475.85",AGGREGATE INDUSTRIES UK LTD.
Neighbourhoods and Climate Change,Technical Services CM0300,Supplies and Services,304221,Equipment and Materials,02/11/2022,4064543-33744056,"1,219.11",AGGREGATE INDUSTRIES UK LTD.
Neighbourhoods and Climate Change,Technical Services CM0300,Supplies and Services,304221,Equipment and Materials,02/11/2022,4064543-33750383,"1,578.55",AGGREGATE INDUSTRIES UK LTD.
Neighbourhoods and Climate Change,Technical Services CM0300,Supplies and Services,304221,Equipment and Materials,02/11/2022,4064543-33756372,"1,570.27",AGGREGATE INDUSTRIES UK LTD.
Neighbourhoods and Climate Change,Technical Services CM0300,Supplies and Services,304221,Equipment and Materials,02/11/2022,4064543-33756373,"2,770.24",AGGREGATE INDUSTRIES UK LTD.
Neighbourhoods and Climate Change,Technical Services CM0300,Supplies and Services,304221,Equipment and Materials,02/11/2022,4064543-33763314,819.92,AGGREGATE INDUSTRIES UK LTD.
Neighbourhoods and Climate Change,Technical Services CM0300,Supplies and Services,304358,Equipment and Materials,02/11/2022,4064551-0000037423,"1,365.00",AQUAJET DRAIN CLEANING LTD.
Neighbourhoods and Climate Change,Environmental Services,Supplies and Services,304252,Equipment and Materials,02/11/2022,4064560-1122025528,"1,366.22",ATLAS COPCO LTD T/A ATLAS COPCO COMPRESSORS.
Neighbourhoods and Climate Change,Technical Services CM0300,Supplies and Services,304358,Equipment and Materials,02/11/2022,4064565-MG08299,"3,660.00",BAILEY CONCRETE PUMPING LTD.
Neighbourhoods and Climate Change,Environmental Services,Supplies and Services,304259,Equipment and Materials,02/11/2022,4064580-3070298967,783.70,BOC LTD.
Neighbourhoods and Climate Change,Technical Services CM0300,Supplies and Services,304221,Equipment and Materials,02/11/2022,4064583-20953468,507.76,BREEDON TRADING LTD.
Regeneration Economy and Growth,Culture Sport and Tourism,Supplies and Services,304259,Equipment and Materials,02/11/2022,4064602-CN30220276,"1,054.02",CITRON HYGIENE UK LTD.
Regeneration Economy and Growth,Corporate Property and Land,Supplies and Services,304221,Equipment and Materials,02/11/2022,4064634-059-308387,"1,026.17",EDMUNDSON ELECTRICAL LTD.
Regeneration Economy and Growth,Corporate Property and Land,Supplies and Services,304221,Equipment and Materials,02/11/2022,4064634-059-308694,501.87,EDMUNDSON ELECTRICAL LTD.
Neighbourhoods and Climate Change,Technical Services CM0300,Supplies and Services,304221,Equipment and Materials,02/11/2022,4064639-2210\205,569.05,EPPLETON QUARRY PRODUCTS LTD.
Neighbourhoods and Climate Change,Environmental Services,Supplies and Services,304259,Equipment and Materials,02/11/2022,4064647-UK156374,580.32,FLOWBIRD SMART CITY UK LTD.
Neighbourhoods and Climate Change,Technical Services CM0300,Supplies and Services,304221,Equipment and Materials,02/11/2022,4064659-SI849881,"1,075.44",GLASDON UK LTD.
Neighbourhoods and Climate Change,Environmental Services,Supplies and Services,304221,Equipment and Materials,02/11/2022,4064687-8462,"4,300.00",IBA FABRICATIONS LTD.
Resources BK0010,Digital Services,Supplies and Services,304639,Equipment and Materials,02/11/2022,4064691-2100413956,989.37,INSIGHT DIRECT (UK) LTD.
Neighbourhoods and Climate Change,Technical Services CM0300,Supplies and Services,304358,Equipment and Materials,02/11/2022,4064697-0556/2022,500.00,J & JG GILL & SONS LTD.
Neighbourhoods and Climate Change,Technical Services CM0300,Supplies and Services,304358,Equipment and Materials,02/11/2022,4064713-32140,"1,087.80",JOHN R BUTTERFIELD LTD.
Neighbourhoods and Climate Change,Technical Services CM0300,Supplies and Services,304358,Equipment and Materials,02/11/2022,4064713-32152,"1,087.80",JOHN R BUTTERFIELD LTD.
Neighbourhoods and Climate Change,Technical Services CM0300,Supplies and Services,304358,Equipment and Materials,02/11/2022,4064713-32173,"1,008.00",JOHN R BUTTERFIELD LTD.
Neighbourhoods and Climate Change,Technical Services CM0300,Supplies and Services,304358,Equipment and Materials,02/11/2022,4064713-32174,"1,213.80",JOHN R BUTTERFIELD LTD.
Neighbourhoods and Climate Change,Technical Services CM0300,Supplies and Services,304358,Equipment and Materials,02/11/2022,4064713-32175,506.25,JOHN R BUTTERFIELD LTD.
Neighbourhoods and Climate Change,Technical Services CM0300,Supplies and Services,304358,Equipment and Materials,02/11/2022,4064713-32177,"1,248.00",JOHN R BUTTERFIELD LTD.
Neighbourhoods and Climate Change,Technical Services CM0300,Supplies and Services,304358,Equipment and Materials,02/11/2022,4064713-32178,"1,269.50",JOHN R BUTTERFIELD LTD.
Neighbourhoods and Climate Change,Technical Services CM0300,Supplies and Services,304358,Equipment and Materials,02/11/2022,4064713-32179,"1,142.75",JOHN R BUTTERFIELD LTD.
Neighbourhoods and Climate Change,Technical Services CM0300,Supplies and Services,304358,Equipment and Materials,02/11/2022,4064713-32180,"1,213.80",JOHN R BUTTERFIELD LTD.
Neighbourhoods and Climate Change,Technical Services CM0300,Supplies and Services,304358,Equipment and Materials,02/11/2022,4064713-32184,"1,106.30",JOHN R BUTTERFIELD LTD.
Neighbourhoods and Climate Change,Technical Services CM0300,Supplies and Services,304358,Equipment and Materials,02/11/2022,4064713-32185,"1,248.00",JOHN R BUTTERFIELD LTD.
Neighbourhoods and Climate Change,Technical Services CM0300,Supplies and Services,304358,Equipment and Materials,02/11/2022,4064713-32187,"1,269.50",JOHN R BUTTERFIELD LTD.
Neighbourhoods and Climate Change,Technical Services CM0300,Supplies and Services,304358,Equipment and Materials,02/11/2022,4064713-32188,"1,213.80",JOHN R BUTTERFIELD LTD.
Neighbourhoods and Climate Change,Technical Services CM0300,Supplies and Services,304358,Equipment and Materials,02/11/2022,4064713-32193,"1,142.75",JOHN R BUTTERFIELD LTD.
Regeneration Economy and Growth,Corporate Property and Land,Supplies and Services,304221,Equipment and Materials,02/11/2022,4064718-0303/00754841,"5,240.77",JT DOVE LTD.
Regeneration Economy and Growth,Culture Sport and Tourism,Supplies and Services,304337,Equipment and Materials,02/11/2022,4064741-4236090484,"2,058.50",MARES SPA.
Regeneration Economy and Growth,Corporate Property and Land,Supplies and Services,304221,Equipment and Materials,02/11/2022,4064753-0000107590,"1,803.00",MIKROFILL SYSTEMS LTD.
Neighbourhoods and Climate Change,Technical Services CM0300,Supplies and Services,304221,Equipment and Materials,02/11/2022,4064755-0045/30156307,949.35,MKM BUILDING SUPPLIES LTD.
Regeneration Economy and Growth,Corporate Property and Land,Supplies and Services,304259,Equipment and Materials,02/11/2022,4064782-887972,"2,032.00",NORTHERN TOOLS & ACCESSORIES.
Regeneration Economy and Growth,Corporate Property and Land,Supplies and Services,304259,Equipment and Materials,02/11/2022,4064782-893741,"1,558.20",NORTHERN TOOLS & ACCESSORIES.
Neighbourhoods and Climate Change,Technical Services CM0300,Supplies and Services,304221,Equipment and Materials,02/11/2022,4064816-243129,548.40,PUDSEY DIAMOND ENGINEERING LTD.
Regeneration Economy and Growth,Culture Sport and Tourism,Supplies and Services,304259,Equipment and Materials,02/11/2022,4064841-16343,771.19,SAFE SECURE LOCKER SERVICES LTD.
Neighbourhoods and Climate Change,Environmental Services,Supplies and Services,304221,Equipment and Materials,02/11/2022,4064857-SI-2821798,714.60,SPALDINGS (UK) LTD.
Neighbourhoods and Climate Change,Technical Services CM0300,Supplies and Services,304221,Equipment and Materials,02/11/2022,4064866-32742,563.96,STONEGRAVE AGGREGATES LTD.
Regeneration Economy and Growth,Corporate Property and Land,Supplies and Services,304221,Equipment and Materials,02/11/2022,4064872-893456,"3,885.40",T CROSSLING & CO LTD.
Neighbourhoods and Climate Change,Environmental Services,Supplies and Services,304259,Equipment and Materials,02/11/2022,4064887-111883,795.00,TOTAL RENTAL SOLUTIONS LTD.
Neighbourhoods and Climate Change,Technical Services CM0300,Supplies and Services,304221,Equipment and Materials,02/11/2022,4064890-139609,724.50,TP ELECTRICAL SUPPLIES & FIXINGS LTD.
Neighbourhoods and Climate Change,Environmental Services,Supplies and Services,304259,Equipment and Materials,02/11/2022,4064892-IN0219237,"1,416.80",TUDOR (UK) LTD T/A TUDOR ENVIRONMENTAL.
Regeneration Economy and Growth,Planning & Housing,Supplies and Services,304245,Equipment and Materials,02/11/2022,4064893-CD970000132,"7,794.00",TUNSTALL HEALTHCARE (UK) LTD.
Neighbourhoods and Climate Change,Technical Services CM0300,Supplies and Services,304221,Equipment and Materials,02/11/2022,4064895-238806,746.84,TYNEDALE ROADSTONE LTD.
Neighbourhoods and Climate Change,Technical Services CM0300,Supplies and Services,304221,Equipment and Materials,02/11/2022,4064895-238808,"1,492.29",TYNEDALE ROADSTONE LTD.
Neighbourhoods and Climate Change,Technical Services CM0300,Supplies and Services,304221,Equipment and Materials,02/11/2022,4064895-238812,"1,484.84",TYNEDALE ROADSTONE LTD.
Neighbourhoods and Climate Change,Technical Services CM0300,Supplies and Services,304221,Equipment and Materials,02/11/2022,4064895-238817,583.39,TYNEDALE ROADSTONE LTD.
Neighbourhoods and Climate Change,Technical Services CM0300,Supplies and Services,304221,Equipment and Materials,02/11/2022,4064895-238820,"1,593.61",TYNEDALE ROADSTONE LTD.
Neighbourhoods and Climate Change,Technical Services CM0300,Supplies and Services,304221,Equipment and Materials,02/11/2022,4064895-238823,"1,346.89",TYNEDALE ROADSTONE LTD.
Neighbourhoods and Climate Change,Technical Services CM0300,Supplies and Services,304221,Equipment and Materials,02/11/2022,4064895-238824,977.63,TYNEDALE ROADSTONE LTD.
Neighbourhoods and Climate Change,Technical Services CM0300,Supplies and Services,304221,Equipment and Materials,02/11/2022,4064895-238826,"1,575.73",TYNEDALE ROADSTONE LTD.
Neighbourhoods and Climate Change,Technical Services CM0300,Supplies and Services,304221,Equipment and Materials,02/11/2022,4064895-239083,"1,627.19",TYNEDALE ROADSTONE LTD.
Regeneration Economy and Growth,Corporate Property and Land,Supplies and Services,304221,Equipment and Materials,02/11/2022,4064924-1019645,"1,519.40",YOUR NRG LTD.
Dedicated Schools Grant BG0015,DSG High Needs Block,Supplies and Services,304259,Equipment and Materials,02/11/2022,4064705-400877,"2,891.00",JENX LTD T/A JIRAFFE.
Regeneration Economy and Growth,Corporate Property and Land,Supplies and Services,304221,Equipment and Materials,02/11/2022,4064885-SIP-302285,537.54,TK ACCESS SOLUTIONS LTD.
Children and Young Peoples Services,Head of Childrens Social Care,Supplies and Services,308013,Furniture,02/11/2022,4064566-100278,"1,547.97",BAILEYS BLINDS LTD.
Resources BK0010,Procurement Sales & Business Services,Supplies and Services,308011,Furniture,02/11/2022,4064789-0000187896,660.70,ONLINE ERGONOMICS LTD.
Regeneration Economy and Growth,Economic Development Level C,Fees,901001,Internal fees,02/11/2022,4064840-RES-11-2022-002,"25,370.72",SACRISTON ENTERPRISE WORKSHOPS CIC.
Regeneration Economy and Growth,Business Durham CL0850,Supplies and Services,384899,Miscellaneous Expenses,02/11/2022,4064564-1543,"3,333.33",B2B NORTH LTD.
Resources BK0010,Transactional & Customer Services,Supplies and Services,384180,Miscellaneous Expenses,02/11/2022,4064735-0503005,"3,149.07",LOOMIS UK LTD.
Resources BK0010,Transactional & Customer Services,Supplies and Services,384180,Miscellaneous Expenses,02/11/2022,4064736-0499098,"3,384.07",LOOMIS UK LTD.
Children and Young Peoples Services,Head of Early Help Inclusion & Vulnerable Children.,Supplies and Services,384199,Miscellaneous Expenses,02/11/2022,4064774-AAF17778,800.00,NCFE.
Regeneration Economy and Growth,Culture Sport and Tourism,Supplies and Services,384199,Miscellaneous Expenses,02/11/2022,4064783-00022332,539.52,NSL LTD.
Regeneration Economy and Growth,Corporate Property and Land,Supplies and Services,384199,Miscellaneous Expenses,02/11/2022,4064799-DCC006,"1,755.00",PEARSONS DEVELOPMENT & PROPERTY SERVICES LIMITED.
Neighbourhoods and Climate Change,Environmental Services,Supplies and Services,384199,Miscellaneous Expenses,02/11/2022,4064822-0000057371,"1,240.00",RA DALTON LTD.
Children and Young Peoples Services,Head of Education and Skills,Supplies and Services,384199,Miscellaneous Expenses,02/11/2022,4064624-004/2022,880.00,REDACTED - PAYMENT TO INDIVIDUAL
Regeneration Economy and Growth,Culture Sport and Tourism,Supplies and Services,384199,Miscellaneous Expenses,02/11/2022,4064715-JT22/MS0014,"6,600.00",REDACTED - PAYMENT TO INDIVIDUAL
Regeneration Economy and Growth,Transport and Contracted Services,Supplies and Services,384199,Miscellaneous Expenses,02/11/2022,4064764-DRS/TRAINING/BAB-OCT,510.00,REDACTED - PAYMENT TO INDIVIDUAL
Regeneration Economy and Growth,Transport and Contracted Services,Supplies and Services,384540,Miscellaneous Expenses,02/11/2022,4064576-10264,"1,874.00",BISSELL DISPLAY.
Children and Young Peoples Services,Head of Early Help Inclusion & Vulnerable Children.,Supplies and Services,384302,Miscellaneous Expenses,02/11/2022,4064650-00031,680.00,FREESTYLE FOOTBALL WORKSHOPS LTD.
Children and Young Peoples Services,Head of Education and Skills,Supplies and Services,384199,Miscellaneous Expenses,02/11/2022,4064791-2022/23-08,"5,000.00",ORCHESTRAS LIVE.
Children and Young Peoples Services,Head of Early Help Inclusion & Vulnerable Children.,Supplies and Services,384871,Miscellaneous Expenses,02/11/2022,4064891-INUK12634,894.30,TRIPLE P UK LTD.
Regeneration Economy and Growth,Culture Sport and Tourism,Supplies and Services,384199,Miscellaneous Expenses,02/11/2022,4064592-000461,"13,500.00",CARLO VIGLIANISI T/A BUILDING CULTURE CIC.
Children and Young Peoples Services,Head of Childrens Social Care,Third Party Payments,440046,Other third party payments E440,02/11/2022,4064814-KY,"131,984.46",PROTECTIVE CARE GROUP LTD.
Regeneration Economy and Growth,Communications Management,Supplies and Services,332029,Printing Stationery and Gen Off Exps,02/11/2022,4064542-72916,"22,375.55",ACORN WEB OFFSET LTD.
Children and Young Peoples Services,Head of Early Help Inclusion & Vulnerable Children.,Supplies and Services,324500,Provisions E324,02/11/2022,4064617-24770,"19,193.22",CREATIVE MANAGEMENT SERVICES LTD.
Children and Young Peoples Services,Head of Education and Skills,Transport,235005,Public Transport,02/11/2022,4064554-118477,"8,255.00",ARRIVA NORTHUMBRIA LTD.
Regeneration Economy and Growth,Corporate Property and Land,Third Party Payments,430100,Rendered by Private Contractors,02/11/2022,4064547-AEL1801,"1,766.23",AMELIO ENTERPRISES LTD.
Regeneration Economy and Growth,Corporate Property and Land,Third Party Payments,430100,Rendered by Private Contractors,02/11/2022,4064608-4497/CCS1933,"30,176.96",COMPLETE CLADDING SYSTEMS LTD.
Neighbourhoods and Climate Change,Technical Services CM0300,Third Party Payments,430100,Rendered by Private Contractors,02/11/2022,4064681-3452,"5,771.00",HIGHWAY CONSTRUCTION SERVICES LTD.
Neighbourhoods and Climate Change,Environmental Services,Third Party Payments,430100,Rendered by Private Contractors,02/11/2022,4064732-151554,667.63,LIFTING & COOLING LTD.
Neighbourhoods and Climate Change,Environmental Services,Third Party Payments,430100,Rendered by Private Contractors,02/11/2022,4064771-14754,"1,376.39",N1 JETTING SYSTEMS LTD.
Neighbourhoods and Climate Change,Community Protection,Third Party Payments,430100,Rendered by Private Contractors,02/11/2022,4064781-250004415,"1,000.00",NORTH YORKSHIRE COUNTY COUNCIL.
Neighbourhoods and Climate Change,Environmental Services,Third Party Payments,430100,Rendered by Private Contractors,02/11/2022,4064813-11504,"1,269.91",PROBE INDUSTRIES LTD.
Neighbourhoods and Climate Change,Technical Services CM0300,Third Party Payments,430100,Rendered by Private Contractors,02/11/2022,4064818-14544,"15,478.33",QUANTUM POWER CONNECTIONS LTD.
Neighbourhoods and Climate Change,Environmental Services,Third Party Payments,430100,Rendered by Private Contractors,02/11/2022,4064829-486869,"1,083.15",RICKERBY LTD.
Neighbourhoods and Climate Change,Technical Services CM0300,Third Party Payments,430100,Rendered by Private Contractors,02/11/2022,4064848-23967,"46,936.00",SEYMOUR (CIVIL ENGINEERING CONTRACTORS) LTD.
Regeneration Economy and Growth,Corporate Property and Land,Third Party Payments,430100,Rendered by Private Contractors,02/11/2022,4064859-8254,"4,780.56",ST ASTIER LTD.
Regeneration Economy and Growth,Corporate Property and Land,Third Party Payments,430100,Rendered by Private Contractors,02/11/2022,4064884-TIS1692,"1,165.58",TIS (NGA) LTD.
Neighbourhoods and Climate Change,Environmental Services,Third Party Payments,430100,Rendered by Private Contractors,02/11/2022,4064746-1336,"4,840.00",REDACTED - PAYMENT TO INDIVIDUAL
Regeneration Economy and Growth,Culture Sport and Tourism,Third Party Payments,430131,Rendered by Private Contractors,02/11/2022,4064751-2022037,991.00,REDACTED - PAYMENT TO INDIVIDUAL
Regeneration Economy and Growth,Corporate Property and Land,Third Party Payments,430100,Rendered by Private Contractors,02/11/2022,4064766-DCC256,"1,500.00",REDACTED - PAYMENT TO INDIVIDUAL
Regeneration Economy and Growth,Corporate Property and Land,Third Party Payments,430100,Rendered by Private Contractors,02/11/2022,4064766-DCC257,"1,200.00",REDACTED - PAYMENT TO INDIVIDUAL
Regeneration Economy and Growth,Corporate Property and Land,Third Party Payments,430100,Rendered by Private Contractors,02/11/2022,4064766-DCC258,"1,500.00",REDACTED - PAYMENT TO INDIVIDUAL
Regeneration Economy and Growth,Corporate Property and Land,Third Party Payments,430100,Rendered by Private Contractors,02/11/2022,4064766-DCC259,"1,500.00",REDACTED - PAYMENT TO INDIVIDUAL
Regeneration Economy and Growth,Transport and Contracted Services,Third Party Payments,430106,Rendered by Private Contractors,02/11/2022,4064821-2139,"4,517.76",REDACTED - PAYMENT TO INDIVIDUAL
Regeneration Economy and Growth,Transport and Contracted Services,Third Party Payments,430106,Rendered by Private Contractors,02/11/2022,4064554-118903,"5,900.00",ARRIVA NORTHUMBRIA LTD.
Neighbourhoods and Climate Change,Environmental Services,Third Party Payments,430100,Rendered by Private Contractors,02/11/2022,4064876-SIP-86486,861.46,TH WHITE LTD - PALFINGER UK.
Neighbourhoods and Climate Change,Environmental Services,Third Party Payments,430100,Rendered by Private Contractors,02/11/2022,4064876-SIP-86506,"3,766.72",TH WHITE LTD - PALFINGER UK.
Children and Young Peoples Services,Head of Childrens Social Care,Third Party Payments,425041,Rendered by Voluntary Organisations,02/11/2022,4064780-26946591,"9,000.00",NORTH TYNESIDE COUNCIL.
Neighbourhoods and Climate Change,Environmental Services,Transport,210057,Repair and Maintenance of Vehicles,02/11/2022,4064568-35232914,"1,382.06",BELL TRUCK SALES LTD T/A BELL TRUCK & VAN.
Neighbourhoods and Climate Change,Environmental Services,Transport,215005,Running Costs of Vehicles,02/11/2022,4064924-1019841,"24,054.23",YOUR NRG LTD.
Neighbourhoods and Climate Change,Environmental Services,Transport,215005,Running Costs of Vehicles,02/11/2022,4064924-1019843,"3,031.83",YOUR NRG LTD.
Neighbourhoods and Climate Change,Environmental Services,Transport,215005,Running Costs of Vehicles,02/11/2022,4064924-1019849,"11,305.56",YOUR NRG LTD.
Neighbourhoods and Climate Change,Environmental Services,Transport,215005,Running Costs of Vehicles,02/11/2022,4064924-1019852,"7,522.00",YOUR NRG LTD.
Neighbourhoods and Climate Change,Environmental Services,Transport,215005,Running Costs of Vehicles,02/11/2022,4064924-1023717,"18,428.40",YOUR NRG LTD.
Regeneration Economy and Growth,Corporate Property and Land,Premises,108099,Service Repairs and Maintenance,02/11/2022,4064920-CC/036100-06/09/2022,"4,000.00",WOLSINGHAM LOGS.
Children and Young Peoples Services,Head of Early Help Inclusion & Vulnerable Children.,Premises,108251,Service Repairs and Maintenance,02/11/2022,4064747-09977,987.80,MC PRODUCTS UK LTD.
Regeneration Economy and Growth,Culture Sport and Tourism,Supplies and Services,338047,Services,02/11/2022,4064562-INV793193,"5,258.13",AVALON PROMOTIONS LTD.
Regeneration Economy and Growth,Economic Development Level C,Supplies and Services,338066,Services,02/11/2022,4064579-SIN037737,"4,000.00",BLOOM PROCUREMENT SERVICES LTD (FORMERLY NEPRO LTD).
Regeneration Economy and Growth,Business Durham CL0850,Supplies and Services,338027,Services,02/11/2022,4064586-I/2210/1061/002,"4,950.00",BRYCE SPACE & TECHNOLOGY LTD T/A BRYCETECH.
Children and Young Peoples Services,Head of Childrens Social Care,Supplies and Services,338043,Services,02/11/2022,4064628-LJB/70773/1,"4,227.99",DMA LAW LTD.
Resources BK0010,Digital Services,Supplies and Services,338027,Services,02/11/2022,4064666-20803,825.00,GOSS INTERACTIVE LTD.
Regeneration Economy and Growth,Planning & Housing,Supplies and Services,338045,Services,02/11/2022,4064722-491269-17/10/22,"3,125.00",KINGS CHAMBERS.
Regeneration Economy and Growth,Planning & Housing,Supplies and Services,338045,Services,02/11/2022,4064722-497174-160922,750.00,KINGS CHAMBERS.
Regeneration Economy and Growth,Planning & Housing,Supplies and Services,338045,Services,02/11/2022,4064722-498332-171022,"2,250.00",KINGS CHAMBERS.
Adult and Health Services,Public Health CC0450,Supplies and Services,338099,Services,02/11/2022,4064809-900975867,"1,116.00",PORTAKABIN LTD.
Neighbourhoods and Climate Change,Environmental Services,Supplies and Services,338027,Services,02/11/2022,4064854-0000989488,"1,869.31",SOCOTEC UK LTD.
Resources BK0010,HR & Employee Services,Supplies and Services,338094,Services,02/11/2022,4064878-6863,706.00,THE DURHAM CENTRE LTD.
Resources BK0010,HR & Employee Services,Supplies and Services,338094,Services,02/11/2022,4064878-6865,756.25,THE DURHAM CENTRE LTD.
Regeneration Economy and Growth,Business Durham CL0850,Supplies and Services,338066,Services,02/11/2022,4064900-63489,927.00,UNW LLP.
Children and Young Peoples Services,Head of Education and Skills,Supplies and Services,338078,Services,02/11/2022,4064907-INV-52657,577.50,VISTECH SERVICES LTD.
Regeneration Economy and Growth,Culture Sport and Tourism,Supplies and Services,338047,Services,02/11/2022,4064912-23096333,617.67,WARNER BROS ENTERTAINMENT UK LTD.
Regeneration Economy and Growth,Culture Sport and Tourism,Supplies and Services,338047,Services,02/11/2022,4064921-INV-0065,"21,500.00",WRONGSEMBLE.
Regeneration Economy and Growth,Culture Sport and Tourism,Supplies and Services,338047,Services,02/11/2022,4064638-GALA71,"5,320.00",REDACTED - PAYMENT TO INDIVIDUAL
Neighbourhoods and Climate Change,Environmental Services,Supplies and Services,338099,Services,02/11/2022,4064763-SI-18,710.00,REDACTED - PAYMENT TO INDIVIDUAL
Resources BK0010,Legal & Democratic Services,Supplies and Services,338045,Services,02/11/2022,4064882-6149882862,"4,620.00",THOMSON REUTERS.
Regeneration Economy and Growth,Culture Sport and Tourism,Supplies and Services,338047,Services,02/11/2022,4064909-PP2212,"7,082.31",REDACTED - PAYMENT TO INDIVIDUAL
Children and Young Peoples Services,Head of Childrens Social Care,Supplies and Services,338045,Services,02/11/2022,4064834-2221,936.00,REDACTED - PAYMENT TO INDIVIDUAL
Neighbourhoods and Climate Change,Technical Services CM0300,Stock A926,926900,Stock in hand-Inventory system,02/11/2022,4064645-143902,"38,875.00",FABRIKAT (NOTTINGHAM) LTD.
Neighbourhoods and Climate Change,Technical Services CM0300,Stock A926,926900,Stock in hand-Inventory system,02/11/2022,4064692-858251,"2,654.40",INSTARMAC GROUP PLC.
Neighbourhoods and Climate Change,Technical Services CM0300,Stock A926,926900,Stock in hand-Inventory system,02/11/2022,4064718-0113/00764957,"1,106.40",JT DOVE LTD.
Neighbourhoods and Climate Change,Technical Services CM0300,Stock A926,926900,Stock in hand-Inventory system,02/11/2022,4064881-NSIN00083729,"6,709.23",THOMAS OWEN & SONS (NEWCASTLE) LTD.
Neighbourhoods and Climate Change,Technical Services CM0300,Stock A926,926900,Stock in hand-Inventory system,02/11/2022,4064887-112024,"1,600.00",TOTAL RENTAL SOLUTIONS LTD.
Neighbourhoods and Climate Change,Technical Services CM0300,Stock A926,926900,Stock in hand-Inventory system,02/11/2022,4064887-112025,805.50,TOTAL RENTAL SOLUTIONS LTD.
Neighbourhoods and Climate Change,Technical Services CM0300,Stock A926,926900,Stock in hand-Inventory system,02/11/2022,4064887-112026,"1,272.65",TOTAL RENTAL SOLUTIONS LTD.
Neighbourhoods and Climate Change,Technical Services CM0300,Stock A926,926900,Stock in hand-Inventory system,02/11/2022,4064887-112027,"1,320.00",TOTAL RENTAL SOLUTIONS LTD.
Neighbourhoods and Climate Change,Technical Services CM0300,Stock A926,926900,Stock in hand-Inventory system,02/11/2022,4064887-112028,"1,923.56",TOTAL RENTAL SOLUTIONS LTD.
Resources BK0010,Digital Services,Stock A926,926900,Stock in hand-Inventory system,02/11/2022,4064922-LC90006,701.34,XMA LTD.
Neighbourhoods and Climate Change,Technical Services CM0300,Stock A926,926900,Stock in hand-Inventory system,02/11/2022,4064925-145499631,"6,076.00",ZG LIGHTING (UK) LTD.
Resources BK0010,Legal & Democratic Services,Supplies and Services,372009,Subscriptions E372,02/11/2022,4064559-04476,572.00,ASSOCIATION OF DEMOCRATIC SERVICES OFFICERS (ADSO).
Resources BK0010,Digital Services,Supplies and Services,344135,Telephones,02/11/2022,4064871-142434,"1,407.40",SWITCHSHOP LTD.
Regeneration Economy and Growth,REG - Central Costs,Supplies and Services,336005,Advertising E336,03/11/2022,4065146-41301059,700.00,NEWSQUEST (YORKSHIRE & NORTH EAST) LTD.
Regeneration Economy and Growth,Corporate Property and Land,Premises,145023,Cleaning and Domestic Supplies,03/11/2022,4065065-06/194376,546.69,GREENHAM TRADING LTD.
Resources BK0010,Digital Services,Vehicles Equipment Furniture and Fittings,912701,Computer equipment,03/11/2022,4065145-SI-5663,890.00,NEWLANDMEDIA LTD.
Regeneration Economy and Growth,Corporate Property and Land,Supplies and Services,342051,Computers and Communications,03/11/2022,4064949-IN-013-018786,541.22,ARGUS SOFTWARE (UK) LTD.
Resources BK0010,Transactional & Customer Services,Supplies and Services,352001,Conference Expenses,03/11/2022,4065002-40132,780.00,COUNTY COUNCILS NETWORK.
Children and Young Peoples Services,Head of Early Help Inclusion & Vulnerable Children.,Supplies and Services,352001,Conference Expenses,03/11/2022,4065157-2441,875.00,NORTHERN GUILD LTD (PSYCHOTHERAPY & COUNSELLING).
Children and Young Peoples Services,Head of Early Help Inclusion & Vulnerable Children.,Supplies and Services,352001,Conference Expenses,03/11/2022,4065246-12832,"1,750.00",THE NO WAY TRUST LTD.
Children and Young Peoples Services,Head of Education and Skills,Construction work A908,908105,Construction work,03/11/2022,4065045-22037478,"45,494.53",FAITHFUL & GOULD LTD.*
Neighbourhoods and Climate Change,Technical Services CM0300,Construction work A908,908105,Construction work,03/11/2022,4065087-27033,"3,694.53",JACK COUPE & SONS LTD T/A COUPE LINE.
Neighbourhoods and Climate Change,Environmental Services,Fees,901002,Professional fees 901002,03/11/2022,4065019-64023496,"2,900.00",DESCO (DESIGN & CONSULTANCY) LTD.
Regeneration Economy and Growth,Planning & Housing,Fees,901002,Professional fees 901002,03/11/2022,4065085-5163,"6,338.00",J HUMPHREY & PARTNERS LTD.
Neighbourhoods and Climate Change,Environmental Services,Fees,901002,Professional fees 901002,03/11/2022,4065085-5166,500.00,J HUMPHREY & PARTNERS LTD.
Children and Young Peoples Services,Head of Childrens Social Care,Transport,230005,Contract Hire,03/11/2022,4065230-SI-1928,695.00,REDACTED - PAYMENT TO INDIVIDUAL
Children and Young Peoples Services,Head of Childrens Social Care,Transport,230005,Contract Hire,03/11/2022,4065230-SI-1929,762.00,REDACTED - PAYMENT TO INDIVIDUAL
Children and Young Peoples Services,Head of Childrens Social Care,Transport,230005,Contract Hire,03/11/2022,4065230-SI-1930,695.00,REDACTED - PAYMENT TO INDIVIDUAL
Children and Young Peoples Services,Head of Childrens Social Care,Transport,230005,Contract Hire,03/11/2022,4065230-SI-1971,505.50,REDACTED - PAYMENT TO INDIVIDUAL
Children and Young Peoples Services,Head of Childrens Social Care,Transport,230005,Contract Hire,03/11/2022,4065230-SI-2000,740.00,REDACTED - PAYMENT TO INDIVIDUAL
Children and Young Peoples Services,Head of Childrens Social Care,Transport,230005,Contract Hire,03/11/2022,4065230-SI-2001,740.00,REDACTED - PAYMENT TO INDIVIDUAL
Children and Young Peoples Services,Head of Childrens Social Care,Transport,230005,Contract Hire,03/11/2022,4065230-SI-2002,740.00,REDACTED - PAYMENT TO INDIVIDUAL
Children and Young Peoples Services,Head of Childrens Social Care,Transport,230005,Contract Hire,03/11/2022,4065230-SI-2003,592.00,REDACTED - PAYMENT TO INDIVIDUAL
Children and Young Peoples Services,Head of Childrens Social Care,Transport,230005,Contract Hire,03/11/2022,4065230-SI-2004,735.00,REDACTED - PAYMENT TO INDIVIDUAL
Children and Young Peoples Services,Head of Childrens Social Care,Transport,230005,Contract Hire,03/11/2022,4065230-SI-2013,695.00,REDACTED - PAYMENT TO INDIVIDUAL
Children and Young Peoples Services,Head of Childrens Social Care,Transport,230005,Contract Hire,03/11/2022,4065230-SI-2014,695.00,REDACTED - PAYMENT TO INDIVIDUAL
Children and Young Peoples Services,Head of Childrens Social Care,Transport,230005,Contract Hire,03/11/2022,4065230-SI-2015,762.00,REDACTED - PAYMENT TO INDIVIDUAL
Children and Young Peoples Services,Head of Childrens Social Care,Transport,230005,Contract Hire,03/11/2022,4065230-SI-2016,556.00,REDACTED - PAYMENT TO INDIVIDUAL
Adult and Health Services,Public Health CC0450,Third Party Payments,460803,Contract Payments,03/11/2022,4065076-SI-HK-000191,"374,752.00",HUMANKIND CHARITY.
Adult and Health Services,Public Health CC0450,Third Party Payments,460803,Contract Payments,03/11/2022,4065160-7550004335,"90,324.00",NORTHUMBRIA HEALTHCARE NHS FOUNDATION TRUST.
Neighbourhoods and Climate Change,Partnerships & Community Engagement Div.,Cap Exp on Grants & Other Financial Assistance (REFCUS),918004,Contributions to other bodies 918004,03/11/2022,4065147-VOUCHER22AB-GAMP012,"8,863.00",NEWTON AYCLIFFE YOUTH & COMMUNITY CENTRE.
Neighbourhoods and Climate Change,Partnerships & Community Engagement Div.,Cap Exp on Grants & Other Financial Assistance (REFCUS),918004,Contributions to other bodies 918004,03/11/2022,4065233-VOUCHER22NB-3TWN016,"2,517.00",SUNNISIDE COMMUNITY ASSOCIATION.
Neighbourhoods and Climate Change,Partnerships & Community Engagement Div.,Cap Exp on Grants & Other Financial Assistance (REFCUS),918004,Contributions to other bodies 918004,03/11/2022,4064954-VOUCHER22NB-GAMP006,"2,179.00",AYCLIFFE & DISTRICT BUS PRESERVATION SOCIETY.
Neighbourhoods and Climate Change,Partnerships & Community Engagement Div.,Cap Exp on Grants & Other Financial Assistance (REFCUS),918004,Contributions to other bodies 918004,03/11/2022,4065047-VOUCHER22NB-4TOG009,"3,549.00",FERRYHILL TOWN COUNCIL.
Regeneration Economy and Growth,Culture Sport and Tourism,Premises,120009,Energy Costs,03/11/2022,4065079-16864,797.41,IMPALA ESTATES LTD.
Neighbourhoods and Climate Change,Technical Services CM0300,Supplies and Services,304358,Equipment and Materials,03/11/2022,4064947-0000037451,"1,365.00",AQUAJET DRAIN CLEANING LTD.
Adult and Health Services,Head of Adults,Supplies and Services,304516,Equipment and Materials,03/11/2022,4064960-INV-652,"1,225.00",BILL SCOTT TAXIS LTD.
Neighbourhoods and Climate Change,Technical Services CM0300,Supplies and Services,304221,Equipment and Materials,03/11/2022,4064966-20959536,667.90,BREEDON TRADING LTD.
Neighbourhoods and Climate Change,Technical Services CM0300,Supplies and Services,304221,Equipment and Materials,03/11/2022,4064966-20960791,778.25,BREEDON TRADING LTD.
Resources BK0010,Digital Services,Supplies and Services,304303,Equipment and Materials,03/11/2022,4064971-SINV00211070,"2,774.20",BUSINESS IT SUPPORT TEAM LTD (BIST).
Neighbourhoods and Climate Change,Technical Services CM0300,Supplies and Services,304358,Equipment and Materials,03/11/2022,4064985-1898,"4,132.20",CG SIMPSON & SON.
Regeneration Economy and Growth,Corporate Property and Land,Supplies and Services,304221,Equipment and Materials,03/11/2022,4065020-950255,"5,013.57",DEXTRA LIGHTING LTD.
Regeneration Economy and Growth,Corporate Property and Land,Supplies and Services,304221,Equipment and Materials,03/11/2022,4065038-059-308310,790.05,EDMUNDSON ELECTRICAL LTD.
Neighbourhoods and Climate Change,Technical Services CM0300,Supplies and Services,304357,Equipment and Materials,03/11/2022,4065054-DCC091022,"18,733.80",GAP GROUP LTD.
Neighbourhoods and Climate Change,Technical Services CM0300,Supplies and Services,304358,Equipment and Materials,03/11/2022,4065086-5306657,"1,582.50",JA GILSON (AGRICULTURAL CONTRACTORS) LTD.
Neighbourhoods and Climate Change,Technical Services CM0300,Supplies and Services,304358,Equipment and Materials,03/11/2022,4065086-5306658,"1,644.50",JA GILSON (AGRICULTURAL CONTRACTORS) LTD.
Neighbourhoods and Climate Change,Technical Services CM0300,Supplies and Services,304358,Equipment and Materials,03/11/2022,4065086-5306659,"1,023.00",JA GILSON (AGRICULTURAL CONTRACTORS) LTD.
Neighbourhoods and Climate Change,Environmental Services,Supplies and Services,304358,Equipment and Materials,03/11/2022,4065096-32150,970.20,JOHN R BUTTERFIELD LTD.
Neighbourhoods and Climate Change,Technical Services CM0300,Supplies and Services,304358,Equipment and Materials,03/11/2022,4065096-32153,"2,376.00",JOHN R BUTTERFIELD LTD.
Neighbourhoods and Climate Change,Environmental Services,Supplies and Services,304221,Equipment and Materials,03/11/2022,4065100-0113/00780983,518.40,JT DOVE LTD.
Neighbourhoods and Climate Change,Technical Services CM0300,Supplies and Services,304221,Equipment and Materials,03/11/2022,4065100-0303/00779815,763.20,JT DOVE LTD.
Neighbourhoods and Climate Change,Technical Services CM0300,Supplies and Services,304358,Equipment and Materials,03/11/2022,4065102-4284,821.75,KEVIN SNOWDON GROUNDWORKS LTD.
Neighbourhoods and Climate Change,Technical Services CM0300,Supplies and Services,304358,Equipment and Materials,03/11/2022,4065102-4285,913.90,KEVIN SNOWDON GROUNDWORKS LTD.
Neighbourhoods and Climate Change,Technical Services CM0300,Supplies and Services,304358,Equipment and Materials,03/11/2022,4065102-4286,913.90,KEVIN SNOWDON GROUNDWORKS LTD.
Neighbourhoods and Climate Change,Technical Services CM0300,Supplies and Services,304358,Equipment and Materials,03/11/2022,4065102-4287,728.65,KEVIN SNOWDON GROUNDWORKS LTD.
Neighbourhoods and Climate Change,Technical Services CM0300,Supplies and Services,304358,Equipment and Materials,03/11/2022,4065102-4288,913.90,KEVIN SNOWDON GROUNDWORKS LTD.
Neighbourhoods and Climate Change,Technical Services CM0300,Supplies and Services,304358,Equipment and Materials,03/11/2022,4065102-4289,913.90,KEVIN SNOWDON GROUNDWORKS LTD.
Neighbourhoods and Climate Change,Technical Services CM0300,Supplies and Services,304358,Equipment and Materials,03/11/2022,4065117-MS3871,"1,326.60",M SPENCE SURFACING LTD.
Neighbourhoods and Climate Change,Technical Services CM0300,Supplies and Services,304358,Equipment and Materials,03/11/2022,4065117-MS3887,"1,395.00",M SPENCE SURFACING LTD.
Neighbourhoods and Climate Change,Technical Services CM0300,Supplies and Services,304358,Equipment and Materials,03/11/2022,4065117-MS3888,871.20,M SPENCE SURFACING LTD.
Neighbourhoods and Climate Change,Technical Services CM0300,Supplies and Services,304358,Equipment and Materials,03/11/2022,4065117-MS3908,702.00,M SPENCE SURFACING LTD.
Neighbourhoods and Climate Change,Technical Services CM0300,Supplies and Services,304358,Equipment and Materials,03/11/2022,4065117-MS3909,630.00,M SPENCE SURFACING LTD.
Neighbourhoods and Climate Change,Technical Services CM0300,Supplies and Services,304358,Equipment and Materials,03/11/2022,4065141-NC/213/BW,"1,100.00",NEDCO CONTRACTS (NE) LTD.
Regeneration Economy and Growth,Corporate Property and Land,Supplies and Services,304221,Equipment and Materials,03/11/2022,4065159-884642,784.76,NORTHERN TOOLS & ACCESSORIES.
Neighbourhoods and Climate Change,Environmental Services,Supplies and Services,304259,Equipment and Materials,03/11/2022,4065184-2123025288,"1,625.00",PRECIA-MOLEN UK LTD T/A SHERING WEIGHING LTD.
Neighbourhoods and Climate Change,Technical Services CM0300,Supplies and Services,304358,Equipment and Materials,03/11/2022,4065206-3384,630.00,S & R LANDSCAPES.
Neighbourhoods and Climate Change,Technical Services CM0300,Supplies and Services,304358,Equipment and Materials,03/11/2022,4065206-3396,950.50,S & R LANDSCAPES.
Neighbourhoods and Climate Change,Technical Services CM0300,Supplies and Services,304358,Equipment and Materials,03/11/2022,4065206-3398,869.00,S & R LANDSCAPES.
Neighbourhoods and Climate Change,Technical Services CM0300,Supplies and Services,304358,Equipment and Materials,03/11/2022,4065206-3399,"1,100.20",S & R LANDSCAPES.
Neighbourhoods and Climate Change,Technical Services CM0300,Supplies and Services,304358,Equipment and Materials,03/11/2022,4065206-3400,"1,167.90",S & R LANDSCAPES.
Neighbourhoods and Climate Change,Technical Services CM0300,Supplies and Services,304358,Equipment and Materials,03/11/2022,4065206-3403,"1,144.90",S & R LANDSCAPES.
Neighbourhoods and Climate Change,Technical Services CM0300,Supplies and Services,304358,Equipment and Materials,03/11/2022,4065206-3405,"1,106.40",S & R LANDSCAPES.
Neighbourhoods and Climate Change,Technical Services CM0300,Supplies and Services,304358,Equipment and Materials,03/11/2022,4065206-3408,996.40,S & R LANDSCAPES.
Neighbourhoods and Climate Change,Technical Services CM0300,Supplies and Services,304358,Equipment and Materials,03/11/2022,4065206-3409,647.50,S & R LANDSCAPES.
Neighbourhoods and Climate Change,Technical Services CM0300,Supplies and Services,304358,Equipment and Materials,03/11/2022,4065206-3410,996.00,S & R LANDSCAPES.
Neighbourhoods and Climate Change,Technical Services CM0300,Supplies and Services,304358,Equipment and Materials,03/11/2022,4065206-3414,516.25,S & R LANDSCAPES.
Neighbourhoods and Climate Change,Technical Services CM0300,Supplies and Services,304358,Equipment and Materials,03/11/2022,4065206-3415,831.40,S & R LANDSCAPES.
Neighbourhoods and Climate Change,Technical Services CM0300,Supplies and Services,304358,Equipment and Materials,03/11/2022,4065206-3419,908.00,S & R LANDSCAPES.
Neighbourhoods and Climate Change,Technical Services CM0300,Supplies and Services,304358,Equipment and Materials,03/11/2022,4065206-3425,792.00,S & R LANDSCAPES.
Neighbourhoods and Climate Change,Technical Services CM0300,Supplies and Services,304358,Equipment and Materials,03/11/2022,4065206-3426,"1,858.00",S & R LANDSCAPES.
Resources BK0010,Digital Services,Supplies and Services,304303,Equipment and Materials,03/11/2022,4065253-139535,627.44,TP ELECTRICAL SUPPLIES & FIXINGS LTD.
Regeneration Economy and Growth,Corporate Property and Land,Supplies and Services,304358,Equipment and Materials,03/11/2022,4065258-51172,772.00,W MARLEY AGRICULTURAL CONTRACTORS LTD.
Resources BK0010,Digital Services,Supplies and Services,304639,Equipment and Materials,03/11/2022,4065151-SI-16322,500.00,NORTH EAST ACCESS TRAINING LTD.
Neighbourhoods and Climate Change,Technical Services CM0300,Supplies and Services,304358,Equipment and Materials,03/11/2022,4065267-N122125,"9,903.02",WILLIAMSON CONSTRUCTION EQUIPMENT LTD.
Neighbourhoods and Climate Change,Environmental Services,Supplies and Services,304999,Equipment and Materials,03/11/2022,4064974-03-033,585.56,CACTUS TREE GUARDS LTD.
Regeneration Economy and Growth,Corporate Property and Land,Cap Exp on Grants & Other Financial Assistance (REFCUS),918501,Exp assets not owned by authority,03/11/2022,4065031-CONTRIBUTION,500.00,DURHAM AMATEUR FOOTBALL TRUST.
Regeneration Economy and Growth,Corporate Property and Land,Cap Exp on Grants & Other Financial Assistance (REFCUS),918501,Exp assets not owned by authority,03/11/2022,4065058-JW642PJRJF,500.00,REDACTED - PAYMENT TO INDIVIDUAL
Adult and Health Services,Head of Adults,Supplies and Services,308011,Furniture,03/11/2022,4064936-176365,590.00,ALBANY OFFICE EQUIPMENT (WHOLESALE) LTD.
Non-Service Specific,Insurances,Expenditure 8INSEX,810001,Insurance Expenditure,03/11/2022,4065005-GV0007609,"67,191.00",CRAWFORD & COMPANY ADJUSTERS (UK) LTD T/A BROADSPIRE.
Regeneration Economy and Growth,Corporate Property and Land,Supplies and Services,384199,Miscellaneous Expenses,03/11/2022,4064953-22042986,"5,320.91",ATKINS GLOBAL.
Regeneration Economy and Growth,Corporate Property and Land,Supplies and Services,384199,Miscellaneous Expenses,03/11/2022,4064953-22043398,"3,350.00",ATKINS GLOBAL.
Regeneration Economy and Growth,Business Durham CL0850,Supplies and Services,384899,Miscellaneous Expenses,03/11/2022,4065049-RES-11-2022-027,"10,000.00",FILTRONIC BROADBAND LTD.
Resources BK0010,HR & Employee Services,Supplies and Services,384199,Miscellaneous Expenses,03/11/2022,4065081-70200140,"2,650.52",INDEED IRELAND OPERATIONS LTD.
Regeneration Economy and Growth,Culture Sport and Tourism,Supplies and Services,384302,Miscellaneous Expenses,03/11/2022,4064978-0426,600.00,REDACTED - PAYMENT TO INDIVIDUAL
Children and Young Peoples Services,Head of Early Help Inclusion & Vulnerable Children.,Supplies and Services,384302,Miscellaneous Expenses,03/11/2022,4065209-00065,520.00,REDACTED - PAYMENT TO INDIVIDUAL
Neighbourhoods and Climate Change,Partnerships & Community Engagement Div.,Supplies and Services,384086,Miscellaneous Expenses,03/11/2022,4064935-VOUCHERHAWK03-22,990.00,AIMS (ACTIVE INCLUSIVE MOTIVATIONAL STEPS).
Neighbourhoods and Climate Change,Partnerships & Community Engagement Div.,Supplies and Services,384086,Miscellaneous Expenses,03/11/2022,4065034-VOUCHERBROL08-22,999.00,DURHAM REMEMBRANCE.
Children and Young Peoples Services,Head of Early Help Inclusion & Vulnerable Children.,Supplies and Services,384302,Miscellaneous Expenses,03/11/2022,4065066-241022,510.00,HALL OF FAMERS LTD.
Neighbourhoods and Climate Change,Partnerships & Community Engagement Div.,Supplies and Services,384086,Miscellaneous Expenses,03/11/2022,4065225-VOUCHERSHUJ04-22,750.00,ST JOHNS CHAPEL RECREATION GROUND.
Neighbourhoods and Climate Change,Partnerships & Community Engagement Div.,Supplies and Services,384086,Miscellaneous Expenses,03/11/2022,4065269-VOUCHERSHUJ03-22,500.00,WOLSINGHAM FOOTBALL ACADEMY.
Neighbourhoods and Climate Change,Partnerships & Community Engagement Div.,Supplies and Services,384086,Miscellaneous Expenses,03/11/2022,4064943-VOUCHERBELC09-22,999.00,ANNFIELD PLAIN ASSOCIATED FOOTBALL CLUB (AFC).
Neighbourhoods and Climate Change,Environmental Services,Supplies and Services,384700,Miscellaneous Expenses,03/11/2022,4065176-RES-11-2022-021,575.00,PHILIP WAYRE UPLAND TRUST.
Children and Young Peoples Services,Head of Early Help Inclusion & Vulnerable Children.,Supplies and Services,384199,Miscellaneous Expenses,03/11/2022,4065026-OCTOBER2022,"2,760.00",REDACTED - PAYMENT TO INDIVIDUAL
Regeneration Economy and Growth,Culture Sport and Tourism,Supplies and Services,312013,Newspapers books and periodicals E312,03/11/2022,4064952-6780509,853.86,ASKEWS & HOLTS LIBRARY SERVICES LTD.
Regeneration Economy and Growth,Culture Sport and Tourism,Supplies and Services,312013,Newspapers books and periodicals E312,03/11/2022,4064952-6781972,858.44,ASKEWS & HOLTS LIBRARY SERVICES LTD.
Regeneration Economy and Growth,Culture Sport and Tourism,Supplies and Services,312013,Newspapers books and periodicals E312,03/11/2022,4064962-99898,503.44,BOLINDA DIGITAL LTD.
Children and Young Peoples Services,Head of Education and Skills,Supplies and Services,312011,Newspapers books and periodicals E312,03/11/2022,4065175-1945411,"2,784.70",PETERS LTD.
Children and Young Peoples Services,Head of Education and Skills,Supplies and Services,312009,Newspapers books and periodicals E312,03/11/2022,4065175-1945518,590.40,PETERS LTD.
Regeneration Economy and Growth,Business Durham CL0850,Third Party Payments,440999,Other third party payments E440,03/11/2022,4065033-DBRG-11-2022-02,"7,200.00",DURHAM GIN LTD T/A DURHAM DISTILLERY.
Regeneration Economy and Growth,Business Durham CL0850,Third Party Payments,440999,Other third party payments E440,03/11/2022,4064977-DBRG-11-2022-01,562.50,REDACTED - PAYMENT TO INDIVIDUAL
Resources BK0010,Transactional & Customer Services,Supplies and Services,340001,Postages E340,03/11/2022,4065204-9065844159,"13,160.19",ROYAL MAIL GROUP PLC.
Resources BK0010,Digital Services,Supplies and Services,332029,Printing Stationery and Gen Off Exps,03/11/2022,4065193-20337,500.00,RADECAL SIGNS GRAPHICS & ADVERTISING.
Resources BK0010,Digital Services,Supplies and Services,332029,Printing Stationery and Gen Off Exps,03/11/2022,4065193-20340,820.00,RADECAL SIGNS GRAPHICS & ADVERTISING.
Resources BK0010,Digital Services,Supplies and Services,332029,Printing Stationery and Gen Off Exps,03/11/2022,4065228-146066,781.00,STATEX PRESS NORTHERN LTD.
Regeneration Economy and Growth,Culture Sport and Tourism,Supplies and Services,324117,Provisions E324,03/11/2022,4065134-906765582,810.22,MOLSON COORS BREWING COMPANY (UK) LTD.
Adult and Health Services,Commissioning inc Supporting People,Third Party Payments,479111,Purchase of Care,03/11/2022,4064976-5371,"6,563.93",CARERS FEDERATION LTD.
Adult and Health Services,Head of Adults,Third Party Payments,479102,Purchase of Care,03/11/2022,4065183-INV-0036,"6,729.80",POSITIVE CARE & SUPPORT LTD.
Regeneration Economy and Growth,Transport and Contracted Services,Vehicles Equipment Furniture and Fittings,912529,Purchase-equipment,03/11/2022,4065226-130407,"27,624.48",STANDING STONE DRAWING OFFICE SUPPLIES LTD.
Children and Young Peoples Services,Head of Early Help Inclusion & Vulnerable Children.,Third Party Payments,410037,Rendered by Other Local Authorities,03/11/2022,4065149-39210,"8,903.00",NOMS AGENCY.
Neighbourhoods and Climate Change,Environmental Services,Third Party Payments,430119,Rendered by Private Contractors,03/11/2022,4064995-22079967,646.01,CLEANSING SERVICE GROUP LTD.
Regeneration Economy and Growth,Transport and Contracted Services,Third Party Payments,430106,Rendered by Private Contractors,03/11/2022,4065048-PPT3671/PPT3666/OCT22,"3,368.00",FERRYHILL VILLAGE TRAVEL.
Regeneration Economy and Growth,Transport and Contracted Services,Third Party Payments,430106,Rendered by Private Contractors,03/11/2022,4065094-36730,"17,568.00",JIM HUGHES COACHES LTD.
Regeneration Economy and Growth,Corporate Property and Land,Third Party Payments,430100,Rendered by Private Contractors,03/11/2022,4065140-1126,"38,200.00",NE & C WINDOWS & DOORS LTD.
Regeneration Economy and Growth,Corporate Property and Land,Third Party Payments,430100,Rendered by Private Contractors,03/11/2022,4065140-40721,513.50,NE & C WINDOWS & DOORS LTD.
Regeneration Economy and Growth,Corporate Property and Land,Third Party Payments,430100,Rendered by Private Contractors,03/11/2022,4065140-40799,"4,161.00",NE & C WINDOWS & DOORS LTD.
Regeneration Economy and Growth,Corporate Property and Land,Third Party Payments,430100,Rendered by Private Contractors,03/11/2022,4065140-40814,708.50,NE & C WINDOWS & DOORS LTD.
Regeneration Economy and Growth,Corporate Property and Land,Third Party Payments,430100,Rendered by Private Contractors,03/11/2022,4065140-40832,"1,752.40",NE & C WINDOWS & DOORS LTD.
Regeneration Economy and Growth,Transport and Contracted Services,Third Party Payments,430108,Rendered by Private Contractors,03/11/2022,4065144-1800011529706,"32,150.51",NEWCASTLE UPON TYNE CITY COUNCIL.
Neighbourhoods and Climate Change,Technical Services CM0300,Third Party Payments,430100,Rendered by Private Contractors,03/11/2022,4065180-6428,"5,043.90",PINKNEY BUILDING CONTRACTORS LTD.
Regeneration Economy and Growth,Transport and Contracted Services,Third Party Payments,430100,Rendered by Private Contractors,03/11/2022,4065208-16929,"3,345.19",SAFEGUARD SECURITY (NE) LTD.
Regeneration Economy and Growth,Corporate Property and Land,Third Party Payments,430100,Rendered by Private Contractors,03/11/2022,4065236-180774,"3,997.00",SUPATINT LTD T/A SUPATINT WINDOW FILMS & BLINDS.
Neighbourhoods and Climate Change,Technical Services CM0300,Third Party Payments,430100,Rendered by Private Contractors,03/11/2022,4065051-49062,725.00,FLAGPOLE EXPRESS LTD.
Dedicated Schools Grant BG0015,DSG High Needs Block,Third Party Payments,425005,Rendered by Voluntary Organisations,03/11/2022,4064964-3240,"20,532.00",BRECKENBROUGH SCHOOL.
Dedicated Schools Grant BG0015,DSG High Needs Block,Third Party Payments,425005,Rendered by Voluntary Organisations,03/11/2022,4064964-3241,"19,396.00",BRECKENBROUGH SCHOOL.
Dedicated Schools Grant BG0015,DSG High Needs Block,Third Party Payments,425005,Rendered by Voluntary Organisations,03/11/2022,4064964-3242,"20,354.00",BRECKENBROUGH SCHOOL.
Neighbourhoods and Climate Change,Environmental Services,Transport,215005,Running Costs of Vehicles,03/11/2022,4065273-1024094,"18,429.94",YOUR NRG LTD.
Children and Young Peoples Services,Head of Childrens Social Care,Supplies and Services,338066,Services,03/11/2022,4064927-222173/INV11274HN811,750.00,42 BEDFORD ROW BARRISTERS.
Regeneration Economy and Growth,Corporate Property and Land,Supplies and Services,338066,Services,03/11/2022,4064939-APP0000001788,"78,568.00",ALIGN PROPERTY PARTNERS LTD.
Resources BK0010,Legal & Democratic Services,Supplies and Services,338102,Services,03/11/2022,4064941-0012191,"12,000.00",ANALYTICAL SERVICES INTERNATIONAL LTD.
Resources BK0010,Legal & Democratic Services,Supplies and Services,338103,Services,03/11/2022,4064972-CKDDPMS/SEPT2022,"4,522.80",C&K DIAGNOSTICS LTD.
Children and Young Peoples Services,Head of Childrens Social Care,Supplies and Services,338044,Services,03/11/2022,4064980-TI041814,612.88,CARTER BROWN THE EXPERT SERVICE LTD.*
Neighbourhoods and Climate Change,Environmental Services,Supplies and Services,338027,Services,03/11/2022,4065082-SI-ENI095121,"3,608.00",INITIAL PROJECTS LTD T/A ENITIAL.
Children and Young Peoples Services,Head of Childrens Social Care,Supplies and Services,338044,Services,03/11/2022,4065126-33449,"3,130.00",MEDICAL EXPERT WITNESS ALLIANCE LLP (MEWA).
Adult and Health Services,Head of Adults,Supplies and Services,338099,Services,03/11/2022,4065155-26842713,659.28,NORTH TYNESIDE COUNCIL.
Regeneration Economy and Growth,Corporate Property and Land,Supplies and Services,338078,Services,03/11/2022,4065208-16911,"1,150.25",SAFEGUARD SECURITY (NE) LTD.
Regeneration Economy and Growth,Corporate Property and Land,Supplies and Services,338078,Services,03/11/2022,4065208-16912,563.20,SAFEGUARD SECURITY (NE) LTD.
Children and Young Peoples Services,Head of Education and Skills,Supplies and Services,338099,Services,03/11/2022,4065223-082022,"2,380.00",SPECIALISED TRANSPORT ADVISORY NETWORK.
Regeneration Economy and Growth,Business Durham CL0850,Supplies and Services,338078,Services,03/11/2022,4065257-INV-52705,"6,243.76",VISTECH SERVICES LTD.
Neighbourhoods and Climate Change,Environmental Services,Supplies and Services,338099,Services,03/11/2022,4065270-0000044518,835.66,WYBONE LTD.
Neighbourhoods and Climate Change,Environmental Services,Supplies and Services,338066,Services,03/11/2022,4064937-FFF2-281002,"3,000.00",REDACTED - PAYMENT TO INDIVIDUAL
Regeneration Economy and Growth,Culture Sport and Tourism,Supplies and Services,338047,Services,03/11/2022,4064938-277,"2,200.00",REDACTED - PAYMENT TO INDIVIDUAL
Adult and Health Services,Head of Adults,Supplies and Services,338066,Services,03/11/2022,4065027-RA22,531.66,REDACTED - PAYMENT TO INDIVIDUAL
Regeneration Economy and Growth,Culture Sport and Tourism,Supplies and Services,338047,Services,03/11/2022,4064981-0158,"4,251.49",CBB ENTERTAINMENT LTD T/A THE CHICAGO BLUES BROTHERS.
Children and Young Peoples Services,Head of Education and Skills,Supplies and Services,338029,Services,03/11/2022,4065025-JT/DCC/OCT22,959.37,REDACTED - PAYMENT TO INDIVIDUAL
Resources BK0010,Digital Services,Stock A926,926900,Stock in hand-Inventory system,03/11/2022,4065016-7402862033,"2,579.40",DELL COMPUTER CORPORATION LTD.
Resources BK0010,Digital Services,Stock A926,926900,Stock in hand-Inventory system,03/11/2022,4065084-2100415104,"4,125.15",INSIGHT DIRECT (UK) LTD.
Neighbourhoods and Climate Change,Technical Services CM0300,Stock A926,926900,Stock in hand-Inventory system,03/11/2022,4065249-NSIN00076281,599.14,THOMAS OWEN & SONS (NEWCASTLE) LTD.
Neighbourhoods and Climate Change,Technical Services CM0300,Stock A926,926900,Stock in hand-Inventory system,03/11/2022,4065249-NSIN00076462,"2,926.89",THOMAS OWEN & SONS (NEWCASTLE) LTD.
Neighbourhoods and Climate Change,Technical Services CM0300,Stock A926,926900,Stock in hand-Inventory system,03/11/2022,4065249-NSIN00076692,"2,199.60",THOMAS OWEN & SONS (NEWCASTLE) LTD.
Neighbourhoods and Climate Change,Technical Services CM0300,Stock A926,926900,Stock in hand-Inventory system,03/11/2022,4065249-NSIN00077952,"4,272.44",THOMAS OWEN & SONS (NEWCASTLE) LTD.
Neighbourhoods and Climate Change,Technical Services CM0300,Stock A926,926900,Stock in hand-Inventory system,03/11/2022,4065249-NSIN00079193,650.35,THOMAS OWEN & SONS (NEWCASTLE) LTD.
Neighbourhoods and Climate Change,Environmental Services,Premises,135005,Water Services,03/11/2022,4065261-2100572708110919258,"15,308.96",WAVE (AWBN).
Neighbourhoods and Climate Change,Environmental Services,Premises,135005,Water Services,03/11/2022,4065261-2100572708111112934,"2,588.68",WAVE (AWBN).
Regeneration Economy and Growth,Communications Management,Supplies and Services,336005,Advertising E336,04/11/2022,4065510-41302089,731.60,NEWSQUEST (YORKSHIRE & NORTH EAST) LTD.
Regeneration Economy and Growth,Communications Management,Premises,150005,Apportioned Exps of Operational Blds,04/11/2022,4065592-16696,750.00,SONY MUSIC PUBLISHING EUROPE LTD.
Regeneration Economy and Growth,Business Durham CL0850,Premises,106083,Centrally Controlled Rep and Maint,04/11/2022,4065278-403,"21,922.18",ACROL AIR CONDITIONING CO LTD.
Neighbourhoods and Climate Change,Environmental Services,Premises,106082,Centrally Controlled Rep and Maint,04/11/2022,4065278-IN10032,"3,900.00",ACROL AIR CONDITIONING CO LTD.
Regeneration Economy and Growth,Corporate Property and Land,Premises,106080,Centrally Controlled Rep and Maint,04/11/2022,4065420-7080988716,"1,178.53",HONEYWELL NOVAR SYSTEMS LTD.
Children and Young Peoples Services,Head of Early Help Inclusion & Vulnerable Children.,Premises,106099,Centrally Controlled Rep and Maint,04/11/2022,4065420-7080988717,"5,884.43",HONEYWELL NOVAR SYSTEMS LTD.
Regeneration Economy and Growth,Corporate Property and Land,Premises,106080,Centrally Controlled Rep and Maint,04/11/2022,4065420-7080988722,"2,206.41",HONEYWELL NOVAR SYSTEMS LTD.
Regeneration Economy and Growth,Culture Sport and Tourism,Premises,106080,Centrally Controlled Rep and Maint,04/11/2022,4065575-100678979,685.00,SCHNEIDER ELECTRIC LTD.
Regeneration Economy and Growth,Culture Sport and Tourism,Premises,106080,Centrally Controlled Rep and Maint,04/11/2022,4065598-20699,"3,300.00",STONE TECHNICAL SERVICES LTD.
Regeneration Economy and Growth,Corporate Property and Land,Premises,106082,Centrally Controlled Rep and Maint,04/11/2022,4065617-R-71283,"1,274.89",UPNORTH ENGINEERING SERVICES LTD.
Adult and Health Services,Public Health CC0450,Premises,145050,Cleaning and Domestic Supplies,04/11/2022,4065306-412120,"1,691.85",BETTAKLEEN LTD.
Adult and Health Services,Public Health CC0450,Premises,145050,Cleaning and Domestic Supplies,04/11/2022,4065306-412121,527.85,BETTAKLEEN LTD.
Adult and Health Services,Public Health CC0450,Premises,145050,Cleaning and Domestic Supplies,04/11/2022,4065306-412160,"1,258.07",BETTAKLEEN LTD.
Adult and Health Services,Public Health CC0450,Premises,145009,Cleaning and Domestic Supplies,04/11/2022,4065545-INV-5460,"1,241.00",QUALITY CLEANING SERVICES (NORTHERN) LTD.
Resources BK0010,Digital Services,Supplies and Services,342051,Computers and Communications,04/11/2022,4065337-C/LE256106,"16,788.75",CIVICA UK LTD.
Regeneration Economy and Growth,Planning & Housing,Supplies and Services,342053,Computers and Communications,04/11/2022,4065337-M/HB106326,539.58,CIVICA UK LTD.
Resources BK0010,Digital Services,Supplies and Services,342033,Computers and Communications,04/11/2022,4065481-12655470,"1,860.00",MAINTEL EUROPE LTD.
Regeneration Economy and Growth,Planning & Housing,Supplies and Services,352001,Conference Expenses,04/11/2022,4065570-1953,"1,050.00",SAFFER COOPER LTD.
Children and Young Peoples Services,Head of Education and Skills,Construction work A908,908105,Construction work,04/11/2022,4065568-7078,"1,330.00",SAFE STRIP UK LTD.
Dedicated Schools Grant BG0015,DSG High Needs Block,Transport,230009,Contract Hire,04/11/2022,4065446-0222/23,"1,350.45",JOHN BELL TAXI.
Adult and Health Services,Public Health CC0450,Third Party Payments,460803,Contract Payments,04/11/2022,4065277-INV-1793,"124,855.00",ABL HEALTH LTD.
Adult and Health Services,Public Health CC0450,Third Party Payments,460803,Contract Payments,04/11/2022,4065277-INV-1797,"16,333.33",ABL HEALTH LTD.
Adult and Health Services,Public Health CC0450,Third Party Payments,460803,Contract Payments,04/11/2022,4065537-18072/18,"5,462.92",PIONEERING CARE PARTNERSHIP.
Regeneration Economy and Growth,Culture Sport and Tourism,Supplies and Services,304359,Equipment and Materials,04/11/2022,4065308-BMPR/1015/SKIPS,700.00,BISHOP MIDDLEHAM PLANT & RECYCLING LTD.
Regeneration Economy and Growth,Culture Sport and Tourism,Supplies and Services,304359,Equipment and Materials,04/11/2022,4065308-BMPR/1024/SKIPS,700.00,BISHOP MIDDLEHAM PLANT & RECYCLING LTD.
Regeneration Economy and Growth,Planning & Housing,Supplies and Services,304259,Equipment and Materials,04/11/2022,4065322-1122810992,"2,000.00",CANFORD AUDIO PLC.
Regeneration Economy and Growth,Corporate Property and Land,Supplies and Services,304221,Equipment and Materials,04/11/2022,4065343-59554,"1,380.51",COMPLETE DETECTION SYSTEMS LTD (CDS).
Neighbourhoods and Climate Change,Environmental Services,Supplies and Services,304259,Equipment and Materials,04/11/2022,4065369-166852,"1,050.00",DUNHOUSE QUARRY CO LTD.
Regeneration Economy and Growth,Corporate Property and Land,Supplies and Services,304221,Equipment and Materials,04/11/2022,4065373-059-309175,"2,357.87",EDMUNDSON ELECTRICAL LTD.
Neighbourhoods and Climate Change,Technical Services CM0300,Supplies and Services,304358,Equipment and Materials,04/11/2022,4065448-32151,"1,785.00",JOHN R BUTTERFIELD LTD.
Neighbourhoods and Climate Change,Technical Services CM0300,Supplies and Services,304358,Equipment and Materials,04/11/2022,4065448-32199,"1,269.50",JOHN R BUTTERFIELD LTD.
Neighbourhoods and Climate Change,Technical Services CM0300,Supplies and Services,304358,Equipment and Materials,04/11/2022,4065448-32200,"1,264.00",JOHN R BUTTERFIELD LTD.
Neighbourhoods and Climate Change,Technical Services CM0300,Supplies and Services,304358,Equipment and Materials,04/11/2022,4065448-32202,918.75,JOHN R BUTTERFIELD LTD.
Neighbourhoods and Climate Change,Technical Services CM0300,Supplies and Services,304221,Equipment and Materials,04/11/2022,4065452-0104/00777653,977.40,JT DOVE LTD.
Neighbourhoods and Climate Change,Technical Services CM0300,Supplies and Services,304221,Equipment and Materials,04/11/2022,4065452-0113/00770791,798.00,JT DOVE LTD.
Neighbourhoods and Climate Change,Technical Services CM0300,Supplies and Services,304221,Equipment and Materials,04/11/2022,4065452-0303/00686779,852.75,JT DOVE LTD.
Regeneration Economy and Growth,Corporate Property and Land,Supplies and Services,304221,Equipment and Materials,04/11/2022,4065452-0303/00773882,"1,550.00",JT DOVE LTD.
Neighbourhoods and Climate Change,Environmental Services,Supplies and Services,304293,Equipment and Materials,04/11/2022,4065533-98971,956.55,PETERLEE FIRE CO LTD.
Regeneration Economy and Growth,Corporate Property and Land,Supplies and Services,304221,Equipment and Materials,04/11/2022,4065553-0000067202,"1,872.60",RINNAI UK LTD.
Neighbourhoods and Climate Change,Technical Services CM0300,Supplies and Services,304358,Equipment and Materials,04/11/2022,4065564-3406,"1,078.50",S & R LANDSCAPES.
Regeneration Economy and Growth,Corporate Property and Land,Supplies and Services,304358,Equipment and Materials,04/11/2022,4065564-3412,832.00,S & R LANDSCAPES.
Neighbourhoods and Climate Change,Technical Services CM0300,Supplies and Services,304358,Equipment and Materials,04/11/2022,4065564-3417,994.70,S & R LANDSCAPES.
Neighbourhoods and Climate Change,Technical Services CM0300,Supplies and Services,304358,Equipment and Materials,04/11/2022,4065564-3418,"1,154.90",S & R LANDSCAPES.
Neighbourhoods and Climate Change,Technical Services CM0300,Supplies and Services,304358,Equipment and Materials,04/11/2022,4065564-3423,"1,087.95",S & R LANDSCAPES.
Neighbourhoods and Climate Change,Technical Services CM0300,Supplies and Services,304358,Equipment and Materials,04/11/2022,4065564-3429,897.00,S & R LANDSCAPES.
Neighbourhoods and Climate Change,Technical Services CM0300,Supplies and Services,304358,Equipment and Materials,04/11/2022,4065564-3432,997.00,S & R LANDSCAPES.
Neighbourhoods and Climate Change,Technical Services CM0300,Supplies and Services,304358,Equipment and Materials,04/11/2022,4065564-3433,996.40,S & R LANDSCAPES.
Neighbourhoods and Climate Change,Technical Services CM0300,Supplies and Services,304358,Equipment and Materials,04/11/2022,4065564-3436,748.00,S & R LANDSCAPES.
Neighbourhoods and Climate Change,Technical Services CM0300,Supplies and Services,304358,Equipment and Materials,04/11/2022,4065564-3438,"1,320.00",S & R LANDSCAPES.
Neighbourhoods and Climate Change,Technical Services CM0300,Supplies and Services,304221,Equipment and Materials,04/11/2022,4065584-714560213687,"1,758.67",SIG TRADING LTD.
Regeneration Economy and Growth,Planning & Housing,Supplies and Services,304259,Equipment and Materials,04/11/2022,4065613-CD970000802,"4,750.00",TUNSTALL HEALTHCARE (UK) LTD.
Regeneration Economy and Growth,Corporate Property and Land,Supplies and Services,304221,Equipment and Materials,04/11/2022,4065615-17228,"1,883.42",TYNE TEES THERMAL LTD.
Neighbourhoods and Climate Change,Technical Services CM0300,Supplies and Services,304221,Equipment and Materials,04/11/2022,4065616-239191,"1,058.53",TYNEDALE ROADSTONE LTD.
Neighbourhoods and Climate Change,Technical Services CM0300,Supplies and Services,304221,Equipment and Materials,04/11/2022,4065616-239194,"1,296.34",TYNEDALE ROADSTONE LTD.
Neighbourhoods and Climate Change,Technical Services CM0300,Supplies and Services,304221,Equipment and Materials,04/11/2022,4065616-239198,"1,003.80",TYNEDALE ROADSTONE LTD.
Neighbourhoods and Climate Change,Technical Services CM0300,Supplies and Services,304358,Equipment and Materials,04/11/2022,4065635-9145,798.82,YOULL CONSTRUCTION LTD.
Neighbourhoods and Climate Change,Environmental Services,Supplies and Services,304221,Equipment and Materials,04/11/2022,4065289-0000022074,812.50,AMBEROL LTD.
Regeneration Economy and Growth,Corporate Property and Land,Supplies and Services,304221,Equipment and Materials,04/11/2022,4065436-GI2019123,707.40,REDACTED - PAYMENT TO INDIVIDUAL
Regeneration Economy and Growth,Culture Sport and Tourism,Supplies and Services,384199,Miscellaneous Expenses,04/11/2022,4065372-31199,"3,125.00",DURHAM COUNTY CRICKET CLUB HOLDINGS LTD T/A DURHAM CRICKET.
Adult and Health Services,Public Health CC0450,Supplies and Services,384899,Miscellaneous Expenses,04/11/2022,4065468-DCCTH20-08,"18,534.00",LET`S CONNECT (ENG) LTD.
Regeneration Economy and Growth,Culture Sport and Tourism,Supplies and Services,384199,Miscellaneous Expenses,04/11/2022,4065474-1015,600.00,LUNA CREATIVE LTD.
Adult and Health Services,Public Health CC0450,Supplies and Services,384155,Miscellaneous Expenses,04/11/2022,4065512-1000074951,"64,027.55",NHS BUSINESS SERVICES AUTHORITY (NHSBSA).
Children and Young Peoples Services,Head of Education and Skills,Supplies and Services,384199,Miscellaneous Expenses,04/11/2022,4065534-22/23-02,500.00,PGI SMITH SOLUTIONS LTD.
Regeneration Economy and Growth,Transport and Contracted Services,Supplies and Services,384199,Miscellaneous Expenses,04/11/2022,4065581-186785,"4,331.88",SHOWSEC INTERNATIONAL LTD.
Regeneration Economy and Growth,Corporate Property and Land,Supplies and Services,384159,Miscellaneous Expenses,04/11/2022,4065596-18570,"10,713.60",STEADFAST SECURITY SOLUTIONS LTD.
Neighbourhoods and Climate Change,Partnerships & Community Engagement Div.,Supplies and Services,384086,Miscellaneous Expenses,04/11/2022,4065331-VOUCHER21NB-CHES004-2ndinst,"2,450.00",CHESTER LE STREET DISTRICT WAR MEMORIAL GROUP.
Regeneration Economy and Growth,Economic Development Level C,Supplies and Services,384700,Miscellaneous Expenses,04/11/2022,4065392-RES-11-2022-030,500.00,FIRST CHOICE CLEANING.
Regeneration Economy and Growth,Culture Sport and Tourism,Supplies and Services,384956,Miscellaneous Expenses,04/11/2022,4065607-8421,"1,248.00",THE HIIT COMPANY INTERNATIONAL LTD.
Regeneration Economy and Growth,Planning & Housing,Third Party Payments,440999,Other third party payments E440,04/11/2022,4065300-105686,"6,514.32",BAYDALE CONTROL SYSTEMS LTD.
Children and Young Peoples Services,Head of Education and Skills,Third Party Payments,440999,Other third party payments E440,04/11/2022,4065342-CTA/080-RO9,"6,212.97",COMMUNICATORS TRAINING ASSOCIATES LTD.
Children and Young Peoples Services,Head of Early Help Inclusion & Vulnerable Children.,Third Party Payments,440999,Other third party payments E440,04/11/2022,4065430-719,"11,000.00",INVESTING IN CHILDREN CIC.
Adult and Health Services,Commissioning inc Supporting People,Third Party Payments,479111,Purchase of Care,04/11/2022,4065480-6503,"11,757.00",MAIN - TAKING AUTISM PERSONALLY.
Adult and Health Services,Head of Adults,Third Party Payments,479102,Purchase of Care,04/11/2022,4065539-INV-0035,"7,084.00",POSITIVE CARE & SUPPORT LTD.
Adult and Health Services,Head of Adults,Third Party Payments,479102,Purchase of Care,04/11/2022,4065539-INV-0037,"7,131.90",POSITIVE CARE & SUPPORT LTD.
Adult and Health Services,Head of Adults,Third Party Payments,479102,Purchase of Care,04/11/2022,4065539-INV-0041,"7,139.94",POSITIVE CARE & SUPPORT LTD.
Adult and Health Services,Head of Adults,Third Party Payments,479102,Purchase of Care,04/11/2022,4065539-INV-0042,"6,729.80",POSITIVE CARE & SUPPORT LTD.
Adult and Health Services,Head of Adults,Third Party Payments,479102,Purchase of Care,04/11/2022,4065539-INV-0044,"6,729.80",POSITIVE CARE & SUPPORT LTD.
Adult and Health Services,Head of Adults,Third Party Payments,479102,Purchase of Care,04/11/2022,4065539-INV-0045,"6,729.80",POSITIVE CARE & SUPPORT LTD.
Adult and Health Services,Head of Adults,Third Party Payments,479102,Purchase of Care,04/11/2022,4065539-INV-0047,"1,032.50",POSITIVE CARE & SUPPORT LTD.
Adult and Health Services,Head of Adults,Third Party Payments,479102,Purchase of Care,04/11/2022,4065539-INV-0048,"7,372.25",POSITIVE CARE & SUPPORT LTD.
Adult and Health Services,Head of Adults,Third Party Payments,479102,Purchase of Care,04/11/2022,4065539-INV-0049,"7,188.18",POSITIVE CARE & SUPPORT LTD.
Neighbourhoods and Climate Change,Environmental Services,Vehicles Equipment Furniture and Fittings,912529,Purchase-equipment,04/11/2022,4065630-0000819012,"31,569.00",WICKSTEED LEISURE LTD.
Dedicated Schools Grant BG0015,DSG High Needs Block,Third Party Payments,410037,Rendered by Other Local Authorities,04/11/2022,4065404-220110856,"2,086.68",GATESHEAD COUNCIL.
Regeneration Economy and Growth,Corporate Property and Land,Third Party Payments,430100,Rendered by Private Contractors,04/11/2022,4065296-2199,"1,440.00",AWR ROOFING & ALUMIN RAINWATER SYSTEMS LTD.
Regeneration Economy and Growth,Corporate Property and Land,Third Party Payments,430100,Rendered by Private Contractors,04/11/2022,4065296-2201,"4,350.00",AWR ROOFING & ALUMIN RAINWATER SYSTEMS LTD.
Neighbourhoods and Climate Change,Environmental Services,Third Party Payments,430100,Rendered by Private Contractors,04/11/2022,4065405-90032467,672.21,GEESINK NORBA LTD.
Regeneration Economy and Growth,Corporate Property and Land,Third Party Payments,430100,Rendered by Private Contractors,04/11/2022,4065427-13245,984.00,INGLEFORD SCAFFOLDING LTD.
Regeneration Economy and Growth,Corporate Property and Land,Third Party Payments,430100,Rendered by Private Contractors,04/11/2022,4065438-51603,850.00,JBL SERVICES LTD.
Regeneration Economy and Growth,Corporate Property and Land,Third Party Payments,430100,Rendered by Private Contractors,04/11/2022,4065439-26721,"1,999.50",JC MAINTENANCE SERVICES LTD.
Neighbourhoods and Climate Change,Environmental Services,Third Party Payments,430100,Rendered by Private Contractors,04/11/2022,4065583-220/23/0003617,"8,435.00",SIEMENS FINANCIAL SERVICES LTD.
Regeneration Economy and Growth,Transport and Contracted Services,Third Party Payments,430100,Rendered by Private Contractors,04/11/2022,4065623-INV-51199,"3,524.24",VISTECH SERVICES LTD.
Regeneration Economy and Growth,Corporate Property and Land,Third Party Payments,430100,Rendered by Private Contractors,04/11/2022,4065626-INV-1703,"1,189.50",WATER SOLUTIONS (EUROPE) LTD.
Regeneration Economy and Growth,Corporate Property and Land,Third Party Payments,430100,Rendered by Private Contractors,04/11/2022,4065626-INV-1717,994.50,WATER SOLUTIONS (EUROPE) LTD.
Regeneration Economy and Growth,Corporate Property and Land,Third Party Payments,430100,Rendered by Private Contractors,04/11/2022,4065626-INV-1754,"2,008.50",WATER SOLUTIONS (EUROPE) LTD.
Neighbourhoods and Climate Change,Environmental Services,Third Party Payments,430100,Rendered by Private Contractors,04/11/2022,4065338-MWI104121,"2,500.00",CLEASBY ENGINE SERVICES (MOTOR FACTORS) LTD.
Neighbourhoods and Climate Change,Environmental Services,Transport,210057,Repair and Maintenance of Vehicles,04/11/2022,4065303-35233266,"1,029.89",BELL TRUCK SALES LTD T/A BELL TRUCK & VAN.
Neighbourhoods and Climate Change,Environmental Services,Transport,210057,Repair and Maintenance of Vehicles,04/11/2022,4065359-96430737,635.77,DENNIS EAGLE LTD T/A TERBERG MATEC (UK) LTD.
Neighbourhoods and Climate Change,Environmental Services,Transport,210057,Repair and Maintenance of Vehicles,04/11/2022,4065359-96430953,704.60,DENNIS EAGLE LTD T/A TERBERG MATEC (UK) LTD.
Neighbourhoods and Climate Change,Environmental Services,Transport,210057,Repair and Maintenance of Vehicles,04/11/2022,4065360-DE11534711,637.75,DENNIS EAGLE LTD.
Neighbourhoods and Climate Change,Environmental Services,Transport,210057,Repair and Maintenance of Vehicles,04/11/2022,4065360-DE11535076,"1,041.68",DENNIS EAGLE LTD.
Neighbourhoods and Climate Change,Environmental Services,Transport,210057,Repair and Maintenance of Vehicles,04/11/2022,4065394-431965,988.67,FORD & SLATER LTD.
Neighbourhoods and Climate Change,Environmental Services,Transport,210057,Repair and Maintenance of Vehicles,04/11/2022,4065412-278166,"2,872.42",GREENLAY T/A THOMAS SHERRIFF & CO LTD.
Neighbourhoods and Climate Change,Environmental Services,Transport,210057,Repair and Maintenance of Vehicles,04/11/2022,4065412-278188,584.30,GREENLAY T/A THOMAS SHERRIFF & CO LTD.
Neighbourhoods and Climate Change,Environmental Services,Transport,210057,Repair and Maintenance of Vehicles,04/11/2022,4065528-20831262,510.04,PARTSPLUS.
Children and Young Peoples Services,Head of Childrens Social Care,Third Party Payments,486020,Service level agreements E486,04/11/2022,4065629-INV-3120,"1,350.00",WE CARE RECRUITMENT SOLUTIONS LTD.
Children and Young Peoples Services,Head of Childrens Social Care,Third Party Payments,486020,Service level agreements E486,04/11/2022,4065629-INV-3171,760.00,WE CARE RECRUITMENT SOLUTIONS LTD.
Children and Young Peoples Services,Head of Childrens Social Care,Third Party Payments,486020,Service level agreements E486,04/11/2022,4065629-INV-3174,"1,200.00",WE CARE RECRUITMENT SOLUTIONS LTD.
Children and Young Peoples Services,Head of Childrens Social Care,Third Party Payments,486020,Service level agreements E486,04/11/2022,4065629-INV-4328,"1,550.00",WE CARE RECRUITMENT SOLUTIONS LTD.
Children and Young Peoples Services,Head of Childrens Social Care,Third Party Payments,486020,Service level agreements E486,04/11/2022,4065629-INV-4333,"1,560.00",WE CARE RECRUITMENT SOLUTIONS LTD.
Children and Young Peoples Services,Head of Childrens Social Care,Third Party Payments,486020,Service level agreements E486,04/11/2022,4065629-INV-4363,750.00,WE CARE RECRUITMENT SOLUTIONS LTD.
Children and Young Peoples Services,Head of Childrens Social Care,Third Party Payments,486020,Service level agreements E486,04/11/2022,4065629-INV-4389,"1,500.00",WE CARE RECRUITMENT SOLUTIONS LTD.
Children and Young Peoples Services,Head of Childrens Social Care,Third Party Payments,486020,Service level agreements E486,04/11/2022,4065629-INV-4418,750.00,WE CARE RECRUITMENT SOLUTIONS LTD.
Children and Young Peoples Services,Head of Childrens Social Care,Third Party Payments,486020,Service level agreements E486,04/11/2022,4065629-INV-4451,750.00,WE CARE RECRUITMENT SOLUTIONS LTD.
Children and Young Peoples Services,Head of Childrens Social Care,Third Party Payments,486020,Service level agreements E486,04/11/2022,4065629-INV-4462,"1,525.00",WE CARE RECRUITMENT SOLUTIONS LTD.
Regeneration Economy and Growth,Corporate Property and Land,Premises,108099,Service Repairs and Maintenance,04/11/2022,4065278-IN10209,"18,428.25",ACROL AIR CONDITIONING CO LTD.
Regeneration Economy and Growth,Corporate Property and Land,Premises,108099,Service Repairs and Maintenance,04/11/2022,4065304-241033,550.00,BELLWOOD REWINDS LTD.
Regeneration Economy and Growth,Corporate Property and Land,Premises,108099,Service Repairs and Maintenance,04/11/2022,4065377-95259,731.00,EIAT UK LTD (ELECTRICAL INSTALLATION & APPLIANCE TESTING UK).
Regeneration Economy and Growth,Corporate Property and Land,Premises,108099,Service Repairs and Maintenance,04/11/2022,4065408-INV-1280,"28,693.40",GLENFIELD ENERGY SOLUTIONS LTD.
Regeneration Economy and Growth,Corporate Property and Land,Premises,108099,Service Repairs and Maintenance,04/11/2022,4065549-2022-412,"1,421.88",REVINSON FIRE LTD.
Regeneration Economy and Growth,Corporate Property and Land,Premises,108099,Service Repairs and Maintenance,04/11/2022,4065568-7107,"1,350.00",SAFE STRIP UK LTD.
Regeneration Economy and Growth,Corporate Property and Land,Premises,108099,Service Repairs and Maintenance,04/11/2022,4065620-2574,938.00,VENTILATION HYGIENE SPECIALISTS (VHS) LTD.
Adult and Health Services,Head of Adults,Supplies and Services,338366,Services,04/11/2022,4065324-87261,"1,415.40",CARE ABILITY HEALTHCARE LTD.
Children and Young Peoples Services,Head of Education and Skills,Supplies and Services,338094,Services,04/11/2022,4065345-1093,912.00,CORNERSTONES CENTRE FOR THE COMMUNITY.
Regeneration Economy and Growth,Culture Sport and Tourism,Supplies and Services,338099,Services,04/11/2022,4065390-215-013,"1,200.00",FAT MEDIA LTD.
Regeneration Economy and Growth,Culture Sport and Tourism,Supplies and Services,338099,Services,04/11/2022,4065390-215-014,855.00,FAT MEDIA LTD.
Resources BK0010,Legal & Democratic Services,Supplies and Services,338025,Services,04/11/2022,4065406-SI-56922,"1,090.00",GIBSONS FUNERAL SERVICES LTD.
Regeneration Economy and Growth,Planning & Housing,Supplies and Services,338045,Services,04/11/2022,4065457-498332,"2,000.00",KINGS CHAMBERS.
Regeneration Economy and Growth,Planning & Housing,Supplies and Services,338045,Services,04/11/2022,4065457-498332-130922,"1,000.00",KINGS CHAMBERS.
Children and Young Peoples Services,Childrens Services Operational Support,Supplies and Services,338089,Services,04/11/2022,4065563-22/63/02,500.00,RUTH PEARSON TRAINING LTD.
Adult and Health Services,Head of Adults,Supplies and Services,338066,Services,04/11/2022,4065578-364,550.50,SHAH MEDICAL SERVICES LTD.
Neighbourhoods and Climate Change,Environmental Services,Supplies and Services,338094,Services,04/11/2022,4065618-2002140,732.50,USHAW COLLEGE.
Regeneration Economy and Growth,Culture Sport and Tourism,Supplies and Services,338047,Services,04/11/2022,4065379-3,"2,110.00",REDACTED - PAYMENT TO INDIVIDUAL
Neighbourhoods and Climate Change,Technical Services CM0300,Stock A926,926900,Stock in hand-Inventory system,04/11/2022,4065442-11015,908.96,JG UNIFORMS.
Neighbourhoods and Climate Change,Technical Services CM0300,Stock A926,926900,Stock in hand-Inventory system,04/11/2022,4065452-0113/00782234,516.32,JT DOVE LTD.
Neighbourhoods and Climate Change,Technical Services CM0300,Stock A926,926900,Stock in hand-Inventory system,04/11/2022,4065636-1022905,"1,068.77",YOUR NRG LTD.
Neighbourhoods and Climate Change,Technical Services CM0300,Stock A926,926900,Stock in hand-Inventory system,04/11/2022,4065638-145501171,"1,314.00",ZG LIGHTING (UK) LTD.
Neighbourhoods and Climate Change,Technical Services CM0300,Stock A926,926900,Stock in hand-Inventory system,04/11/2022,4065638-145501353,"5,412.00",ZG LIGHTING (UK) LTD.
Neighbourhoods and Climate Change,Technical Services CM0300,Stock A926,926900,Stock in hand-Inventory system,04/11/2022,4065638-145501354,"2,040.00",ZG LIGHTING (UK) LTD.
Adult and Health Services,Commissioning inc Supporting People,Supplies and Services,372009,Subscriptions E372,04/11/2022,4065587-SINV17560,535.50,SKILLS FOR CARE SOLUTIONS LTD.
Regeneration Economy and Growth,Planning & Housing,Supplies and Services,336005,Advertising E336,07/11/2022,4065863-41295755,749.95,NEWSQUEST (YORKSHIRE & NORTH EAST) LTD.
Neighbourhoods and Climate Change,Technical Services CM0300,Fees,901004,Capital - Detailed Design,07/11/2022,4065980-17067,629.20,TEESDALE MERCURY LTD.
Regeneration Economy and Growth,Corporate Property and Land,Premises,106080,Centrally Controlled Rep and Maint,07/11/2022,4065761-7080988718,"4,997.11",HONEYWELL NOVAR SYSTEMS LTD.
Regeneration Economy and Growth,Culture Sport and Tourism,Premises,106080,Centrally Controlled Rep and Maint,07/11/2022,4065761-7080988719,"3,260.97",HONEYWELL NOVAR SYSTEMS LTD.
Regeneration Economy and Growth,Business Durham CL0850,Premises,106080,Centrally Controlled Rep and Maint,07/11/2022,4065761-7080988721,"5,466.24",HONEYWELL NOVAR SYSTEMS LTD.
Resources BK0010,Pensions CK0700,Supplies and Services,342051,Computers and Communications,07/11/2022,4065728-ONO1434975,"3,485.34",EXPERIAN LTD.
Children and Young Peoples Services,Head of Education and Skills,Transport,230008,Contract Hire,07/11/2022,4065721-1406,"2,940.00",EAST DURHAM TAXIS.
Children and Young Peoples Services,Head of Education and Skills,Transport,230008,Contract Hire,07/11/2022,4065721-1409-2,"3,500.00",EAST DURHAM TAXIS.
Children and Young Peoples Services,Head of Education and Skills,Transport,230008,Contract Hire,07/11/2022,4065731-N340-009,"1,740.00",FERRYHILL VILLAGE TRAVEL & BROOM ROAD GARAGE LIMITED.
Children and Young Peoples Services,Head of Education and Skills,Transport,230006,Contract Hire,07/11/2022,4065734-F242-OCT22,"1,481.80",FREEDOM PRIVATE HIRE.
Children and Young Peoples Services,Head of Education and Skills,Transport,230006,Contract Hire,07/11/2022,4065734-F242-SEPT22,740.90,FREEDOM PRIVATE HIRE.
Adult and Health Services,Head of Adults,Transport,230005,Contract Hire,07/11/2022,4065736-103098,"2,038.05",G & P JOHNSON LTD T/A NIGHTINGALE COACHES.
Adult and Health Services,Head of Adults,Transport,230005,Contract Hire,07/11/2022,4065736-103100,"1,970.19",G & P JOHNSON LTD T/A NIGHTINGALE COACHES.
Adult and Health Services,Head of Adults,Transport,230005,Contract Hire,07/11/2022,4065736-103101,"2,024.42",G & P JOHNSON LTD T/A NIGHTINGALE COACHES.
Children and Young Peoples Services,Head of Education and Skills,Transport,230008,Contract Hire,07/11/2022,4065736-103102,"2,384.00",G & P JOHNSON LTD T/A NIGHTINGALE COACHES.
Children and Young Peoples Services,Head of Education and Skills,Transport,230008,Contract Hire,07/11/2022,4065736-103103,"2,652.20",G & P JOHNSON LTD T/A NIGHTINGALE COACHES.
Children and Young Peoples Services,Head of Education and Skills,Transport,230008,Contract Hire,07/11/2022,4065736-103104,"1,568.00",G & P JOHNSON LTD T/A NIGHTINGALE COACHES.
Adult and Health Services,Head of Adults,Transport,230005,Contract Hire,07/11/2022,4065736-103105,"1,184.00",G & P JOHNSON LTD T/A NIGHTINGALE COACHES.
Adult and Health Services,Head of Adults,Transport,230005,Contract Hire,07/11/2022,4065736-103106,"1,932.00",G & P JOHNSON LTD T/A NIGHTINGALE COACHES.
Children and Young Peoples Services,Head of Education and Skills,Transport,230008,Contract Hire,07/11/2022,4065736-103109,"1,496.21",G & P JOHNSON LTD T/A NIGHTINGALE COACHES.
Children and Young Peoples Services,Head of Education and Skills,Transport,230008,Contract Hire,07/11/2022,4065736-103110,"1,397.60",G & P JOHNSON LTD T/A NIGHTINGALE COACHES.
Children and Young Peoples Services,Head of Education and Skills,Transport,230008,Contract Hire,07/11/2022,4065736-103111,948.95,G & P JOHNSON LTD T/A NIGHTINGALE COACHES.
Children and Young Peoples Services,Head of Education and Skills,Transport,230008,Contract Hire,07/11/2022,4065736-103114,948.80,G & P JOHNSON LTD T/A NIGHTINGALE COACHES.
Children and Young Peoples Services,Head of Education and Skills,Transport,230008,Contract Hire,07/11/2022,4065736-103115,"1,055.54",G & P JOHNSON LTD T/A NIGHTINGALE COACHES.
Children and Young Peoples Services,Head of Education and Skills,Transport,230008,Contract Hire,07/11/2022,4065736-103116,"2,273.42",G & P JOHNSON LTD T/A NIGHTINGALE COACHES.
Children and Young Peoples Services,Head of Education and Skills,Transport,230008,Contract Hire,07/11/2022,4065736-103117,"2,043.52",G & P JOHNSON LTD T/A NIGHTINGALE COACHES.
Children and Young Peoples Services,Head of Education and Skills,Transport,230008,Contract Hire,07/11/2022,4065736-103118,"1,586.88",G & P JOHNSON LTD T/A NIGHTINGALE COACHES.
Children and Young Peoples Services,Head of Education and Skills,Transport,230008,Contract Hire,07/11/2022,4065736-103119,"1,765.40",G & P JOHNSON LTD T/A NIGHTINGALE COACHES.
Children and Young Peoples Services,Head of Education and Skills,Transport,230008,Contract Hire,07/11/2022,4065736-103120,"1,838.38",G & P JOHNSON LTD T/A NIGHTINGALE COACHES.
Children and Young Peoples Services,Head of Education and Skills,Transport,230008,Contract Hire,07/11/2022,4065736-103121,"1,652.48",G & P JOHNSON LTD T/A NIGHTINGALE COACHES.
Children and Young Peoples Services,Head of Education and Skills,Transport,230008,Contract Hire,07/11/2022,4065736-103122,"1,399.20",G & P JOHNSON LTD T/A NIGHTINGALE COACHES.
Children and Young Peoples Services,Head of Education and Skills,Transport,230008,Contract Hire,07/11/2022,4065736-103123,"1,556.61",G & P JOHNSON LTD T/A NIGHTINGALE COACHES.
Children and Young Peoples Services,Head of Education and Skills,Transport,230016,Contract Hire,07/11/2022,4065736-103126,"1,092.16",G & P JOHNSON LTD T/A NIGHTINGALE COACHES.
Children and Young Peoples Services,Head of Education and Skills,Transport,230008,Contract Hire,07/11/2022,4065736-103127,"1,215.03",G & P JOHNSON LTD T/A NIGHTINGALE COACHES.
Children and Young Peoples Services,Head of Education and Skills,Transport,230008,Contract Hire,07/11/2022,4065736-103128,"1,044.15",G & P JOHNSON LTD T/A NIGHTINGALE COACHES.
Children and Young Peoples Services,Head of Education and Skills,Transport,230008,Contract Hire,07/11/2022,4065736-103129,938.56,G & P JOHNSON LTD T/A NIGHTINGALE COACHES.
Children and Young Peoples Services,Head of Education and Skills,Transport,230008,Contract Hire,07/11/2022,4065736-103130,"1,135.04",G & P JOHNSON LTD T/A NIGHTINGALE COACHES.
Children and Young Peoples Services,Head of Education and Skills,Transport,230008,Contract Hire,07/11/2022,4065736-103131,"1,262.73",G & P JOHNSON LTD T/A NIGHTINGALE COACHES.
Children and Young Peoples Services,Head of Education and Skills,Transport,230008,Contract Hire,07/11/2022,4065736-103132,"1,488.97",G & P JOHNSON LTD T/A NIGHTINGALE COACHES.
Children and Young Peoples Services,Head of Education and Skills,Transport,230008,Contract Hire,07/11/2022,4065736-103133,"1,338.40",G & P JOHNSON LTD T/A NIGHTINGALE COACHES.
Children and Young Peoples Services,Head of Education and Skills,Transport,230008,Contract Hire,07/11/2022,4065736-103136,"1,791.57",G & P JOHNSON LTD T/A NIGHTINGALE COACHES.
Children and Young Peoples Services,Head of Education and Skills,Transport,230008,Contract Hire,07/11/2022,4065736-103137,"1,610.40",G & P JOHNSON LTD T/A NIGHTINGALE COACHES.
Children and Young Peoples Services,Head of Education and Skills,Transport,230008,Contract Hire,07/11/2022,4065736-103138,"1,722.72",G & P JOHNSON LTD T/A NIGHTINGALE COACHES.
Children and Young Peoples Services,Head of Education and Skills,Transport,230008,Contract Hire,07/11/2022,4065736-103139,"1,916.53",G & P JOHNSON LTD T/A NIGHTINGALE COACHES.
Children and Young Peoples Services,Head of Education and Skills,Transport,230008,Contract Hire,07/11/2022,4065736-103140,"1,723.76",G & P JOHNSON LTD T/A NIGHTINGALE COACHES.
Children and Young Peoples Services,Head of Education and Skills,Transport,230008,Contract Hire,07/11/2022,4065736-103141,"1,549.44",G & P JOHNSON LTD T/A NIGHTINGALE COACHES.
Children and Young Peoples Services,Head of Education and Skills,Transport,230008,Contract Hire,07/11/2022,4065736-103142,"1,331.04",G & P JOHNSON LTD T/A NIGHTINGALE COACHES.
Children and Young Peoples Services,Head of Education and Skills,Transport,230008,Contract Hire,07/11/2022,4065736-103143,"1,480.78",G & P JOHNSON LTD T/A NIGHTINGALE COACHES.
Children and Young Peoples Services,Head of Education and Skills,Transport,230008,Contract Hire,07/11/2022,4065736-103146,921.44,G & P JOHNSON LTD T/A NIGHTINGALE COACHES.
Children and Young Peoples Services,Head of Education and Skills,Transport,230008,Contract Hire,07/11/2022,4065736-103147,"1,025.10",G & P JOHNSON LTD T/A NIGHTINGALE COACHES.
Children and Young Peoples Services,Head of Education and Skills,Transport,230007,Contract Hire,07/11/2022,4065749-HT662,"2,759.10",HARRY`S TAXI`S.
Children and Young Peoples Services,Head of Education and Skills,Transport,230008,Contract Hire,07/11/2022,4065749-HT664,"1,503.36",HARRY`S TAXI`S.
Children and Young Peoples Services,Head of Education and Skills,Transport,230006,Contract Hire,07/11/2022,4065753-SI-30,"2,250.00",HEPWORTHS TRAVEL.
Children and Young Peoples Services,Head of Education and Skills,Transport,230003,Contract Hire,07/11/2022,4065753-SI-33,"2,560.00",HEPWORTHS TRAVEL.
Adult and Health Services,Head of Adults,Transport,230005,Contract Hire,07/11/2022,4065765-1105,"2,095.80",I & R EXECUTIVE TRAVEL.
Children and Young Peoples Services,Head of Education and Skills,Transport,230007,Contract Hire,07/11/2022,4065771-6508-22,832.00,J YOUNG T/A VIP TAXIS.
Children and Young Peoples Services,Head of Education and Skills,Transport,230007,Contract Hire,07/11/2022,4065771-6509-22,960.00,J YOUNG T/A VIP TAXIS.
Children and Young Peoples Services,Head of Education and Skills,Transport,230006,Contract Hire,07/11/2022,4065771-6510-22,832.00,J YOUNG T/A VIP TAXIS.
Children and Young Peoples Services,Head of Education and Skills,Transport,230007,Contract Hire,07/11/2022,4065776-INV3234,"2,569.38",JEFF ANDERSON COACHES LTD.
Children and Young Peoples Services,Head of Education and Skills,Transport,230008,Contract Hire,07/11/2022,4065776-INV3235,"1,748.68",JEFF ANDERSON COACHES LTD.
Children and Young Peoples Services,Head of Education and Skills,Transport,230007,Contract Hire,07/11/2022,4065776-INV3236,"1,374.40",JEFF ANDERSON COACHES LTD.
Children and Young Peoples Services,Head of Education and Skills,Transport,230008,Contract Hire,07/11/2022,4065776-INV3237,"1,999.84",JEFF ANDERSON COACHES LTD.
Children and Young Peoples Services,Head of Education and Skills,Transport,230007,Contract Hire,07/11/2022,4065781-61-OCT22,"1,440.00",JOHN CRAKE & SONS MINI BUSES LTD.
Adult and Health Services,Head of Adults,Transport,230005,Contract Hire,07/11/2022,4065781-62-OCT22,"1,736.70",JOHN CRAKE & SONS MINI BUSES LTD.
Adult and Health Services,Head of Adults,Transport,230005,Contract Hire,07/11/2022,4065781-63-OCT22,"1,470.00",JOHN CRAKE & SONS MINI BUSES LTD.
Children and Young Peoples Services,Head of Education and Skills,Transport,230008,Contract Hire,07/11/2022,4065784-M01613,"1,277.51",JOVIAL PRIVATE HIRE.
Children and Young Peoples Services,Head of Education and Skills,Transport,230008,Contract Hire,07/11/2022,4065784-N030014,"2,660.98",JOVIAL PRIVATE HIRE.
Children and Young Peoples Services,Head of Education and Skills,Transport,230008,Contract Hire,07/11/2022,4065789-1321,638.40,K & R TAXIS (STANLEY).
Children and Young Peoples Services,Head of Education and Skills,Transport,230008,Contract Hire,07/11/2022,4065789-1323,"3,648.80",K & R TAXIS (STANLEY).
Children and Young Peoples Services,Head of Education and Skills,Transport,230008,Contract Hire,07/11/2022,4065789-1326,"3,836.32",K & R TAXIS (STANLEY).
Children and Young Peoples Services,Head of Education and Skills,Transport,230008,Contract Hire,07/11/2022,4065789-1328,"2,457.28",K & R TAXIS (STANLEY).
Children and Young Peoples Services,Head of Education and Skills,Transport,230012,Contract Hire,07/11/2022,4065789-1329,"2,969.12",K & R TAXIS (STANLEY).
Children and Young Peoples Services,Head of Education and Skills,Transport,230008,Contract Hire,07/11/2022,4065789-1330,"3,273.92",K & R TAXIS (STANLEY).
Children and Young Peoples Services,Head of Education and Skills,Transport,230008,Contract Hire,07/11/2022,4065789-1331,"2,414.40",K & R TAXIS (STANLEY).
Children and Young Peoples Services,Head of Education and Skills,Transport,230012,Contract Hire,07/11/2022,4065789-1332,"2,944.32",K & R TAXIS (STANLEY).
Children and Young Peoples Services,Head of Education and Skills,Transport,230008,Contract Hire,07/11/2022,4065789-1333,"3,015.54",K & R TAXIS (STANLEY).
Children and Young Peoples Services,Head of Education and Skills,Transport,230008,Contract Hire,07/11/2022,4065789-1334,"1,188.00",K & R TAXIS (STANLEY).
Children and Young Peoples Services,Head of Education and Skills,Transport,230008,Contract Hire,07/11/2022,4065790-02-OCT22,"2,218.40",KD TAXIS.
Children and Young Peoples Services,Head of Education and Skills,Transport,230006,Contract Hire,07/11/2022,4065792-2054-OCT22,"3,120.00",KINGSWAY CABS LTD.
Children and Young Peoples Services,Head of Education and Skills,Transport,230008,Contract Hire,07/11/2022,4065792-2074,570.00,KINGSWAY CABS LTD.
Children and Young Peoples Services,Head of Education and Skills,Transport,230006,Contract Hire,07/11/2022,4065800-3069,"1,825.00",LD TAXIS.
Children and Young Peoples Services,Head of Education and Skills,Transport,230008,Contract Hire,07/11/2022,4065800-3073,"1,600.00",LD TAXIS.
Children and Young Peoples Services,Head of Education and Skills,Transport,230007,Contract Hire,07/11/2022,4065800-3075,"1,120.00",LD TAXIS.
Children and Young Peoples Services,Head of Education and Skills,Transport,230008,Contract Hire,07/11/2022,4065800-3077,"1,120.00",LD TAXIS.
Adult and Health Services,Head of Adults,Transport,230005,Contract Hire,07/11/2022,4065800-3079,"1,680.00",LD TAXIS.
Children and Young Peoples Services,Head of Education and Skills,Transport,230008,Contract Hire,07/11/2022,4065805-4898,"2,391.51",LINCAB TAXIS.
Children and Young Peoples Services,Head of Education and Skills,Transport,230008,Contract Hire,07/11/2022,4065805-4899,"3,418.83",LINCAB TAXIS.
Children and Young Peoples Services,Head of Education and Skills,Transport,230008,Contract Hire,07/11/2022,4065805-4900,"3,217.71",LINCAB TAXIS.
Children and Young Peoples Services,Head of Education and Skills,Transport,230007,Contract Hire,07/11/2022,4065805-4901,"2,205.92",LINCAB TAXIS.
Children and Young Peoples Services,Head of Education and Skills,Transport,230007,Contract Hire,07/11/2022,4065814-INV10/202234,"1,410.08",MARK & JOHN CHISHOLM T/A (CHEVRON).
Children and Young Peoples Services,Head of Education and Skills,Transport,230007,Contract Hire,07/11/2022,4065814-INV10/2201,"1,308.83",MARK & JOHN CHISHOLM T/A (CHEVRON).
Children and Young Peoples Services,Head of Education and Skills,Transport,230006,Contract Hire,07/11/2022,4065827-469,"1,716.00",MICKS TAXIS - MURTON.
Children and Young Peoples Services,Head of Education and Skills,Transport,230006,Contract Hire,07/11/2022,4065827-472,900.00,MICKS TAXIS - MURTON.
Children and Young Peoples Services,Head of Education and Skills,Transport,230008,Contract Hire,07/11/2022,4065831-A009-OCT22,"2,326.88",MOLLY`S TAXIS LTD.
Children and Young Peoples Services,Head of Education and Skills,Transport,230006,Contract Hire,07/11/2022,4065831-A024-OCT22,"1,480.00",MOLLY`S TAXIS LTD.
Children and Young Peoples Services,Head of Education and Skills,Transport,230008,Contract Hire,07/11/2022,4065831-N012-OCT22,"4,243.20",MOLLY`S TAXIS LTD.
Children and Young Peoples Services,Head of Education and Skills,Transport,230008,Contract Hire,07/11/2022,4065831-N038-OCT22,"3,005.28",MOLLY`S TAXIS LTD.
Children and Young Peoples Services,Head of Education and Skills,Transport,230008,Contract Hire,07/11/2022,4065831-N077-OCT22,"4,320.00",MOLLY`S TAXIS LTD.
Children and Young Peoples Services,Head of Education and Skills,Transport,230008,Contract Hire,07/11/2022,4065832-2022004,"1,250.00",MOSSOPS LUXURY TRAVEL.
Children and Young Peoples Services,Head of Education and Skills,Transport,230006,Contract Hire,07/11/2022,4065860-OCTOBER2022/F806,915.86,ND TAXIS.
Children and Young Peoples Services,Head of Education and Skills,Transport,230008,Contract Hire,07/11/2022,4065895-794,"2,880.00",PETERLEE EXECUTIVE CARS.
Children and Young Peoples Services,Head of Education and Skills,Transport,230034,Contract Hire,07/11/2022,4065897-OCT22-3422,904.32,PETER`S TAXIS.
Children and Young Peoples Services,Head of Education and Skills,Transport,230003,Contract Hire,07/11/2022,4065897-OCT22-3501,"1,280.00",PETER`S TAXIS.
Children and Young Peoples Services,Head of Education and Skills,Transport,230034,Contract Hire,07/11/2022,4065897-OCT22-5294,"1,402.08",PETER`S TAXIS.
Children and Young Peoples Services,Head of Education and Skills,Transport,230006,Contract Hire,07/11/2022,4065897-OCT22-F116,"1,284.08",PETER`S TAXIS.
Children and Young Peoples Services,Head of Education and Skills,Transport,230035,Contract Hire,07/11/2022,4065897-OCT2203482,"1,462.24",PETER`S TAXIS.
Children and Young Peoples Services,Head of Education and Skills,Transport,230008,Contract Hire,07/11/2022,4065904-1392,"2,512.00",PODA TAXIS LTD.
Children and Young Peoples Services,Head of Education and Skills,Transport,230007,Contract Hire,07/11/2022,4065915-02-3194-OCT22,"1,291.65",RAYNERS COACHES.
Children and Young Peoples Services,Head of Education and Skills,Transport,230007,Contract Hire,07/11/2022,4065915-02-4004-OCT22,"1,215.37",RAYNERS COACHES.
Children and Young Peoples Services,Head of Education and Skills,Transport,230007,Contract Hire,07/11/2022,4065915-02-4006-OCT22,"2,338.40",RAYNERS COACHES.
Children and Young Peoples Services,Head of Education and Skills,Transport,230007,Contract Hire,07/11/2022,4065915-02-4062-OCT22,"1,278.08",RAYNERS COACHES.
Children and Young Peoples Services,Head of Education and Skills,Transport,230007,Contract Hire,07/11/2022,4065915-02-4405-OCT22,"3,306.76",RAYNERS COACHES.
Children and Young Peoples Services,Head of Education and Skills,Transport,230006,Contract Hire,07/11/2022,4065916-RDS083,"1,280.00",RDS TAXI.
Children and Young Peoples Services,Head of Education and Skills,Transport,230006,Contract Hire,07/11/2022,4065925-SI-58,"1,747.50",ROBBIE`S PRIVATE HIRE.
Children and Young Peoples Services,Head of Education and Skills,Transport,230007,Contract Hire,07/11/2022,4065926-1672,630.00,ROBERTS TOURS.
Children and Young Peoples Services,Head of Education and Skills,Transport,230007,Contract Hire,07/11/2022,4065926-1803,"4,720.00",ROBERTS TOURS.
Children and Young Peoples Services,Head of Education and Skills,Transport,230007,Contract Hire,07/11/2022,4065926-1804,"4,720.00",ROBERTS TOURS.
Children and Young Peoples Services,Head of Education and Skills,Transport,230007,Contract Hire,07/11/2022,4065926-1805,"3,160.00",ROBERTS TOURS.
Children and Young Peoples Services,Head of Education and Skills,Transport,230007,Contract Hire,07/11/2022,4065926-1806,"3,772.30",ROBERTS TOURS.
Children and Young Peoples Services,Head of Education and Skills,Transport,230007,Contract Hire,07/11/2022,4065926-1807,"6,160.04",ROBERTS TOURS.
Children and Young Peoples Services,Head of Education and Skills,Transport,230006,Contract Hire,07/11/2022,4065928-OCT22-F133,940.00,ROGERS TAXIS.
Children and Young Peoples Services,Head of Education and Skills,Transport,230008,Contract Hire,07/11/2022,4065929-0010-OCT22,"2,775.94",RONS TAXI (CHESTER LE ST).
Children and Young Peoples Services,Head of Education and Skills,Transport,230008,Contract Hire,07/11/2022,4065936-S009/38,"2,810.08",S & S TRAVEL LTD.
Children and Young Peoples Services,Head of Education and Skills,Transport,230008,Contract Hire,07/11/2022,4065936-S017/66,"2,053.44",S & S TRAVEL LTD.
Adult and Health Services,Head of Adults,Transport,230005,Contract Hire,07/11/2022,4065936-SED112/42,"1,710.37",S & S TRAVEL LTD.
Children and Young Peoples Services,Head of Education and Skills,Transport,230008,Contract Hire,07/11/2022,4065936-W014/36,"2,709.32",S & S TRAVEL LTD.
Children and Young Peoples Services,Head of Education and Skills,Transport,230008,Contract Hire,07/11/2022,4065936-W032/38,"2,745.12",S & S TRAVEL LTD.
Children and Young Peoples Services,Head of Education and Skills,Transport,230008,Contract Hire,07/11/2022,4065936-W067/37,"2,728.32",S & S TRAVEL LTD.
Children and Young Peoples Services,Head of Education and Skills,Transport,230008,Contract Hire,07/11/2022,4065936-W076/37,"2,676.00",S & S TRAVEL LTD.
Children and Young Peoples Services,Head of Education and Skills,Transport,230008,Contract Hire,07/11/2022,4065936-W178/20,"1,412.64",S & S TRAVEL LTD.
Children and Young Peoples Services,Head of Education and Skills,Transport,230007,Contract Hire,07/11/2022,4065940-SKS2223-016,"1,668.48",SAMUEL KINGS SCHOOL.
Children and Young Peoples Services,Head of Education and Skills,Transport,230006,Contract Hire,07/11/2022,4065946-41,"3,077.08",SEBASTIAN`S TAXI.
Children and Young Peoples Services,Head of Education and Skills,Transport,230008,Contract Hire,07/11/2022,4065949-221025,"2,485.95",SHOTTON PRIVATE HIRE.
Children and Young Peoples Services,Head of Education and Skills,Transport,230008,Contract Hire,07/11/2022,4065949-221026,"2,599.47",SHOTTON PRIVATE HIRE.
Children and Young Peoples Services,Head of Education and Skills,Transport,230008,Contract Hire,07/11/2022,4065949-221027,"2,483.28",SHOTTON PRIVATE HIRE.
Children and Young Peoples Services,Head of Education and Skills,Transport,230008,Contract Hire,07/11/2022,4065949-221028,"1,856.00",SHOTTON PRIVATE HIRE.
Children and Young Peoples Services,Head of Education and Skills,Transport,230010,Contract Hire,07/11/2022,4065949-221029,"1,272.90",SHOTTON PRIVATE HIRE.
Children and Young Peoples Services,Head of Education and Skills,Transport,230008,Contract Hire,07/11/2022,4065949-221030,"3,444.75",SHOTTON PRIVATE HIRE.
Children and Young Peoples Services,Head of Education and Skills,Transport,230007,Contract Hire,07/11/2022,4065953-3437,"1,513.05",SIMONS TAXIS.
Children and Young Peoples Services,Head of Education and Skills,Transport,230006,Contract Hire,07/11/2022,4065953-3438,"1,391.00",SIMONS TAXIS.
Children and Young Peoples Services,Head of Education and Skills,Transport,230006,Contract Hire,07/11/2022,4065953-3439,"1,472.00",SIMONS TAXIS.
Children and Young Peoples Services,Head of Education and Skills,Transport,230009,Contract Hire,07/11/2022,4065964-07336,"1,313.09",STANLEY TRAVEL (NORTH EAST) LTD.
Children and Young Peoples Services,Head of Education and Skills,Transport,230008,Contract Hire,07/11/2022,4065965-0015,"2,190.00",STARGATE TAXIS.
Children and Young Peoples Services,Head of Education and Skills,Transport,230007,Contract Hire,07/11/2022,4065979-4055/54,"3,272.61",TED WILFORD COACHES.
Children and Young Peoples Services,Head of Education and Skills,Transport,230003,Contract Hire,07/11/2022,4065979-5030/54,"3,272.61",TED WILFORD COACHES.
Children and Young Peoples Services,Head of Education and Skills,Transport,230003,Contract Hire,07/11/2022,4065979-5300/54,"3,227.30",TED WILFORD COACHES.
Children and Young Peoples Services,Head of Education and Skills,Transport,230006,Contract Hire,07/11/2022,4065992-1-OCT22,"2,254.20",TONYS TAXIS (J BIRCH).
Adult and Health Services,Head of Adults,Transport,230005,Contract Hire,07/11/2022,4065992-2-OCT22,695.42,TONYS TAXIS (J BIRCH).
Adult and Health Services,Head of Adults,Transport,230005,Contract Hire,07/11/2022,4065992-3-OCT22,637.78,TONYS TAXIS (J BIRCH).
Children and Young Peoples Services,Head of Education and Skills,Transport,230008,Contract Hire,07/11/2022,4065992-4-OCT22,"2,185.60",TONYS TAXIS (J BIRCH).
Adult and Health Services,Head of Adults,Transport,230005,Contract Hire,07/11/2022,4065992-5-OCT22,"2,668.47",TONYS TAXIS (J BIRCH).
Children and Young Peoples Services,Head of Education and Skills,Transport,230034,Contract Hire,07/11/2022,4065997-SH00012,"1,065.09",TRAVEL 6.
Children and Young Peoples Services,Head of Education and Skills,Transport,230007,Contract Hire,07/11/2022,4065997-TCP0002,900.00,TRAVEL 6.
Children and Young Peoples Services,Head of Education and Skills,Transport,230007,Contract Hire,07/11/2022,4066007-18255,"3,032.00",WEARDALE MOTOR SERVICES LTD.
Children and Young Peoples Services,Head of Education and Skills,Transport,230008,Contract Hire,07/11/2022,4066009-15390/54,"1,742.56",WENDYS` TAXIS.
Children and Young Peoples Services,Head of Education and Skills,Transport,230010,Contract Hire,07/11/2022,4066010-1022,"1,535.58",WEST AUCKLAND TOWN TRAVEL (WATT).
Children and Young Peoples Services,Head of Education and Skills,Transport,230010,Contract Hire,07/11/2022,4066010-1022-A,"1,092.30",WEST AUCKLAND TOWN TRAVEL (WATT).
Children and Young Peoples Services,Head of Education and Skills,Transport,230008,Contract Hire,07/11/2022,4066012-WESTLEA311022,"2,269.54",WESTLEA TAXIS.
Children and Young Peoples Services,Head of Education and Skills,Transport,230006,Contract Hire,07/11/2022,4065639-OCT22-F849,960.00,REDACTED - PAYMENT TO INDIVIDUAL
Children and Young Peoples Services,Head of Education and Skills,Transport,230008,Contract Hire,07/11/2022,4065652-00717,910.00,REDACTED - PAYMENT TO INDIVIDUAL
Children and Young Peoples Services,Head of Education and Skills,Transport,230008,Contract Hire,07/11/2022,4065652-00742,"3,162.72",REDACTED - PAYMENT TO INDIVIDUAL
Adult and Health Services,Head of Adults,Transport,230005,Contract Hire,07/11/2022,4065652-00743,"3,150.00",REDACTED - PAYMENT TO INDIVIDUAL
Children and Young Peoples Services,Head of Education and Skills,Transport,230016,Contract Hire,07/11/2022,4065652-00744,"2,710.72",REDACTED - PAYMENT TO INDIVIDUAL
Children and Young Peoples Services,Head of Education and Skills,Transport,230012,Contract Hire,07/11/2022,4065652-00747,"2,613.00",REDACTED - PAYMENT TO INDIVIDUAL
Children and Young Peoples Services,Head of Education and Skills,Transport,230008,Contract Hire,07/11/2022,4065652-00749,"2,589.60",REDACTED - PAYMENT TO INDIVIDUAL
Adult and Health Services,Head of Adults,Transport,230005,Contract Hire,07/11/2022,4065652-00751,612.00,REDACTED - PAYMENT TO INDIVIDUAL
Children and Young Peoples Services,Head of Education and Skills,Transport,230006,Contract Hire,07/11/2022,4065652-00752,"1,230.00",REDACTED - PAYMENT TO INDIVIDUAL
Children and Young Peoples Services,Head of Education and Skills,Transport,230008,Contract Hire,07/11/2022,4065652-00753,"2,208.00",REDACTED - PAYMENT TO INDIVIDUAL
Children and Young Peoples Services,Head of Education and Skills,Transport,230010,Contract Hire,07/11/2022,4065652-00754,"2,697.72",REDACTED - PAYMENT TO INDIVIDUAL
Children and Young Peoples Services,Head of Education and Skills,Transport,230016,Contract Hire,07/11/2022,4065652-00756,"2,370.00",REDACTED - PAYMENT TO INDIVIDUAL
Children and Young Peoples Services,Head of Education and Skills,Transport,230008,Contract Hire,07/11/2022,4065652-00757,"2,080.00",REDACTED - PAYMENT TO INDIVIDUAL
Children and Young Peoples Services,Head of Education and Skills,Transport,230006,Contract Hire,07/11/2022,4065738-2AA,"1,744.00",REDACTED - PAYMENT TO INDIVIDUAL
Children and Young Peoples Services,Head of Education and Skills,Transport,230006,Contract Hire,07/11/2022,4065766-F877-OCT22,"1,322.88",REDACTED - PAYMENT TO INDIVIDUAL
Children and Young Peoples Services,Head of Education and Skills,Transport,230008,Contract Hire,07/11/2022,4065779-W071-OCT,"2,560.00",REDACTED - PAYMENT TO INDIVIDUAL
Children and Young Peoples Services,Head of Education and Skills,Transport,230008,Contract Hire,07/11/2022,4065779-W090-OCT,"2,156.16",REDACTED - PAYMENT TO INDIVIDUAL
Children and Young Peoples Services,Head of Education and Skills,Transport,230008,Contract Hire,07/11/2022,4065779-W103-OCT,"3,084.48",REDACTED - PAYMENT TO INDIVIDUAL
Adult and Health Services,Head of Adults,Transport,230005,Contract Hire,07/11/2022,4065782-01102022,"1,250.70",REDACTED - PAYMENT TO INDIVIDUAL
Children and Young Peoples Services,Head of Education and Skills,Transport,230008,Contract Hire,07/11/2022,4065783-0044,"2,385.12",REDACTED - PAYMENT TO INDIVIDUAL
Children and Young Peoples Services,Head of Education and Skills,Transport,230007,Contract Hire,07/11/2022,4065791-TL002,946.00,REDACTED - PAYMENT TO INDIVIDUAL
Children and Young Peoples Services,Head of Education and Skills,Transport,230007,Contract Hire,07/11/2022,4065795-003-OCT22,"1,024.00",REDACTED - PAYMENT TO INDIVIDUAL
Children and Young Peoples Services,Head of Education and Skills,Transport,230008,Contract Hire,07/11/2022,4065803-0101,"3,435.00",REDACTED - PAYMENT TO INDIVIDUAL
Children and Young Peoples Services,Head of Education and Skills,Transport,230010,Contract Hire,07/11/2022,4065816-0002-OCT22,"1,600.00",REDACTED - PAYMENT TO INDIVIDUAL
Children and Young Peoples Services,Head of Education and Skills,Transport,230006,Contract Hire,07/11/2022,4065817-311022,970.00,REDACTED - PAYMENT TO INDIVIDUAL
Children and Young Peoples Services,Head of Education and Skills,Transport,230008,Contract Hire,07/11/2022,4065818-KC-3818,"2,800.00",REDACTED - PAYMENT TO INDIVIDUAL
Children and Young Peoples Services,Head of Education and Skills,Transport,230008,Contract Hire,07/11/2022,4065818-KC3817,"1,958.88",REDACTED - PAYMENT TO INDIVIDUAL
Children and Young Peoples Services,Head of Education and Skills,Transport,230008,Contract Hire,07/11/2022,4065819-0108,"2,656.00",REDACTED - PAYMENT TO INDIVIDUAL
Children and Young Peoples Services,Head of Education and Skills,Transport,230008,Contract Hire,07/11/2022,4065819-0109,"2,098.88",REDACTED - PAYMENT TO INDIVIDUAL
Children and Young Peoples Services,Head of Education and Skills,Transport,230007,Contract Hire,07/11/2022,4065823-6075/10,"2,880.00",REDACTED - PAYMENT TO INDIVIDUAL
Children and Young Peoples Services,Head of Education and Skills,Transport,230008,Contract Hire,07/11/2022,4065823-A011/1022,"4,230.80",REDACTED - PAYMENT TO INDIVIDUAL
Children and Young Peoples Services,Head of Education and Skills,Transport,230006,Contract Hire,07/11/2022,4065823-F831/10,"2,250.00",REDACTED - PAYMENT TO INDIVIDUAL
Children and Young Peoples Services,Head of Education and Skills,Transport,230006,Contract Hire,07/11/2022,4065824-INV249,"1,330.00",REDACTED - PAYMENT TO INDIVIDUAL
Children and Young Peoples Services,Head of Education and Skills,Transport,230008,Contract Hire,07/11/2022,4065824-INV250,"1,760.00",REDACTED - PAYMENT TO INDIVIDUAL
Children and Young Peoples Services,Head of Education and Skills,Transport,230008,Contract Hire,07/11/2022,4065830-KDC-01112022,"1,916.29",REDACTED - PAYMENT TO INDIVIDUAL
Children and Young Peoples Services,Head of Education and Skills,Transport,230008,Contract Hire,07/11/2022,4065834-OCT22-W099,"2,160.00",REDACTED - PAYMENT TO INDIVIDUAL
Children and Young Peoples Services,Head of Education and Skills,Transport,230006,Contract Hire,07/11/2022,4065835-701-OCT22,"1,170.00",REDACTED - PAYMENT TO INDIVIDUAL
Children and Young Peoples Services,Head of Education and Skills,Transport,230012,Contract Hire,07/11/2022,4065836-E054-13,"1,881.50",REDACTED - PAYMENT TO INDIVIDUAL
Children and Young Peoples Services,Head of Education and Skills,Transport,230035,Contract Hire,07/11/2022,4065837-WHIT300922-OCT22,984.18,REDACTED - PAYMENT TO INDIVIDUAL
Children and Young Peoples Services,Head of Education and Skills,Transport,230006,Contract Hire,07/11/2022,4065838-020-A,"1,197.79",REDACTED - PAYMENT TO INDIVIDUAL
Children and Young Peoples Services,Head of Education and Skills,Transport,230016,Contract Hire,07/11/2022,4065839-AK/10/22,"1,950.00",REDACTED - PAYMENT TO INDIVIDUAL
Children and Young Peoples Services,Head of Education and Skills,Transport,230007,Contract Hire,07/11/2022,4065839-BR/10/22,"1,390.56",REDACTED - PAYMENT TO INDIVIDUAL
Children and Young Peoples Services,Head of Education and Skills,Transport,230008,Contract Hire,07/11/2022,4065840-23-OCT22,"3,900.00",REDACTED - PAYMENT TO INDIVIDUAL
Children and Young Peoples Services,Head of Education and Skills,Transport,230006,Contract Hire,07/11/2022,4065842-OCT22-A058,"2,640.00",REDACTED - PAYMENT TO INDIVIDUAL
Children and Young Peoples Services,Head of Education and Skills,Transport,230007,Contract Hire,07/11/2022,4065843-2-OCT22,"2,217.63",REDACTED - PAYMENT TO INDIVIDUAL
Children and Young Peoples Services,Head of Education and Skills,Transport,230008,Contract Hire,07/11/2022,4065844-365,"1,760.00",REDACTED - PAYMENT TO INDIVIDUAL
Children and Young Peoples Services,Head of Education and Skills,Transport,230008,Contract Hire,07/11/2022,4065844-367,"1,921.60",REDACTED - PAYMENT TO INDIVIDUAL
Children and Young Peoples Services,Head of Education and Skills,Transport,230034,Contract Hire,07/11/2022,4065846-4501-OCT22,"2,196.89",REDACTED - PAYMENT TO INDIVIDUAL
Adult and Health Services,Head of Adults,Transport,230005,Contract Hire,07/11/2022,4065846-DW144OCT22,"1,680.00",REDACTED - PAYMENT TO INDIVIDUAL
Children and Young Peoples Services,Head of Education and Skills,Transport,230009,Contract Hire,07/11/2022,4065847-0065,"2,060.00",REDACTED - PAYMENT TO INDIVIDUAL
Children and Young Peoples Services,Head of Education and Skills,Transport,230010,Contract Hire,07/11/2022,4065848-02-OCT22,"2,238.68",REDACTED - PAYMENT TO INDIVIDUAL
Children and Young Peoples Services,Head of Education and Skills,Transport,230006,Contract Hire,07/11/2022,4065849-CBA002,828.14,REDACTED - PAYMENT TO INDIVIDUAL
Children and Young Peoples Services,Head of Education and Skills,Transport,230034,Contract Hire,07/11/2022,4065855-DCC/006/22,"2,000.00",REDACTED - PAYMENT TO INDIVIDUAL
Children and Young Peoples Services,Head of Education and Skills,Transport,230007,Contract Hire,07/11/2022,4065855-DCC/006/22-1301,"1,952.00",REDACTED - PAYMENT TO INDIVIDUAL
Children and Young Peoples Services,Head of Education and Skills,Transport,230035,Contract Hire,07/11/2022,4065855-DCC/006/22-4390,"1,584.00",REDACTED - PAYMENT TO INDIVIDUAL
Children and Young Peoples Services,Head of Education and Skills,Transport,230006,Contract Hire,07/11/2022,4065855-DCC/006/22-F882,600.00,REDACTED - PAYMENT TO INDIVIDUAL
Children and Young Peoples Services,Head of Education and Skills,Transport,230009,Contract Hire,07/11/2022,4065855-DCC/006/22-G002,"1,014.00",REDACTED - PAYMENT TO INDIVIDUAL
Children and Young Peoples Services,Head of Education and Skills,Transport,230008,Contract Hire,07/11/2022,4065861-91,"1,920.00",REDACTED - PAYMENT TO INDIVIDUAL
Children and Young Peoples Services,Head of Education and Skills,Transport,230007,Contract Hire,07/11/2022,4065888-SC-204,"2,533.12",REDACTED - PAYMENT TO INDIVIDUAL
Children and Young Peoples Services,Head of Education and Skills,Transport,230003,Contract Hire,07/11/2022,4065889-4500,"2,542.72",REDACTED - PAYMENT TO INDIVIDUAL
Children and Young Peoples Services,Head of Education and Skills,Transport,230034,Contract Hire,07/11/2022,4065893-6077-OCT22,"2,392.50",REDACTED - PAYMENT TO INDIVIDUAL
Children and Young Peoples Services,Head of Education and Skills,Transport,230008,Contract Hire,07/11/2022,4065893-E061-OCT22,"2,976.75",REDACTED - PAYMENT TO INDIVIDUAL
Children and Young Peoples Services,Head of Education and Skills,Transport,230008,Contract Hire,07/11/2022,4065893-E064-OCT22,"2,968.29",REDACTED - PAYMENT TO INDIVIDUAL
Children and Young Peoples Services,Head of Education and Skills,Transport,230007,Contract Hire,07/11/2022,4065894-141,"1,015.65",REDACTED - PAYMENT TO INDIVIDUAL
Children and Young Peoples Services,Head of Education and Skills,Transport,230007,Contract Hire,07/11/2022,4065894-142,874.40,REDACTED - PAYMENT TO INDIVIDUAL
Children and Young Peoples Services,Head of Education and Skills,Transport,230007,Contract Hire,07/11/2022,4065894-143,608.00,REDACTED - PAYMENT TO INDIVIDUAL
Children and Young Peoples Services,Head of Education and Skills,Transport,230007,Contract Hire,07/11/2022,4065894-144,"1,045.00",REDACTED - PAYMENT TO INDIVIDUAL
Children and Young Peoples Services,Head of Education and Skills,Transport,230034,Contract Hire,07/11/2022,4065894-145,"1,467.90",REDACTED - PAYMENT TO INDIVIDUAL
Children and Young Peoples Services,Head of Education and Skills,Transport,230006,Contract Hire,07/11/2022,4065894-146,"1,247.00",REDACTED - PAYMENT TO INDIVIDUAL
Children and Young Peoples Services,Head of Education and Skills,Transport,230034,Contract Hire,07/11/2022,4065913-002-OCT22,"1,800.00",REDACTED - PAYMENT TO INDIVIDUAL
Children and Young Peoples Services,Head of Education and Skills,Transport,230008,Contract Hire,07/11/2022,4065914-048,"2,092.50",REDACTED - PAYMENT TO INDIVIDUAL
Children and Young Peoples Services,Head of Education and Skills,Transport,230008,Contract Hire,07/11/2022,4065952-000010,"2,912.00",REDACTED - PAYMENT TO INDIVIDUAL
Children and Young Peoples Services,Head of Education and Skills,Transport,230008,Contract Hire,07/11/2022,4065952-000011,"2,057.04",REDACTED - PAYMENT TO INDIVIDUAL
Children and Young Peoples Services,Head of Education and Skills,Transport,230006,Contract Hire,07/11/2022,4065954-F774-OCT22,"1,762.59",REDACTED - PAYMENT TO INDIVIDUAL
Children and Young Peoples Services,Head of Education and Skills,Transport,230007,Contract Hire,07/11/2022,4065968-6872,"1,966.74",REDACTED - PAYMENT TO INDIVIDUAL
Children and Young Peoples Services,Head of Education and Skills,Transport,230007,Contract Hire,07/11/2022,4065968-6873,"5,468.42",REDACTED - PAYMENT TO INDIVIDUAL
Children and Young Peoples Services,Head of Education and Skills,Transport,230006,Contract Hire,07/11/2022,4065986-TBDAR002,581.22,REDACTED - PAYMENT TO INDIVIDUAL
Children and Young Peoples Services,Head of Education and Skills,Transport,230006,Contract Hire,07/11/2022,4065986-TBDAR002-A,"1,106.22",REDACTED - PAYMENT TO INDIVIDUAL
Children and Young Peoples Services,Head of Education and Skills,Transport,230006,Contract Hire,07/11/2022,4065986-TBDAR002-B,"1,363.72",REDACTED - PAYMENT TO INDIVIDUAL
Children and Young Peoples Services,Head of Education and Skills,Transport,230006,Contract Hire,07/11/2022,4065986-TBDAR003,"2,926.90",REDACTED - PAYMENT TO INDIVIDUAL
Children and Young Peoples Services,Head of Education and Skills,Transport,230008,Contract Hire,07/11/2022,4065986-TBTRIM001,600.00,REDACTED - PAYMENT TO INDIVIDUAL
Children and Young Peoples Services,Head of Education and Skills,Transport,230006,Contract Hire,07/11/2022,4065706-89OCT2022,"2,195.00",REDACTED - PAYMENT TO INDIVIDUAL
Children and Young Peoples Services,Head of Education and Skills,Transport,230034,Contract Hire,07/11/2022,4065970-20220001,900.00,REDACTED - PAYMENT TO INDIVIDUAL
Adult and Health Services,Public Health CC0450,Third Party Payments,460803,Contract Payments,07/11/2022,4065748-2510046787,"4,798.89",HARROGATE & DISTRICT NHS FOUNDATION TRUST.
Adult and Health Services,Public Health CC0450,Third Party Payments,460803,Contract Payments,07/11/2022,4065902-18073/18,"7,327.00",PIONEERING CARE PARTNERSHIP.
Adult and Health Services,Public Health CC0450,Third Party Payments,460803,Contract Payments,07/11/2022,4065972-2803085300,"8,334.00",SUNDERLAND CITY COUNCIL.
Neighbourhoods and Climate Change,Technical Services CM0300,Supplies and Services,304221,Equipment and Materials,07/11/2022,4065643-33771164,"3,239.91",AGGREGATE INDUSTRIES UK LTD.
Neighbourhoods and Climate Change,Technical Services CM0300,Supplies and Services,304221,Equipment and Materials,07/11/2022,4065971-32464,541.52,STONEGRAVE AGGREGATES LTD.
Neighbourhoods and Climate Change,Technical Services CM0300,Supplies and Services,304221,Equipment and Materials,07/11/2022,4065971-32841,635.80,STONEGRAVE AGGREGATES LTD.
Neighbourhoods and Climate Change,Technical Services CM0300,Supplies and Services,304221,Equipment and Materials,07/11/2022,4065971-32885,606.06,STONEGRAVE AGGREGATES LTD.
Neighbourhoods and Climate Change,Technical Services CM0300,Supplies and Services,304221,Equipment and Materials,07/11/2022,4065977-9046079105,"1,239.67",TARMAC TRADING LTD.
Regeneration Economy and Growth,Corporate Property and Land,Supplies and Services,304221,Equipment and Materials,07/11/2022,4065764-INV23700,"2,809.84",HYDRATEC LIFT SERVICES LTD.
Neighbourhoods and Climate Change,Environmental Services,Supplies and Services,304259,Equipment and Materials,07/11/2022,4065821-16643,"4,600.00",MAXOPTRA LTD.
Regeneration Economy and Growth,Planning & Housing,Supplies and Services,308011,Furniture,07/11/2022,4065647-176270,642.00,ALBANY OFFICE EQUIPMENT (WHOLESALE) LTD.
Neighbourhoods and Climate Change,Environmental Services,Supplies and Services,384899,Miscellaneous Expenses,07/11/2022,4065688-RES-11-2022-043,"27,000.68",COAL AUTHORITY.
Neighbourhoods and Climate Change,Environmental Services,Supplies and Services,384199,Miscellaneous Expenses,07/11/2022,4065788-1601,"54,020.59",JW BAINBRIDGE CONTRACTORS LTD.
Regeneration Economy and Growth,Economic Development Level C,Supplies and Services,384899,Miscellaneous Expenses,07/11/2022,4065959-SD031/4,"37,504.75",SOUTH DURHAM ENTERPRISE AGENCY LTD.
Neighbourhoods and Climate Change,Environmental Services,Supplies and Services,384899,Miscellaneous Expenses,07/11/2022,4066020-RES-11-2022-042,"29,064.00",YORKSHIRE DALES NATIONAL PARK AUTHORITY (NPA).
Regeneration Economy and Growth,Business Durham CL0850,Supplies and Services,384899,Miscellaneous Expenses,07/11/2022,4065641-RES-11-2022-062,"3,125.00",ADDITIVE MANUFACTURING 3D TECHNOLOGY LTD.
Children and Young Peoples Services,Head of Education and Skills,Supplies and Services,312009,Newspapers books and periodicals E312,07/11/2022,4065657-6781697,647.53,ASKEWS & HOLTS LIBRARY SERVICES LTD.
Regeneration Economy and Growth,Culture Sport and Tourism,Supplies and Services,312013,Newspapers books and periodicals E312,07/11/2022,4065667-97513,502.05,BOLINDA DIGITAL LTD.
Resources BK0010,Legal & Democratic Services,Supplies and Services,340001,Postages E340,07/11/2022,4065931-9065919260,"1,116.01",ROYAL MAIL GROUP PLC.
Regeneration Economy and Growth,Corporate Property and Land,Third Party Payments,430100,Rendered by Private Contractors,07/11/2022,4065654-3393514233,"5,769.00",ARJO UK LTD.
Regeneration Economy and Growth,Corporate Property and Land,Third Party Payments,430100,Rendered by Private Contractors,07/11/2022,4065770-1568,"106,638.47",IVEGATE LTD.
Regeneration Economy and Growth,Culture Sport and Tourism,Third Party Payments,430131,Rendered by Private Contractors,07/11/2022,4065867-4600,540.00,NORTH EAST DANCE CIC.
Neighbourhoods and Climate Change,Technical Services CM0300,Third Party Payments,430101,Rendered by Private Contractors,07/11/2022,4065874-25867,"3,120.00",OLIVERS TREE SERVICES LTD.
Regeneration Economy and Growth,Corporate Property and Land,Third Party Payments,430100,Rendered by Private Contractors,07/11/2022,4065878-11702-04,"1,860.15",OPUS BUILDING SERVICES LTD.
Regeneration Economy and Growth,Transport and Contracted Services,Third Party Payments,430100,Rendered by Private Contractors,07/11/2022,4065887-13563,"1,821.00",PATROL (PARKING & TRAFFIC REGULATIONS OUTSIDE LONDON).
Regeneration Economy and Growth,Corporate Property and Land,Third Party Payments,430100,Rendered by Private Contractors,07/11/2022,4065922-72602,890.00,RJ UTILITY SERVICES LTD.
Neighbourhoods and Climate Change,Community Protection,Third Party Payments,430100,Rendered by Private Contractors,07/11/2022,4065950-186850,"2,045.61",SHOWSEC INTERNATIONAL LTD.
Regeneration Economy and Growth,Transport and Contracted Services,Third Party Payments,430108,Rendered by Private Contractors,07/11/2022,4065974-90019839,"50,654.82",SWARCO TRAFFIC LTD.
Neighbourhoods and Climate Change,Community Protection,Third Party Payments,430100,Rendered by Private Contractors,07/11/2022,4066025-1988,550.00,YOU`RE SECURE NORTHEAST.
Regeneration Economy and Growth,Culture Sport and Tourism,Third Party Payments,430131,Rendered by Private Contractors,07/11/2022,4065826-202235,"3,377.00",REDACTED - PAYMENT TO INDIVIDUAL
Neighbourhoods and Climate Change,Environmental Services,Transport,215005,Running Costs of Vehicles,07/11/2022,4066024-1025548,"24,539.20",YOUR NRG LTD.
Neighbourhoods and Climate Change,Environmental Services,Transport,215005,Running Costs of Vehicles,07/11/2022,4066024-1025549,"3,109.15",YOUR NRG LTD.
Adult and Health Services,Head of Adults,Supplies and Services,338099,Services,07/11/2022,4065868-26973182,659.28,NORTH TYNESIDE COUNCIL.
Regeneration Economy and Growth,Business Durham CL0850,Supplies and Services,338078,Services,07/11/2022,4066002-INV-53376,"6,243.76",VISTECH SERVICES LTD.
Regeneration Economy and Growth,Culture Sport and Tourism,Supplies and Services,338047,Services,07/11/2022,4065640-2,500.00,OUT OF THIS WORLD PROP & SET DESIGN (THEATRE SUPPLIER).
Children and Young Peoples Services,Head of Childrens Social Care,Supplies and Services,338066,Services,07/11/2022,4065969-128,800.00,REDACTED - PAYMENT TO INDIVIDUAL
Resources BK0010,Digital Services,Supplies and Services,372009,Subscriptions E372,07/11/2022,4065955-INVUK620352,"2,258.21",SOFTCAT PLC.
Children and Young Peoples Services,Head of Education and Skills,Premises,145023,Cleaning and Domestic Supplies,08/11/2022,4066751-06/196020,518.98,GREENHAM TRADING LTD.
Resources BK0010,Digital Services,Supplies and Services,342053,Computers and Communications,08/11/2022,4066703-6004183124,"1,414.00",EDUCATION SOFTWARE SOLUTIONS LTD.
Children and Young Peoples Services,Head of Education and Skills,Transport,230007,Contract Hire,08/11/2022,4066554-102201,"1,671.83",24/7 TAXI SERVICES (PETERLEE) LTD.
Children and Young Peoples Services,Head of Education and Skills,Transport,230007,Contract Hire,08/11/2022,4066554-102202,549.60,24/7 TAXI SERVICES (PETERLEE) LTD.
Children and Young Peoples Services,Head of Education and Skills,Transport,230034,Contract Hire,08/11/2022,4066554-102204,"2,500.00",24/7 TAXI SERVICES (PETERLEE) LTD.
Children and Young Peoples Services,Head of Education and Skills,Transport,230034,Contract Hire,08/11/2022,4066554-102205,"1,089.00",24/7 TAXI SERVICES (PETERLEE) LTD.
Children and Young Peoples Services,Head of Education and Skills,Transport,230008,Contract Hire,08/11/2022,4066554-102207,"2,544.00",24/7 TAXI SERVICES (PETERLEE) LTD.
Children and Young Peoples Services,Head of Education and Skills,Transport,230006,Contract Hire,08/11/2022,4066554-102208,"1,610.00",24/7 TAXI SERVICES (PETERLEE) LTD.
Adult and Health Services,Head of Adults,Transport,230005,Contract Hire,08/11/2022,4066554-102209,"1,693.12",24/7 TAXI SERVICES (PETERLEE) LTD.
Children and Young Peoples Services,Head of Education and Skills,Transport,230008,Contract Hire,08/11/2022,4066554-102210,"2,385.00",24/7 TAXI SERVICES (PETERLEE) LTD.
Children and Young Peoples Services,Head of Education and Skills,Transport,230008,Contract Hire,08/11/2022,4066554-102211,"2,308.21",24/7 TAXI SERVICES (PETERLEE) LTD.
Children and Young Peoples Services,Head of Education and Skills,Transport,230008,Contract Hire,08/11/2022,4066554-102212,"4,097.66",24/7 TAXI SERVICES (PETERLEE) LTD.
Children and Young Peoples Services,Head of Education and Skills,Transport,230008,Contract Hire,08/11/2022,4066554-102213,"3,738.56",24/7 TAXI SERVICES (PETERLEE) LTD.
Children and Young Peoples Services,Head of Education and Skills,Transport,230009,Contract Hire,08/11/2022,4066554-102214,"3,129.18",24/7 TAXI SERVICES (PETERLEE) LTD.
Children and Young Peoples Services,Head of Education and Skills,Transport,230008,Contract Hire,08/11/2022,4066554-102215,"4,124.06",24/7 TAXI SERVICES (PETERLEE) LTD.
Children and Young Peoples Services,Head of Education and Skills,Transport,230008,Contract Hire,08/11/2022,4066554-102216,"2,381.69",24/7 TAXI SERVICES (PETERLEE) LTD.
Children and Young Peoples Services,Head of Education and Skills,Transport,230008,Contract Hire,08/11/2022,4066554-102217,"1,786.16",24/7 TAXI SERVICES (PETERLEE) LTD.
Children and Young Peoples Services,Head of Education and Skills,Transport,230006,Contract Hire,08/11/2022,4066554-102219,"1,185.00",24/7 TAXI SERVICES (PETERLEE) LTD.
Children and Young Peoples Services,Head of Education and Skills,Transport,230006,Contract Hire,08/11/2022,4066554-102222,"1,448.94",24/7 TAXI SERVICES (PETERLEE) LTD.
Adult and Health Services,Head of Adults,Transport,230005,Contract Hire,08/11/2022,4066554-102223,"1,045.50",24/7 TAXI SERVICES (PETERLEE) LTD.
Children and Young Peoples Services,Head of Education and Skills,Transport,230008,Contract Hire,08/11/2022,4066554-102224,"2,900.55",24/7 TAXI SERVICES (PETERLEE) LTD.
Children and Young Peoples Services,Head of Education and Skills,Transport,230006,Contract Hire,08/11/2022,4066554-92223,"1,528.36",24/7 TAXI SERVICES (PETERLEE) LTD.
Children and Young Peoples Services,Head of Education and Skills,Transport,230006,Contract Hire,08/11/2022,4066558-OCTOBER01-F896,"1,750.00",A & P TAXIS.
Children and Young Peoples Services,Head of Education and Skills,Transport,230007,Contract Hire,08/11/2022,4066558-OCTOBER02-5438,"1,350.00",A & P TAXIS.
Children and Young Peoples Services,Head of Education and Skills,Transport,230006,Contract Hire,08/11/2022,4066558-OCTOBER03-F235,"2,550.00",A & P TAXIS.
Children and Young Peoples Services,Head of Education and Skills,Transport,230034,Contract Hire,08/11/2022,4066562-1022/SA,"2,112.00",AABAT TAXIS.
Children and Young Peoples Services,Head of Education and Skills,Transport,230008,Contract Hire,08/11/2022,4066562-1022/SD,933.02,AABAT TAXIS.
Children and Young Peoples Services,Head of Education and Skills,Transport,230008,Contract Hire,08/11/2022,4066562-1022/SF,"1,246.00",AABAT TAXIS.
Children and Young Peoples Services,Head of Education and Skills,Transport,230010,Contract Hire,08/11/2022,4066565-0573,"2,970.87",ABC & OUSTON CABS.
Children and Young Peoples Services,Head of Education and Skills,Transport,230007,Contract Hire,08/11/2022,4066566-AC2052,"1,085.12",ACE TAXIS (WINSTON).
Children and Young Peoples Services,Head of Education and Skills,Transport,230006,Contract Hire,08/11/2022,4066566-AC2053,"1,100.00",ACE TAXIS (WINSTON).
Children and Young Peoples Services,Head of Education and Skills,Transport,230008,Contract Hire,08/11/2022,4066572-013OCT2022,"2,001.56",AIRPORT TRANSFER DURHAM.
Children and Young Peoples Services,Head of Education and Skills,Transport,230007,Contract Hire,08/11/2022,4066574-368,992.12,ALANS TAXIS BARNARD CASTLE.
Children and Young Peoples Services,Head of Education and Skills,Transport,230007,Contract Hire,08/11/2022,4066574-369,"1,387.07",ALANS TAXIS BARNARD CASTLE.
Children and Young Peoples Services,Head of Education and Skills,Transport,230007,Contract Hire,08/11/2022,4066574-372,"1,964.12",ALANS TAXIS BARNARD CASTLE.
Children and Young Peoples Services,Head of Education and Skills,Transport,230006,Contract Hire,08/11/2022,4066586-OCT2022-1,936.00,ARMSTRONG`S TAXIS.
Children and Young Peoples Services,Head of Education and Skills,Transport,230006,Contract Hire,08/11/2022,4066586-OCT2022-2,"2,224.00",ARMSTRONG`S TAXIS.
Children and Young Peoples Services,Head of Education and Skills,Transport,230012,Contract Hire,08/11/2022,4066586-OCT2022-3,"1,088.00",ARMSTRONG`S TAXIS.
Children and Young Peoples Services,Head of Education and Skills,Transport,230008,Contract Hire,08/11/2022,4066593-939,"3,167.27",AT TAXIS LTD.
Children and Young Peoples Services,Head of Education and Skills,Transport,230008,Contract Hire,08/11/2022,4066593-940,"2,708.62",AT TAXIS LTD.
Children and Young Peoples Services,Head of Education and Skills,Transport,230007,Contract Hire,08/11/2022,4066593-941,"1,770.55",AT TAXIS LTD.
Children and Young Peoples Services,Head of Education and Skills,Transport,230034,Contract Hire,08/11/2022,4066593-942,"1,960.97",AT TAXIS LTD.
Children and Young Peoples Services,Head of Education and Skills,Transport,230009,Contract Hire,08/11/2022,4066593-943,"3,152.00",AT TAXIS LTD.
Children and Young Peoples Services,Head of Education and Skills,Transport,230008,Contract Hire,08/11/2022,4066594-DCC03OCT22,"2,951.38",ATLAS TAXIS BISHOP AUCKLAND.
Children and Young Peoples Services,Head of Education and Skills,Transport,230008,Contract Hire,08/11/2022,4066594-DCC10OCT22,"4,721.28",ATLAS TAXIS BISHOP AUCKLAND.
Adult and Health Services,Head of Adults,Transport,230005,Contract Hire,08/11/2022,4066594-DCC13OCT2022,"1,620.33",ATLAS TAXIS BISHOP AUCKLAND.
Adult and Health Services,Head of Adults,Transport,230005,Contract Hire,08/11/2022,4066594-DCC5OCT22,"1,569.54",ATLAS TAXIS BISHOP AUCKLAND.
Children and Young Peoples Services,Head of Education and Skills,Transport,230008,Contract Hire,08/11/2022,4066594-DCC7OCT22,"3,556.14",ATLAS TAXIS BISHOP AUCKLAND.
Children and Young Peoples Services,Head of Education and Skills,Transport,230008,Contract Hire,08/11/2022,4066595-DCC11OCT22,"2,695.66",ATLAS TAXIS MANAGEMENT LTD.
Children and Young Peoples Services,Head of Education and Skills,Transport,230008,Contract Hire,08/11/2022,4066595-DCC12OCT22,"2,754.95",ATLAS TAXIS MANAGEMENT LTD.
Children and Young Peoples Services,Head of Education and Skills,Transport,230008,Contract Hire,08/11/2022,4066595-DCC15OCT22,"3,285.00",ATLAS TAXIS MANAGEMENT LTD.
Children and Young Peoples Services,Head of Education and Skills,Transport,230009,Contract Hire,08/11/2022,4066595-DCC16OCT22,"2,287.07",ATLAS TAXIS MANAGEMENT LTD.
Children and Young Peoples Services,Head of Education and Skills,Transport,230006,Contract Hire,08/11/2022,4066595-DCC17OCT22,800.00,ATLAS TAXIS MANAGEMENT LTD.
Children and Young Peoples Services,Head of Education and Skills,Transport,230008,Contract Hire,08/11/2022,4066595-DCC2OCT2022,"3,029.76",ATLAS TAXIS MANAGEMENT LTD.
Children and Young Peoples Services,Head of Education and Skills,Transport,230008,Contract Hire,08/11/2022,4066595-DCC6OCT22,"2,880.00",ATLAS TAXIS MANAGEMENT LTD.
Children and Young Peoples Services,Head of Education and Skills,Transport,230007,Contract Hire,08/11/2022,4066597-3110221,900.00,AVALON TAXIS.
Children and Young Peoples Services,Head of Education and Skills,Transport,230007,Contract Hire,08/11/2022,4066597-3110222,"3,015.66",AVALON TAXIS.
Children and Young Peoples Services,Head of Education and Skills,Transport,230006,Contract Hire,08/11/2022,4066599-2-OCT22,918.31,B&C YELLOWCAB TAXI`S.
Children and Young Peoples Services,Head of Education and Skills,Transport,230007,Contract Hire,08/11/2022,4066608-SH-PITT-1022,968.57,BENS TAXIS.
Children and Young Peoples Services,Head of Education and Skills,Transport,230034,Contract Hire,08/11/2022,4066608-SUNHASBEL-1022,"1,770.01",BENS TAXIS.
Children and Young Peoples Services,Head of Education and Skills,Transport,230007,Contract Hire,08/11/2022,4066614-6069-OCT,"1,279.68",BIG MAMA`S TAXI.
Children and Young Peoples Services,Head of Education and Skills,Transport,230006,Contract Hire,08/11/2022,4066614-F185-OCT,779.88,BIG MAMA`S TAXI.
Children and Young Peoples Services,Head of Education and Skills,Transport,230006,Contract Hire,08/11/2022,4066614-F218-OCT,"1,169.82",BIG MAMA`S TAXI.
Children and Young Peoples Services,Head of Education and Skills,Transport,230007,Contract Hire,08/11/2022,4066615-INV-649,"1,392.32",BILL SCOTT TAXIS LTD.
Adult and Health Services,Head of Adults,Transport,230005,Contract Hire,08/11/2022,4066616-0635,712.11,BIRDS TAXIS LTD.
Adult and Health Services,Head of Adults,Transport,230005,Contract Hire,08/11/2022,4066616-0636,"2,326.38",BIRDS TAXIS LTD.
Adult and Health Services,Head of Adults,Transport,230005,Contract Hire,08/11/2022,4066616-0637,902.16,BIRDS TAXIS LTD.
Adult and Health Services,Head of Adults,Transport,230005,Contract Hire,08/11/2022,4066616-0638,"1,297.92",BIRDS TAXIS LTD.
Adult and Health Services,Head of Adults,Transport,230005,Contract Hire,08/11/2022,4066616-0639,712.11,BIRDS TAXIS LTD.
Children and Young Peoples Services,Head of Education and Skills,Transport,230006,Contract Hire,08/11/2022,4066616-0641,880.00,BIRDS TAXIS LTD.
Adult and Health Services,Head of Adults,Transport,230005,Contract Hire,08/11/2022,4066616-0642,"2,268.00",BIRDS TAXIS LTD.
Adult and Health Services,Head of Adults,Transport,230005,Contract Hire,08/11/2022,4066616-0643,"1,638.00",BIRDS TAXIS LTD.
Adult and Health Services,Head of Adults,Transport,230005,Contract Hire,08/11/2022,4066616-0644,"1,260.00",BIRDS TAXIS LTD.
Children and Young Peoples Services,Head of Education and Skills,Transport,230007,Contract Hire,08/11/2022,4066616-0645,721.28,BIRDS TAXIS LTD.
Children and Young Peoples Services,Head of Education and Skills,Transport,230008,Contract Hire,08/11/2022,4066616-0646,"1,615.20",BIRDS TAXIS LTD.
Children and Young Peoples Services,Head of Education and Skills,Transport,230008,Contract Hire,08/11/2022,4066616-0647,"2,512.16",BIRDS TAXIS LTD.
Children and Young Peoples Services,Head of Education and Skills,Transport,230005,Contract Hire,08/11/2022,4066616-0648,"1,020.40",BIRDS TAXIS LTD.
Children and Young Peoples Services,Head of Education and Skills,Transport,230035,Contract Hire,08/11/2022,4066620-17-OCT22,"1,689.76",BL TAXIS.
Children and Young Peoples Services,Head of Education and Skills,Transport,230007,Contract Hire,08/11/2022,4066622-N1,"1,228.40",BOBS TAXIS.
Adult and Health Services,Head of Adults,Transport,230005,Contract Hire,08/11/2022,4066625-BZ00419,714.00,BREZ`S TAXIS.
Adult and Health Services,Head of Adults,Transport,230005,Contract Hire,08/11/2022,4066625-BZ00420,899.00,BREZ`S TAXIS.
Children and Young Peoples Services,Head of Education and Skills,Transport,230008,Contract Hire,08/11/2022,4066630-W046035,"2,232.27",C & R TAXIS.
Children and Young Peoples Services,Head of Education and Skills,Transport,230008,Contract Hire,08/11/2022,4066639-079,"1,737.00",CHANNER`S CABS.
Children and Young Peoples Services,Head of Education and Skills,Transport,230008,Contract Hire,08/11/2022,4066641-CW34,"1,915.06",CHIPPERS TAXIS.
Children and Young Peoples Services,Head of Education and Skills,Transport,230008,Contract Hire,08/11/2022,4066641-SW13-OCT22,"1,918.10",CHIPPERS TAXIS.
Children and Young Peoples Services,Head of Education and Skills,Transport,230008,Contract Hire,08/11/2022,4066648-059,"1,040.10",CJ COACHES.
Children and Young Peoples Services,Head of Education and Skills,Transport,230008,Contract Hire,08/11/2022,4066649-E031-LR1022,"3,319.95",CJ`S EXECUTIVE TRAVEL LTD.
Children and Young Peoples Services,Head of Education and Skills,Transport,230008,Contract Hire,08/11/2022,4066649-E032-CE1022,"2,140.50",CJ`S EXECUTIVE TRAVEL LTD.
Children and Young Peoples Services,Head of Education and Skills,Transport,230008,Contract Hire,08/11/2022,4066649-M031-BR1022,"2,385.00",CJ`S EXECUTIVE TRAVEL LTD.
Children and Young Peoples Services,Head of Education and Skills,Transport,230008,Contract Hire,08/11/2022,4066649-N049-JM1022,"3,799.36",CJ`S EXECUTIVE TRAVEL LTD.
Children and Young Peoples Services,Head of Education and Skills,Transport,230007,Contract Hire,08/11/2022,4066655-C/11606,"6,496.05",COCHRANES T/A KELVIN TRAVEL.
Children and Young Peoples Services,Head of Education and Skills,Transport,230003,Contract Hire,08/11/2022,4066655-C/11607,"2,209.34",COCHRANES T/A KELVIN TRAVEL.
Children and Young Peoples Services,Head of Education and Skills,Transport,230003,Contract Hire,08/11/2022,4066655-C/11608,"3,845.00",COCHRANES T/A KELVIN TRAVEL.
Children and Young Peoples Services,Head of Education and Skills,Transport,230003,Contract Hire,08/11/2022,4066655-C/11609,"2,554.56",COCHRANES T/A KELVIN TRAVEL.
Children and Young Peoples Services,Head of Education and Skills,Transport,230007,Contract Hire,08/11/2022,4066655-C/11610,"3,628.95",COCHRANES T/A KELVIN TRAVEL.
Children and Young Peoples Services,Head of Education and Skills,Transport,230007,Contract Hire,08/11/2022,4066655-C/11611,"3,750.00",COCHRANES T/A KELVIN TRAVEL.
Children and Young Peoples Services,Head of Education and Skills,Transport,230007,Contract Hire,08/11/2022,4066655-C/11612,"4,000.00",COCHRANES T/A KELVIN TRAVEL.
Children and Young Peoples Services,Head of Education and Skills,Transport,230008,Contract Hire,08/11/2022,4066660-07-OCT22,"1,619.36",CONNORS MINI BUSES.*
Children and Young Peoples Services,Head of Education and Skills,Transport,230007,Contract Hire,08/11/2022,4066662-INV0018,"1,998.74",CONSETT EXECUTIVE CABS.
Children and Young Peoples Services,Head of Education and Skills,Transport,230006,Contract Hire,08/11/2022,4066662-INV002-OCT22,"1,522.31",CONSETT EXECUTIVE CABS.
Children and Young Peoples Services,Head of Education and Skills,Transport,230008,Contract Hire,08/11/2022,4066676-1788,"1,446.88",DA TAXIS.
Children and Young Peoples Services,Head of Education and Skills,Transport,230008,Contract Hire,08/11/2022,4066676-1789,"1,576.64",DA TAXIS.
Children and Young Peoples Services,Head of Education and Skills,Transport,230008,Contract Hire,08/11/2022,4066676-1790,"1,877.12",DA TAXIS.
Children and Young Peoples Services,Head of Education and Skills,Transport,230008,Contract Hire,08/11/2022,4066676-1791,"1,241.44",DA TAXIS.
Children and Young Peoples Services,Head of Education and Skills,Transport,230008,Contract Hire,08/11/2022,4066676-1792,"2,560.00",DA TAXIS.
Children and Young Peoples Services,Head of Education and Skills,Transport,230008,Contract Hire,08/11/2022,4066677-3759,"2,212.70",DAVES MINIBUSES.
Children and Young Peoples Services,Head of Education and Skills,Transport,230008,Contract Hire,08/11/2022,4066677-3760,"1,828.36",DAVES MINIBUSES.
Children and Young Peoples Services,Head of Education and Skills,Transport,230008,Contract Hire,08/11/2022,4066677-3761,"1,629.52",DAVES MINIBUSES.
Children and Young Peoples Services,Head of Education and Skills,Transport,230008,Contract Hire,08/11/2022,4066677-3762,"1,568.00",DAVES MINIBUSES.
Children and Young Peoples Services,Head of Education and Skills,Transport,230008,Contract Hire,08/11/2022,4066677-3763,"1,902.76",DAVES MINIBUSES.
Children and Young Peoples Services,Head of Education and Skills,Transport,230008,Contract Hire,08/11/2022,4066677-3764,"1,789.68",DAVES MINIBUSES.
Children and Young Peoples Services,Head of Education and Skills,Transport,230006,Contract Hire,08/11/2022,4066700-1404,"3,464.10",EAST DURHAM TAXIS.
Children and Young Peoples Services,Head of Education and Skills,Transport,230006,Contract Hire,08/11/2022,4066700-1410,"3,429.00",EAST DURHAM TAXIS.
Children and Young Peoples Services,Head of Education and Skills,Transport,230008,Contract Hire,08/11/2022,4066700-1414,"3,208.00",EAST DURHAM TAXIS.
Adult and Health Services,Head of Adults,Transport,230005,Contract Hire,08/11/2022,4066700-1415,"2,490.60",EAST DURHAM TAXIS.
Children and Young Peoples Services,Head of Education and Skills,Transport,230008,Contract Hire,08/11/2022,4066700-1416,"3,181.44",EAST DURHAM TAXIS.
Children and Young Peoples Services,Head of Education and Skills,Transport,230009,Contract Hire,08/11/2022,4066700-1417,"2,286.56",EAST DURHAM TAXIS.
Adult and Health Services,Head of Adults,Transport,230005,Contract Hire,08/11/2022,4066700-1418,"1,387.62",EAST DURHAM TAXIS.
Children and Young Peoples Services,Head of Education and Skills,Transport,230008,Contract Hire,08/11/2022,4066706-ES13,"2,180.10",ELITE TAXIS.
Adult and Health Services,Head of Adults,Transport,230005,Contract Hire,08/11/2022,4066737-103149,"1,281.00",G & P JOHNSON LTD T/A NIGHTINGALE COACHES.
Children and Young Peoples Services,Head of Education and Skills,Transport,230003,Contract Hire,08/11/2022,4066747-80131,537.08,GO GATESHEAD LTD.
Adult and Health Services,Head of Adults,Transport,230005,Contract Hire,08/11/2022,4066780-0918,"1,157.00",JACKSON`S TAXI.
Children and Young Peoples Services,Head of Education and Skills,Transport,230008,Contract Hire,08/11/2022,4066780-0919,"2,177.44",JACKSON`S TAXI.
Adult and Health Services,Head of Adults,Transport,230005,Contract Hire,08/11/2022,4066780-0921,744.00,JACKSON`S TAXI.
Adult and Health Services,Head of Adults,Transport,230005,Contract Hire,08/11/2022,4066780-0922,"1,393.56",JACKSON`S TAXI.
Children and Young Peoples Services,Head of Education and Skills,Transport,230008,Contract Hire,08/11/2022,4066780-0925,"2,031.84",JACKSON`S TAXI.
Adult and Health Services,Head of Adults,Transport,230005,Contract Hire,08/11/2022,4066802-101A,"2,589.09",KINGSWAY CABS LTD.
Children and Young Peoples Services,Head of Education and Skills,Transport,230007,Contract Hire,08/11/2022,4066830-INV10/202202,"1,779.00",MARK & JOHN CHISHOLM T/A (CHEVRON).
Children and Young Peoples Services,Head of Education and Skills,Transport,230007,Contract Hire,08/11/2022,4066830-INV10/202203,840.40,MARK & JOHN CHISHOLM T/A (CHEVRON).
Children and Young Peoples Services,Head of Education and Skills,Transport,230007,Contract Hire,08/11/2022,4066830-INV10/202204,"1,756.65",MARK & JOHN CHISHOLM T/A (CHEVRON).
Children and Young Peoples Services,Head of Education and Skills,Transport,230007,Contract Hire,08/11/2022,4066830-INV10/202205,"1,728.48",MARK & JOHN CHISHOLM T/A (CHEVRON).
Children and Young Peoples Services,Head of Education and Skills,Transport,230008,Contract Hire,08/11/2022,4066830-INV10/202207,"1,410.00",MARK & JOHN CHISHOLM T/A (CHEVRON).
Children and Young Peoples Services,Head of Education and Skills,Transport,230008,Contract Hire,08/11/2022,4066830-INV10/202209,"3,708.16",MARK & JOHN CHISHOLM T/A (CHEVRON).
Children and Young Peoples Services,Head of Education and Skills,Transport,230010,Contract Hire,08/11/2022,4066830-INV10/202210,"2,574.00",MARK & JOHN CHISHOLM T/A (CHEVRON).
Children and Young Peoples Services,Head of Education and Skills,Transport,230010,Contract Hire,08/11/2022,4066830-INV10/202211,"2,780.38",MARK & JOHN CHISHOLM T/A (CHEVRON).
Children and Young Peoples Services,Head of Education and Skills,Transport,230010,Contract Hire,08/11/2022,4066830-INV10/202212,"1,152.00",MARK & JOHN CHISHOLM T/A (CHEVRON).
Children and Young Peoples Services,Head of Education and Skills,Transport,230010,Contract Hire,08/11/2022,4066830-INV10/202213,"2,664.64",MARK & JOHN CHISHOLM T/A (CHEVRON).
Children and Young Peoples Services,Head of Education and Skills,Transport,230008,Contract Hire,08/11/2022,4066830-INV10/202217,"2,604.96",MARK & JOHN CHISHOLM T/A (CHEVRON).
Children and Young Peoples Services,Head of Education and Skills,Transport,230008,Contract Hire,08/11/2022,4066830-INV10/202218,"2,622.00",MARK & JOHN CHISHOLM T/A (CHEVRON).
Children and Young Peoples Services,Head of Education and Skills,Transport,230008,Contract Hire,08/11/2022,4066830-INV10/202219,"2,368.00",MARK & JOHN CHISHOLM T/A (CHEVRON).
Children and Young Peoples Services,Head of Education and Skills,Transport,230008,Contract Hire,08/11/2022,4066830-INV10/202220,"1,888.00",MARK & JOHN CHISHOLM T/A (CHEVRON).
Children and Young Peoples Services,Head of Education and Skills,Transport,230008,Contract Hire,08/11/2022,4066830-INV10/202221,"3,100.42",MARK & JOHN CHISHOLM T/A (CHEVRON).
Children and Young Peoples Services,Head of Education and Skills,Transport,230008,Contract Hire,08/11/2022,4066830-INV10/202222,"3,328.00",MARK & JOHN CHISHOLM T/A (CHEVRON).
Children and Young Peoples Services,Head of Education and Skills,Transport,230008,Contract Hire,08/11/2022,4066830-INV10/202223,"2,168.32",MARK & JOHN CHISHOLM T/A (CHEVRON).
Children and Young Peoples Services,Head of Education and Skills,Transport,230008,Contract Hire,08/11/2022,4066830-INV10/202224,"2,142.40",MARK & JOHN CHISHOLM T/A (CHEVRON).
Children and Young Peoples Services,Head of Education and Skills,Transport,230008,Contract Hire,08/11/2022,4066830-INV10/202225,"2,034.08",MARK & JOHN CHISHOLM T/A (CHEVRON).
Children and Young Peoples Services,Head of Education and Skills,Transport,230008,Contract Hire,08/11/2022,4066830-INV10/202226,"4,128.00",MARK & JOHN CHISHOLM T/A (CHEVRON).
Children and Young Peoples Services,Head of Education and Skills,Transport,230008,Contract Hire,08/11/2022,4066830-INV10/202227,"3,008.00",MARK & JOHN CHISHOLM T/A (CHEVRON).
Children and Young Peoples Services,Head of Education and Skills,Transport,230008,Contract Hire,08/11/2022,4066830-INV10/202228,"3,433.84",MARK & JOHN CHISHOLM T/A (CHEVRON).
Children and Young Peoples Services,Head of Education and Skills,Transport,230008,Contract Hire,08/11/2022,4066830-INV10/202229,"3,152.48",MARK & JOHN CHISHOLM T/A (CHEVRON).
Children and Young Peoples Services,Head of Education and Skills,Transport,230007,Contract Hire,08/11/2022,4066830-INV10/202235,"1,248.00",MARK & JOHN CHISHOLM T/A (CHEVRON).
Children and Young Peoples Services,Head of Education and Skills,Transport,230008,Contract Hire,08/11/2022,4066830-INV102022/08,"2,297.70",MARK & JOHN CHISHOLM T/A (CHEVRON).
Children and Young Peoples Services,Head of Education and Skills,Transport,230006,Contract Hire,08/11/2022,4066835-0001A-OCT22,792.56,MGD TAXIS.
Children and Young Peoples Services,Head of Education and Skills,Transport,230006,Contract Hire,08/11/2022,4066835-0001B-OCT22,804.52,MGD TAXIS.
Children and Young Peoples Services,Head of Education and Skills,Transport,230006,Contract Hire,08/11/2022,4066835-0001C-OCT22,837.56,MGD TAXIS.
Children and Young Peoples Services,Head of Education and Skills,Transport,230007,Contract Hire,08/11/2022,4066869-2A-OCT22,"1,950.20",NC TAXI`S.
Neighbourhoods and Climate Change,Environmental Services,Transport,230005,Contract Hire,08/11/2022,4066884-SL07374945INV,820.68,NORTHGATE VEHICLE HIRE LTD.
Children and Young Peoples Services,Head of Education and Skills,Transport,230008,Contract Hire,08/11/2022,4066900-DCC396,"4,007.15",PAUL`S TAXIS..
Children and Young Peoples Services,Head of Education and Skills,Transport,230008,Contract Hire,08/11/2022,4066900-DCC397,"2,136.45",PAUL`S TAXIS..
Children and Young Peoples Services,Head of Education and Skills,Transport,230034,Contract Hire,08/11/2022,4066907-50719,"1,710.00",PHOENIX TAXIS T/A PRATT`S TAXIS.
Children and Young Peoples Services,Head of Education and Skills,Transport,230034,Contract Hire,08/11/2022,4066907-50719-2,806.20,PHOENIX TAXIS T/A PRATT`S TAXIS.
Children and Young Peoples Services,Head of Education and Skills,Transport,230034,Contract Hire,08/11/2022,4066970-0016,"1,800.00",STARGATE TAXIS.
Children and Young Peoples Services,Head of Education and Skills,Transport,230007,Contract Hire,08/11/2022,4066560-0296,888.00,REDACTED - PAYMENT TO INDIVIDUAL
Children and Young Peoples Services,Head of Education and Skills,Transport,230008,Contract Hire,08/11/2022,4066573-118,"1,344.00",REDACTED - PAYMENT TO INDIVIDUAL
Children and Young Peoples Services,Head of Education and Skills,Transport,230008,Contract Hire,08/11/2022,4066579-OCT22-E202,"2,428.08",REDACTED - PAYMENT TO INDIVIDUAL
Children and Young Peoples Services,Head of Education and Skills,Transport,230009,Contract Hire,08/11/2022,4066580-2-OCT22-7384,"1,454.24",REDACTED - PAYMENT TO INDIVIDUAL
Children and Young Peoples Services,Head of Education and Skills,Transport,230008,Contract Hire,08/11/2022,4066626-2-OCT22,"2,000.00",REDACTED - PAYMENT TO INDIVIDUAL
Children and Young Peoples Services,Head of Education and Skills,Transport,230035,Contract Hire,08/11/2022,4066656-002-OCT22,"1,711.47",REDACTED - PAYMENT TO INDIVIDUAL
Children and Young Peoples Services,Head of Education and Skills,Transport,230006,Contract Hire,08/11/2022,4066656-002-OCT22-F804,737.14,REDACTED - PAYMENT TO INDIVIDUAL
Children and Young Peoples Services,Head of Education and Skills,Transport,230013,Contract Hire,08/11/2022,4066679-OCT22-3492,"2,720.00",REDACTED - PAYMENT TO INDIVIDUAL
Children and Young Peoples Services,Head of Education and Skills,Transport,230008,Contract Hire,08/11/2022,4066680-19,"3,134.99",REDACTED - PAYMENT TO INDIVIDUAL
Children and Young Peoples Services,Head of Education and Skills,Transport,230008,Contract Hire,08/11/2022,4066681-0093,"3,117.72",REDACTED - PAYMENT TO INDIVIDUAL
Children and Young Peoples Services,Head of Education and Skills,Transport,230006,Contract Hire,08/11/2022,4066738-11-F128,"1,877.19",REDACTED - PAYMENT TO INDIVIDUAL
Children and Young Peoples Services,Head of Education and Skills,Transport,230034,Contract Hire,08/11/2022,4066738-13-2098,"1,078.00",REDACTED - PAYMENT TO INDIVIDUAL
Children and Young Peoples Services,Head of Education and Skills,Transport,230006,Contract Hire,08/11/2022,4066757-02-F253,"2,384.00",REDACTED - PAYMENT TO INDIVIDUAL
Children and Young Peoples Services,Head of Education and Skills,Transport,230007,Contract Hire,08/11/2022,4066757-02-OCT22,849.76,REDACTED - PAYMENT TO INDIVIDUAL
Adult and Health Services,Head of Adults,Transport,230005,Contract Hire,08/11/2022,4066790-274,567.50,REDACTED - PAYMENT TO INDIVIDUAL
Children and Young Peoples Services,Head of Education and Skills,Transport,230010,Contract Hire,08/11/2022,4066790-275,"1,261.30",REDACTED - PAYMENT TO INDIVIDUAL
Children and Young Peoples Services,Head of Education and Skills,Transport,230008,Contract Hire,08/11/2022,4066826-13-OCT22,"2,053.38",REDACTED - PAYMENT TO INDIVIDUAL
Children and Young Peoples Services,Head of Education and Skills,Transport,230006,Contract Hire,08/11/2022,4066846-AT301-A,618.92,REDACTED - PAYMENT TO INDIVIDUAL
Children and Young Peoples Services,Head of Education and Skills,Transport,230006,Contract Hire,08/11/2022,4066846-AT301-B,"1,365.34",REDACTED - PAYMENT TO INDIVIDUAL
Children and Young Peoples Services,Head of Education and Skills,Transport,230006,Contract Hire,08/11/2022,4066847-259,"1,300.00",REDACTED - PAYMENT TO INDIVIDUAL
Children and Young Peoples Services,Head of Education and Skills,Transport,230007,Contract Hire,08/11/2022,4066848-6-1,700.00,REDACTED - PAYMENT TO INDIVIDUAL
Children and Young Peoples Services,Head of Education and Skills,Transport,230007,Contract Hire,08/11/2022,4066851-249,"1,876.40",REDACTED - PAYMENT TO INDIVIDUAL
Children and Young Peoples Services,Head of Education and Skills,Transport,230006,Contract Hire,08/11/2022,4066851-251,"1,740.00",REDACTED - PAYMENT TO INDIVIDUAL
Children and Young Peoples Services,Head of Education and Skills,Transport,230009,Contract Hire,08/11/2022,4066851-252,528.00,REDACTED - PAYMENT TO INDIVIDUAL
Children and Young Peoples Services,Head of Education and Skills,Transport,230006,Contract Hire,08/11/2022,4066853-14-F117,"1,247.87",REDACTED - PAYMENT TO INDIVIDUAL
Adult and Health Services,Head of Adults,Transport,230005,Contract Hire,08/11/2022,4066853-14-OCT22,675.00,REDACTED - PAYMENT TO INDIVIDUAL
Children and Young Peoples Services,Head of Education and Skills,Transport,230034,Contract Hire,08/11/2022,4066854-143/2022,"1,904.00",REDACTED - PAYMENT TO INDIVIDUAL
Children and Young Peoples Services,Head of Education and Skills,Transport,230034,Contract Hire,08/11/2022,4066854-144/2022,"1,006.72",REDACTED - PAYMENT TO INDIVIDUAL
Children and Young Peoples Services,Head of Education and Skills,Transport,230006,Contract Hire,08/11/2022,4066854-146/2022,"1,238.95",REDACTED - PAYMENT TO INDIVIDUAL
Children and Young Peoples Services,Head of Education and Skills,Transport,230006,Contract Hire,08/11/2022,4066854-147/2022,"2,376.35",REDACTED - PAYMENT TO INDIVIDUAL
Children and Young Peoples Services,Head of Education and Skills,Transport,230006,Contract Hire,08/11/2022,4066855-DCC089,990.00,REDACTED - PAYMENT TO INDIVIDUAL
Children and Young Peoples Services,Head of Education and Skills,Transport,230008,Contract Hire,08/11/2022,4066856-3239,"4,043.75",REDACTED - PAYMENT TO INDIVIDUAL
Children and Young Peoples Services,Head of Education and Skills,Transport,230008,Contract Hire,08/11/2022,4066856-3240,"2,100.16",REDACTED - PAYMENT TO INDIVIDUAL
Children and Young Peoples Services,Head of Education and Skills,Transport,230034,Contract Hire,08/11/2022,4066857-12,"1,905.46",REDACTED - PAYMENT TO INDIVIDUAL
Children and Young Peoples Services,Head of Education and Skills,Transport,230010,Contract Hire,08/11/2022,4066858-FERRY1022-A,"1,085.28",REDACTED - PAYMENT TO INDIVIDUAL
Children and Young Peoples Services,Head of Education and Skills,Transport,230010,Contract Hire,08/11/2022,4066858-FERRY1022-B,"1,286.74",REDACTED - PAYMENT TO INDIVIDUAL
Children and Young Peoples Services,Head of Education and Skills,Transport,230035,Contract Hire,08/11/2022,4066859-TND32,"2,044.63",REDACTED - PAYMENT TO INDIVIDUAL
Children and Young Peoples Services,Head of Education and Skills,Transport,230008,Contract Hire,08/11/2022,4066971-088-OCT22,986.25,REDACTED - PAYMENT TO INDIVIDUAL
Children and Young Peoples Services,Head of Education and Skills,Transport,230007,Contract Hire,08/11/2022,4066973-5437-OCT22,768.50,REDACTED - PAYMENT TO INDIVIDUAL
Adult and Health Services,Head of Adults,Transport,230005,Contract Hire,08/11/2022,4066999-0002403,"2,385.00",REDACTED - PAYMENT TO INDIVIDUAL
Children and Young Peoples Services,Head of Education and Skills,Transport,230008,Contract Hire,08/11/2022,4066999-0002404,"4,092.48",REDACTED - PAYMENT TO INDIVIDUAL
Children and Young Peoples Services,Head of Education and Skills,Transport,230008,Contract Hire,08/11/2022,4066999-0002405,"1,711.52",REDACTED - PAYMENT TO INDIVIDUAL
Children and Young Peoples Services,Head of Education and Skills,Transport,230008,Contract Hire,08/11/2022,4066999-0002407,"3,156.80",REDACTED - PAYMENT TO INDIVIDUAL
Children and Young Peoples Services,Head of Education and Skills,Transport,230006,Contract Hire,08/11/2022,4066999-0002408,"1,170.00",REDACTED - PAYMENT TO INDIVIDUAL
Children and Young Peoples Services,Head of Education and Skills,Transport,230008,Contract Hire,08/11/2022,4066999-0002409,"3,120.00",REDACTED - PAYMENT TO INDIVIDUAL
Children and Young Peoples Services,Head of Education and Skills,Transport,230008,Contract Hire,08/11/2022,4066999-2406,"2,700.15",REDACTED - PAYMENT TO INDIVIDUAL
Children and Young Peoples Services,Head of Education and Skills,Transport,230004,Contract Hire,08/11/2022,4067026-10144,512.00,REDACTED - PAYMENT TO INDIVIDUAL
Children and Young Peoples Services,Head of Education and Skills,Transport,230035,Contract Hire,08/11/2022,4067026-103493,"1,110.00",REDACTED - PAYMENT TO INDIVIDUAL
Adult and Health Services,Public Health CC0450,Third Party Payments,460803,Contract Payments,08/11/2022,4066878-7441000058,"66,154.00",NHS NORTH EAST & NORTH CUMBRIA ICB.
Adult and Health Services,Public Health CC0450,Third Party Payments,460803,Contract Payments,08/11/2022,4067012-SI-TPL-00066858,"1,855.00",TURNING POINT (SERVICES) LTD.
Adult and Health Services,Public Health CC0450,Third Party Payments,460803,Contract Payments,08/11/2022,4067012-SI-TPL-00066859,"1,855.00",TURNING POINT (SERVICES) LTD.
Adult and Health Services,Public Health CC0450,Third Party Payments,460803,Contract Payments,08/11/2022,4067012-SI-TPL-00066860,"1,855.00",TURNING POINT (SERVICES) LTD.
Regeneration Economy and Growth,Corporate Property and Land,Supplies and Services,304221,Equipment and Materials,08/11/2022,4066712-SIN019800,"3,011.23",ENERGY CONSERVATION SOLUTIONS LTD (ECSL).
